{"text_format":"1","workbook":"xlsx","n_sheets":3,"sheets":["ورقة1","Sheet1","Sheet2"],"not_rendered":{"charts":0,"images":0,"macros":1,"external_links":0,"defined_names":0,"comments":1,"pivot_tables":0},"unopened":[],"bounds":{"document_bytes":16777216,"sheet_cells":100000,"rows_first":2000,"rows_last":500,"rows_between":2000,"halvings":0,"cell_chars":16384,"cell_head_chars":4096},"cells_cut":0,"cells_raw":0,"read":"whole","date_system":"1900"}

{"sheet":"ورقة1","index":0,"n_rows":0,"n_cols":0,"rows_kept":0,"cut":false,"hidden":false,"merged":[]}

{"sheet":"Sheet1","index":1,"n_rows":775,"n_cols":6,"rows_kept":775,"cut":false,"hidden":false,"merged":[]}
["اسم الموظف ","عدد الايام ","المرتب ","السلف ","الخصم ","الاجمالي "]
["ابانوب بشاره نصر بشاره",{"$f":"SUM(Sheet2!C6:AF6)","v":8},{"$f":"Table1[[#This Row],[عدد الايام ]]*65","v":520},30,10,{"$f":"Table1[[#This Row],[المرتب ]]-(Table1[[#This Row],[السلف ]]+Table1[[#This Row],[الخصم ]])","v":480}]
["ابراهيم احمد محمد عيسي",{"$f":"SUM(Sheet2!C7:AF7)","v":3},{"$f":"Table1[[#This Row],[عدد الايام ]]*65","v":195},50,5,{"$f":"Table1[[#This Row],[المرتب ]]-(Table1[[#This Row],[السلف ]]+Table1[[#This Row],[الخصم ]])","v":140}]
["ابراهيم عادل ابراهيم جباره",{"$f":"SUM(Sheet2!C8:AF8)","v":17},{"$f":"Table1[[#This Row],[عدد الايام ]]*65","v":1105},null,null,{"$f":"Table1[[#This Row],[المرتب ]]-(Table1[[#This Row],[السلف ]]+Table1[[#This Row],[الخصم ]])","v":1105}]
["ابراهيم عبدالحميد اسماعيل",{"$f":"SUM(Sheet2!C9:AF9)","v":1},{"$f":"Table1[[#This Row],[عدد الايام ]]*65","v":65},null,null,{"$f":"Table1[[#This Row],[المرتب ]]-(Table1[[#This Row],[السلف ]]+Table1[[#This Row],[الخصم ]])","v":65}]
["ابراهيم عبدالله محمد علي",{"$f":"SUM(Sheet2!C10:AF10)","v":6},{"$f":"Table1[[#This Row],[عدد الايام ]]*65","v":390},null,null,{"$f":"Table1[[#This Row],[المرتب ]]-(Table1[[#This Row],[السلف ]]+Table1[[#This Row],[الخصم ]])","v":390}]
["ابراهيم عقيلي ابراهيم حماد",{"$f":"SUM(Sheet2!C11:AF11)","v":16},{"$f":"Table1[[#This Row],[عدد الايام ]]*65","v":1040},null,null,{"$f":"Table1[[#This Row],[المرتب ]]-(Table1[[#This Row],[السلف ]]+Table1[[#This Row],[الخصم ]])","v":1040}]
["ابراهيم كامل علي عويان",{"$f":"SUM(Sheet2!C12:AF12)","v":25},{"$f":"Table1[[#This Row],[عدد الايام ]]*65","v":1625},300,null,{"$f":"Table1[[#This Row],[المرتب ]]-(Table1[[#This Row],[السلف ]]+Table1[[#This Row],[الخصم ]])","v":1325}]
["ابراهيم محمد ابراهيم جاد",{"$f":"SUM(Sheet2!C13:AF13)","v":4},{"$f":"Table1[[#This Row],[عدد الايام ]]*65","v":260},null,null,{"$f":"Table1[[#This Row],[المرتب ]]-(Table1[[#This Row],[السلف ]]+Table1[[#This Row],[الخصم ]])","v":260}]
["ابراهيم محمد شعيب علي",{"$f":"SUM(Sheet2!C14:AF14)","v":2},{"$f":"Table1[[#This Row],[عدد الايام ]]*65","v":130},null,null,{"$f":"Table1[[#This Row],[المرتب ]]-(Table1[[#This Row],[السلف ]]+Table1[[#This Row],[الخصم ]])","v":130}]
["ابراهيم يوسف درويش ابراهيم",{"$f":"SUM(Sheet2!C15:AF15)","v":7},{"$f":"Table1[[#This Row],[عدد الايام ]]*65","v":455},null,null,{"$f":"Table1[[#This Row],[المرتب ]]-(Table1[[#This Row],[السلف ]]+Table1[[#This Row],[الخصم ]])","v":455}]
["ابوالسعود صابر ابوالسعود",{"$f":"SUM(Sheet2!C16:AF16)","v":1},{"$f":"Table1[[#This Row],[عدد الايام ]]*65","v":65},null,null,{"$f":"Table1[[#This Row],[المرتب ]]-(Table1[[#This Row],[السلف ]]+Table1[[#This Row],[الخصم ]])","v":65}]
["ابوالعلا محمد ابوالعلا",{"$f":"SUM(Sheet2!C17:AF17)","v":29},{"$f":"Table1[[#This Row],[عدد الايام ]]*65","v":1885},null,null,{"$f":"Table1[[#This Row],[المرتب ]]-(Table1[[#This Row],[السلف ]]+Table1[[#This Row],[الخصم ]])","v":1885}]
["ابوبكر عبدالعزيز عثمان",{"$f":"SUM(Sheet2!C18:AF18)","v":53},{"$f":"Table1[[#This Row],[عدد الايام ]]*65","v":3445},null,null,{"$f":"Table1[[#This Row],[المرتب ]]-(Table1[[#This Row],[السلف ]]+Table1[[#This Row],[الخصم ]])","v":3445}]
["احمد ابو نبوت احمد",{"$f":"SUM(Sheet2!C19:AF19)","v":10},{"$f":"Table1[[#This Row],[عدد الايام ]]*65","v":650},null,null,{"$f":"Table1[[#This Row],[المرتب ]]-(Table1[[#This Row],[السلف ]]+Table1[[#This Row],[الخصم ]])","v":650}]
["احمد اشرف محمد حسنين",{"$f":"SUM(Sheet2!C20:AF20)","v":24},{"$f":"Table1[[#This Row],[عدد الايام ]]*65","v":1560},null,null,{"$f":"Table1[[#This Row],[المرتب ]]-(Table1[[#This Row],[السلف ]]+Table1[[#This Row],[الخصم ]])","v":1560}]
["احمد انور محمد الهلوبي",{"$f":"SUM(Sheet2!C21:AF21)","v":8},{"$f":"Table1[[#This Row],[عدد الايام ]]*65","v":520},null,null,{"$f":"Table1[[#This Row],[المرتب ]]-(Table1[[#This Row],[السلف ]]+Table1[[#This Row],[الخصم ]])","v":520}]
["احمد ايمن نبوي",{"$f":"SUM(Sheet2!C22:AF22)","v":1},{"$f":"Table1[[#This Row],[عدد الايام ]]*65","v":65},null,null,{"$f":"Table1[[#This Row],[المرتب ]]-(Table1[[#This Row],[السلف ]]+Table1[[#This Row],[الخصم ]])","v":65}]
["احمد جلال احمد محارم",{"$f":"SUM(Sheet2!C23:AF23)","v":47},{"$f":"Table1[[#This Row],[عدد الايام ]]*65","v":3055},null,null,{"$f":"Table1[[#This Row],[المرتب ]]-(Table1[[#This Row],[السلف ]]+Table1[[#This Row],[الخصم ]])","v":3055}]
["احمد جمال احمد هلال",{"$f":"SUM(Sheet2!C24:AF24)","v":6},{"$f":"Table1[[#This Row],[عدد الايام ]]*65","v":390},null,null,{"$f":"Table1[[#This Row],[المرتب ]]-(Table1[[#This Row],[السلف ]]+Table1[[#This Row],[الخصم ]])","v":390}]
["احمد جمال عيسي حمزه",{"$f":"SUM(Sheet2!C25:AF25)","v":17},{"$f":"Table1[[#This Row],[عدد الايام ]]*65","v":1105},null,null,{"$f":"Table1[[#This Row],[المرتب ]]-(Table1[[#This Row],[السلف ]]+Table1[[#This Row],[الخصم ]])","v":1105}]
["احمد حسن حسن حبيب",{"$f":"SUM(Sheet2!C26:AF26)","v":9},{"$f":"Table1[[#This Row],[عدد الايام ]]*65","v":585},null,null,{"$f":"Table1[[#This Row],[المرتب ]]-(Table1[[#This Row],[السلف ]]+Table1[[#This Row],[الخصم ]])","v":585}]
["احمد حسن سعد محمد مبروك",{"$f":"SUM(Sheet2!C27:AF27)","v":2},{"$f":"Table1[[#This Row],[عدد الايام ]]*65","v":130},null,null,{"$f":"Table1[[#This Row],[المرتب ]]-(Table1[[#This Row],[السلف ]]+Table1[[#This Row],[الخصم ]])","v":130}]
["احمد حسن طه محمد",{"$f":"SUM(Sheet2!C28:AF28)","v":2},{"$f":"Table1[[#This Row],[عدد الايام ]]*65","v":130},null,null,{"$f":"Table1[[#This Row],[المرتب ]]-(Table1[[#This Row],[السلف ]]+Table1[[#This Row],[الخصم ]])","v":130}]
["احمد حسنين ابراهيم",{"$f":"SUM(Sheet2!C29:AF29)","v":19},{"$f":"Table1[[#This Row],[عدد الايام ]]*65","v":1235},null,null,{"$f":"Table1[[#This Row],[المرتب ]]-(Table1[[#This Row],[السلف ]]+Table1[[#This Row],[الخصم ]])","v":1235}]
["احمد حسين مبروك حسين",{"$f":"SUM(Sheet2!C30:AF30)","v":6},{"$f":"Table1[[#This Row],[عدد الايام ]]*65","v":390},null,null,{"$f":"Table1[[#This Row],[المرتب ]]-(Table1[[#This Row],[السلف ]]+Table1[[#This Row],[الخصم ]])","v":390}]
["احمد خليل عثمان البربري",{"$f":"SUM(Sheet2!C31:AF31)","v":1},{"$f":"Table1[[#This Row],[عدد الايام ]]*65","v":65},null,null,{"$f":"Table1[[#This Row],[المرتب ]]-(Table1[[#This Row],[السلف ]]+Table1[[#This Row],[الخصم ]])","v":65}]
["احمد خميس محمود عبدالنبي",{"$f":"SUM(Sheet2!C32:AF32)","v":44},{"$f":"Table1[[#This Row],[عدد الايام ]]*65","v":2860},null,null,{"$f":"Table1[[#This Row],[المرتب ]]-(Table1[[#This Row],[السلف ]]+Table1[[#This Row],[الخصم ]])","v":2860}]
["احمد رجب مرشدي محمد علي",{"$f":"SUM(Sheet2!C33:AF33)","v":17},{"$f":"Table1[[#This Row],[عدد الايام ]]*65","v":1105},null,null,{"$f":"Table1[[#This Row],[المرتب ]]-(Table1[[#This Row],[السلف ]]+Table1[[#This Row],[الخصم ]])","v":1105}]
["احمد رشاد عيسي محمد",{"$f":"SUM(Sheet2!C34:AF34)","v":6},{"$f":"Table1[[#This Row],[عدد الايام ]]*65","v":390},null,null,{"$f":"Table1[[#This Row],[المرتب ]]-(Table1[[#This Row],[السلف ]]+Table1[[#This Row],[الخصم ]])","v":390}]
["احمد رضا حلمي عبدالوهاب",{"$f":"SUM(Sheet2!C35:AF35)","v":6},{"$f":"Table1[[#This Row],[عدد الايام ]]*65","v":390},null,null,{"$f":"Table1[[#This Row],[المرتب ]]-(Table1[[#This Row],[السلف ]]+Table1[[#This Row],[الخصم ]])","v":390}]
["احمد زغلول احمد القماش",{"$f":"SUM(Sheet2!C36:AF36)","v":8},{"$f":"Table1[[#This Row],[عدد الايام ]]*65","v":520},null,null,{"$f":"Table1[[#This Row],[المرتب ]]-(Table1[[#This Row],[السلف ]]+Table1[[#This Row],[الخصم ]])","v":520}]
["احمد سامي السيد احمد",{"$f":"SUM(Sheet2!C37:AF37)","v":4},{"$f":"Table1[[#This Row],[عدد الايام ]]*65","v":260},null,null,{"$f":"Table1[[#This Row],[المرتب ]]-(Table1[[#This Row],[السلف ]]+Table1[[#This Row],[الخصم ]])","v":260}]
["احمد سلامه رمضان",{"$f":"SUM(Sheet2!C38:AF38)","v":6},{"$f":"Table1[[#This Row],[عدد الايام ]]*65","v":390},null,null,{"$f":"Table1[[#This Row],[المرتب ]]-(Table1[[#This Row],[السلف ]]+Table1[[#This Row],[الخصم ]])","v":390}]
["احمد صلاح محمود علي ",{"$f":"SUM(Sheet2!C39:AF39)","v":22},{"$f":"Table1[[#This Row],[عدد الايام ]]*65","v":1430},null,null,{"$f":"Table1[[#This Row],[المرتب ]]-(Table1[[#This Row],[السلف ]]+Table1[[#This Row],[الخصم ]])","v":1430}]
["احمد عادل فتحي محمد",{"$f":"SUM(Sheet2!C40:AF40)","v":1},{"$f":"Table1[[#This Row],[عدد الايام ]]*65","v":65},null,null,{"$f":"Table1[[#This Row],[المرتب ]]-(Table1[[#This Row],[السلف ]]+Table1[[#This Row],[الخصم ]])","v":65}]
["احمد عبدالباسط محمد الطباخ",{"$f":"SUM(Sheet2!C41:AF41)","v":1},{"$f":"Table1[[#This Row],[عدد الايام ]]*65","v":65},null,null,{"$f":"Table1[[#This Row],[المرتب ]]-(Table1[[#This Row],[السلف ]]+Table1[[#This Row],[الخصم ]])","v":65}]
["احمد عبدالتواب احمد سالمان",{"$f":"SUM(Sheet2!C42:AF42)","v":5},{"$f":"Table1[[#This Row],[عدد الايام ]]*65","v":325},null,null,{"$f":"Table1[[#This Row],[المرتب ]]-(Table1[[#This Row],[السلف ]]+Table1[[#This Row],[الخصم ]])","v":325}]
["احمد عبدالحميد حسن",{"$f":"SUM(Sheet2!C43:AF43)","v":10},{"$f":"Table1[[#This Row],[عدد الايام ]]*65","v":650},null,null,{"$f":"Table1[[#This Row],[المرتب ]]-(Table1[[#This Row],[السلف ]]+Table1[[#This Row],[الخصم ]])","v":650}]
["احمد عبدالحميد عبدالمنصف",{"$f":"SUM(Sheet2!C44:AF44)","v":1},{"$f":"Table1[[#This Row],[عدد الايام ]]*65","v":65},null,null,{"$f":"Table1[[#This Row],[المرتب ]]-(Table1[[#This Row],[السلف ]]+Table1[[#This Row],[الخصم ]])","v":65}]
["احمد عبدالرحمن حسن",{"$f":"SUM(Sheet2!C45:AF45)","v":0},{"$f":"Table1[[#This Row],[عدد الايام ]]*65","v":0},null,null,{"$f":"Table1[[#This Row],[المرتب ]]-(Table1[[#This Row],[السلف ]]+Table1[[#This Row],[الخصم ]])","v":0}]
["احمد عبدالعزيز عبدالمقصود",{"$f":"SUM(Sheet2!C46:AF46)","v":45},{"$f":"Table1[[#This Row],[عدد الايام ]]*65","v":2925},null,null,{"$f":"Table1[[#This Row],[المرتب ]]-(Table1[[#This Row],[السلف ]]+Table1[[#This Row],[الخصم ]])","v":2925}]
["احمد عبدالله كامل عبدالعزيز",{"$f":"SUM(Sheet2!C47:AF47)","v":1},{"$f":"Table1[[#This Row],[عدد الايام ]]*65","v":65},null,null,{"$f":"Table1[[#This Row],[المرتب ]]-(Table1[[#This Row],[السلف ]]+Table1[[#This Row],[الخصم ]])","v":65}]
["احمد عبدالمولي محمد عبدالغفار",{"$f":"SUM(Sheet2!C48:AF48)","v":1},{"$f":"Table1[[#This Row],[عدد الايام ]]*65","v":65},null,null,{"$f":"Table1[[#This Row],[المرتب ]]-(Table1[[#This Row],[السلف ]]+Table1[[#This Row],[الخصم ]])","v":65}]
["احمد فتحي ابراهيم سلامه",{"$f":"SUM(Sheet2!C49:AF49)","v":17},{"$f":"Table1[[#This Row],[عدد الايام ]]*65","v":1105},null,null,{"$f":"Table1[[#This Row],[المرتب ]]-(Table1[[#This Row],[السلف ]]+Table1[[#This Row],[الخصم ]])","v":1105}]
["احمد فهمي علاء عبدالسلام",{"$f":"SUM(Sheet2!C50:AF50)","v":1},{"$f":"Table1[[#This Row],[عدد الايام ]]*65","v":65},null,null,{"$f":"Table1[[#This Row],[المرتب ]]-(Table1[[#This Row],[السلف ]]+Table1[[#This Row],[الخصم ]])","v":65}]
["احمد فهمي علي سلام",{"$f":"SUM(Sheet2!C51:AF51)","v":2},{"$f":"Table1[[#This Row],[عدد الايام ]]*65","v":130},null,null,{"$f":"Table1[[#This Row],[المرتب ]]-(Table1[[#This Row],[السلف ]]+Table1[[#This Row],[الخصم ]])","v":130}]
["احمد مجدي احمد الشرقاوي",{"$f":"SUM(Sheet2!C52:AF52)","v":2},{"$f":"Table1[[#This Row],[عدد الايام ]]*65","v":130},null,null,{"$f":"Table1[[#This Row],[المرتب ]]-(Table1[[#This Row],[السلف ]]+Table1[[#This Row],[الخصم ]])","v":130}]
["احمد محسن سعد محمد مبروك",{"$f":"SUM(Sheet2!C53:AF53)","v":18},{"$f":"Table1[[#This Row],[عدد الايام ]]*65","v":1170},null,null,{"$f":"Table1[[#This Row],[المرتب ]]-(Table1[[#This Row],[السلف ]]+Table1[[#This Row],[الخصم ]])","v":1170}]
["احمد محمد احمد حسن",{"$f":"SUM(Sheet2!C54:AF54)","v":21},{"$f":"Table1[[#This Row],[عدد الايام ]]*65","v":1365},null,null,{"$f":"Table1[[#This Row],[المرتب ]]-(Table1[[#This Row],[السلف ]]+Table1[[#This Row],[الخصم ]])","v":1365}]
["احمد محمد جاد الضي",{"$f":"SUM(Sheet2!C55:AF55)","v":1},{"$f":"Table1[[#This Row],[عدد الايام ]]*65","v":65},null,null,{"$f":"Table1[[#This Row],[المرتب ]]-(Table1[[#This Row],[السلف ]]+Table1[[#This Row],[الخصم ]])","v":65}]
["احمد محمد جمعه علي موسي",{"$f":"SUM(Sheet2!C56:AF56)","v":7},{"$f":"Table1[[#This Row],[عدد الايام ]]*65","v":455},null,null,{"$f":"Table1[[#This Row],[المرتب ]]-(Table1[[#This Row],[السلف ]]+Table1[[#This Row],[الخصم ]])","v":455}]
["احمد محمد حمد عبدالسيد",{"$f":"SUM(Sheet2!C57:AF57)","v":27},{"$f":"Table1[[#This Row],[عدد الايام ]]*65","v":1755},null,null,{"$f":"Table1[[#This Row],[المرتب ]]-(Table1[[#This Row],[السلف ]]+Table1[[#This Row],[الخصم ]])","v":1755}]
["احمد محمد عبدالعزيز زنون",{"$f":"SUM(Sheet2!C58:AF58)","v":2},{"$f":"Table1[[#This Row],[عدد الايام ]]*65","v":130},null,null,{"$f":"Table1[[#This Row],[المرتب ]]-(Table1[[#This Row],[السلف ]]+Table1[[#This Row],[الخصم ]])","v":130}]
["احمد محمد عبدالفتاح اسماعيل",{"$f":"SUM(Sheet2!C59:AF59)","v":8},{"$f":"Table1[[#This Row],[عدد الايام ]]*65","v":520},null,null,{"$f":"Table1[[#This Row],[المرتب ]]-(Table1[[#This Row],[السلف ]]+Table1[[#This Row],[الخصم ]])","v":520}]
["احمد محمد عبدالله سيد احمد",{"$f":"SUM(Sheet2!C60:AF60)","v":13},{"$f":"Table1[[#This Row],[عدد الايام ]]*65","v":845},null,null,{"$f":"Table1[[#This Row],[المرتب ]]-(Table1[[#This Row],[السلف ]]+Table1[[#This Row],[الخصم ]])","v":845}]
["احمد محمد عبدالله محمد",{"$f":"SUM(Sheet2!C61:AF61)","v":2},{"$f":"Table1[[#This Row],[عدد الايام ]]*65","v":130},null,null,{"$f":"Table1[[#This Row],[المرتب ]]-(Table1[[#This Row],[السلف ]]+Table1[[#This Row],[الخصم ]])","v":130}]
["احمد محمد عبدالمقصود",{"$f":"SUM(Sheet2!C62:AF62)","v":2},{"$f":"Table1[[#This Row],[عدد الايام ]]*65","v":130},null,null,{"$f":"Table1[[#This Row],[المرتب ]]-(Table1[[#This Row],[السلف ]]+Table1[[#This Row],[الخصم ]])","v":130}]
["احمد محمد عبدالمنعم عثمان  الجندي",{"$f":"SUM(Sheet2!C63:AF63)","v":3},{"$f":"Table1[[#This Row],[عدد الايام ]]*65","v":195},null,null,{"$f":"Table1[[#This Row],[المرتب ]]-(Table1[[#This Row],[السلف ]]+Table1[[#This Row],[الخصم ]])","v":195}]
["احمد محمد علي محمد علي",{"$f":"SUM(Sheet2!C64:AF64)","v":3},{"$f":"Table1[[#This Row],[عدد الايام ]]*65","v":195},null,null,{"$f":"Table1[[#This Row],[المرتب ]]-(Table1[[#This Row],[السلف ]]+Table1[[#This Row],[الخصم ]])","v":195}]
["احمد محمد محمد زيدان",{"$f":"SUM(Sheet2!C65:AF65)","v":9},{"$f":"Table1[[#This Row],[عدد الايام ]]*65","v":585},null,null,{"$f":"Table1[[#This Row],[المرتب ]]-(Table1[[#This Row],[السلف ]]+Table1[[#This Row],[الخصم ]])","v":585}]
["احمد محمد محمد عبدالسيد",{"$f":"SUM(Sheet2!C66:AF66)","v":2},{"$f":"Table1[[#This Row],[عدد الايام ]]*65","v":130},null,null,{"$f":"Table1[[#This Row],[المرتب ]]-(Table1[[#This Row],[السلف ]]+Table1[[#This Row],[الخصم ]])","v":130}]
["احمد محمود احمد حبيب",{"$f":"SUM(Sheet2!C67:AF67)","v":6},{"$f":"Table1[[#This Row],[عدد الايام ]]*65","v":390},null,null,{"$f":"Table1[[#This Row],[المرتب ]]-(Table1[[#This Row],[السلف ]]+Table1[[#This Row],[الخصم ]])","v":390}]
["احمد محمود عبدالغفار",{"$f":"SUM(Sheet2!C68:AF68)","v":7},{"$f":"Table1[[#This Row],[عدد الايام ]]*65","v":455},null,null,{"$f":"Table1[[#This Row],[المرتب ]]-(Table1[[#This Row],[السلف ]]+Table1[[#This Row],[الخصم ]])","v":455}]
["احمد محمود محمد حبيش",{"$f":"SUM(Sheet2!C69:AF69)","v":2},{"$f":"Table1[[#This Row],[عدد الايام ]]*65","v":130},null,null,{"$f":"Table1[[#This Row],[المرتب ]]-(Table1[[#This Row],[السلف ]]+Table1[[#This Row],[الخصم ]])","v":130}]
["احمد محمود محمد حسين",{"$f":"SUM(Sheet2!C70:AF70)","v":16},{"$f":"Table1[[#This Row],[عدد الايام ]]*65","v":1040},null,null,{"$f":"Table1[[#This Row],[المرتب ]]-(Table1[[#This Row],[السلف ]]+Table1[[#This Row],[الخصم ]])","v":1040}]
["احمد محمود مصطفي علي",{"$f":"SUM(Sheet2!C71:AF71)","v":29},{"$f":"Table1[[#This Row],[عدد الايام ]]*65","v":1885},null,null,{"$f":"Table1[[#This Row],[المرتب ]]-(Table1[[#This Row],[السلف ]]+Table1[[#This Row],[الخصم ]])","v":1885}]
["احمد مرزوق عبدالحفيظ امين",{"$f":"SUM(Sheet2!C72:AF72)","v":1},{"$f":"Table1[[#This Row],[عدد الايام ]]*65","v":65},null,null,{"$f":"Table1[[#This Row],[المرتب ]]-(Table1[[#This Row],[السلف ]]+Table1[[#This Row],[الخصم ]])","v":65}]
["احمد منير محتمد سعد",{"$f":"SUM(Sheet2!C73:AF73)","v":19},{"$f":"Table1[[#This Row],[عدد الايام ]]*65","v":1235},null,null,{"$f":"Table1[[#This Row],[المرتب ]]-(Table1[[#This Row],[السلف ]]+Table1[[#This Row],[الخصم ]])","v":1235}]
["ادم رمضان عوض محمد",{"$f":"SUM(Sheet2!C74:AF74)","v":10},{"$f":"Table1[[#This Row],[عدد الايام ]]*65","v":650},null,null,{"$f":"Table1[[#This Row],[المرتب ]]-(Table1[[#This Row],[السلف ]]+Table1[[#This Row],[الخصم ]])","v":650}]
["ادهم رمضان عوض محمد",{"$f":"SUM(Sheet2!C75:AF75)","v":17},{"$f":"Table1[[#This Row],[عدد الايام ]]*65","v":1105},null,null,{"$f":"Table1[[#This Row],[المرتب ]]-(Table1[[#This Row],[السلف ]]+Table1[[#This Row],[الخصم ]])","v":1105}]
["اسامه جمعه عبدالعظيم",{"$f":"SUM(Sheet2!C76:AF76)","v":5},{"$f":"Table1[[#This Row],[عدد الايام ]]*65","v":325},null,null,{"$f":"Table1[[#This Row],[المرتب ]]-(Table1[[#This Row],[السلف ]]+Table1[[#This Row],[الخصم ]])","v":325}]
["اسامه عبدالله محمود عبدالله",{"$f":"SUM(Sheet2!C77:AF77)","v":19},{"$f":"Table1[[#This Row],[عدد الايام ]]*65","v":1235},null,null,{"$f":"Table1[[#This Row],[المرتب ]]-(Table1[[#This Row],[السلف ]]+Table1[[#This Row],[الخصم ]])","v":1235}]
["اسامه محمد عبدالمنعم الغريب",{"$f":"SUM(Sheet2!C78:AF78)","v":0},{"$f":"Table1[[#This Row],[عدد الايام ]]*65","v":0},null,null,{"$f":"Table1[[#This Row],[المرتب ]]-(Table1[[#This Row],[السلف ]]+Table1[[#This Row],[الخصم ]])","v":0}]
["اسلام احمد رجب عيد",{"$f":"SUM(Sheet2!C79:AF79)","v":0},{"$f":"Table1[[#This Row],[عدد الايام ]]*65","v":0},null,null,{"$f":"Table1[[#This Row],[المرتب ]]-(Table1[[#This Row],[السلف ]]+Table1[[#This Row],[الخصم ]])","v":0}]
["اسلام طارق عبدالفتاح",{"$f":"SUM(Sheet2!C80:AF80)","v":2},{"$f":"Table1[[#This Row],[عدد الايام ]]*65","v":130},null,null,{"$f":"Table1[[#This Row],[المرتب ]]-(Table1[[#This Row],[السلف ]]+Table1[[#This Row],[الخصم ]])","v":130}]
["اسلام محمد عبدالرحيم",{"$f":"SUM(Sheet2!C81:AF81)","v":44},{"$f":"Table1[[#This Row],[عدد الايام ]]*65","v":2860},null,null,{"$f":"Table1[[#This Row],[المرتب ]]-(Table1[[#This Row],[السلف ]]+Table1[[#This Row],[الخصم ]])","v":2860}]
["اسلام محمود ابراهيم حسن",{"$f":"SUM(Sheet2!C82:AF82)","v":33},{"$f":"Table1[[#This Row],[عدد الايام ]]*65","v":2145},null,null,{"$f":"Table1[[#This Row],[المرتب ]]-(Table1[[#This Row],[السلف ]]+Table1[[#This Row],[الخصم ]])","v":2145}]
["اسلام مسعد عبدالعزيزسليمان",{"$f":"SUM(Sheet2!C83:AF83)","v":5},{"$f":"Table1[[#This Row],[عدد الايام ]]*65","v":325},null,null,{"$f":"Table1[[#This Row],[المرتب ]]-(Table1[[#This Row],[السلف ]]+Table1[[#This Row],[الخصم ]])","v":325}]
["اسلام مصطفي علي ابوالحديد",{"$f":"SUM(Sheet2!C84:AF84)","v":4},{"$f":"Table1[[#This Row],[عدد الايام ]]*65","v":260},null,null,{"$f":"Table1[[#This Row],[المرتب ]]-(Table1[[#This Row],[السلف ]]+Table1[[#This Row],[الخصم ]])","v":260}]
["اسلام مصطفي محمد عبدالعزيز",{"$f":"SUM(Sheet2!C85:AF85)","v":36},{"$f":"Table1[[#This Row],[عدد الايام ]]*65","v":2340},null,null,{"$f":"Table1[[#This Row],[المرتب ]]-(Table1[[#This Row],[السلف ]]+Table1[[#This Row],[الخصم ]])","v":2340}]
["اسماعيل احمد محمود احمد",{"$f":"SUM(Sheet2!C86:AF86)","v":26},{"$f":"Table1[[#This Row],[عدد الايام ]]*65","v":1690},null,null,{"$f":"Table1[[#This Row],[المرتب ]]-(Table1[[#This Row],[السلف ]]+Table1[[#This Row],[الخصم ]])","v":1690}]
["اسماعيل محمد اسماعيل الطنطي",{"$f":"SUM(Sheet2!C87:AF87)","v":36},{"$f":"Table1[[#This Row],[عدد الايام ]]*65","v":2340},null,null,{"$f":"Table1[[#This Row],[المرتب ]]-(Table1[[#This Row],[السلف ]]+Table1[[#This Row],[الخصم ]])","v":2340}]
["اسماعيل مشحوت محمد عيد",{"$f":"SUM(Sheet2!C88:AF88)","v":26},{"$f":"Table1[[#This Row],[عدد الايام ]]*65","v":1690},null,null,{"$f":"Table1[[#This Row],[المرتب ]]-(Table1[[#This Row],[السلف ]]+Table1[[#This Row],[الخصم ]])","v":1690}]
["اشرف صادق عطيه",{"$f":"SUM(Sheet2!C89:AF89)","v":3},{"$f":"Table1[[#This Row],[عدد الايام ]]*65","v":195},null,null,{"$f":"Table1[[#This Row],[المرتب ]]-(Table1[[#This Row],[السلف ]]+Table1[[#This Row],[الخصم ]])","v":195}]
["اكرامي محمد مجاور حموده",{"$f":"SUM(Sheet2!C90:AF90)","v":15},{"$f":"Table1[[#This Row],[عدد الايام ]]*65","v":975},null,null,{"$f":"Table1[[#This Row],[المرتب ]]-(Table1[[#This Row],[السلف ]]+Table1[[#This Row],[الخصم ]])","v":975}]
["اكرامي محمد محمد موسي",{"$f":"SUM(Sheet2!C91:AF91)","v":6},{"$f":"Table1[[#This Row],[عدد الايام ]]*65","v":390},null,null,{"$f":"Table1[[#This Row],[المرتب ]]-(Table1[[#This Row],[السلف ]]+Table1[[#This Row],[الخصم ]])","v":390}]
["السيد عبدالله عمر مصباح",{"$f":"SUM(Sheet2!C92:AF92)","v":5},{"$f":"Table1[[#This Row],[عدد الايام ]]*65","v":325},null,null,{"$f":"Table1[[#This Row],[المرتب ]]-(Table1[[#This Row],[السلف ]]+Table1[[#This Row],[الخصم ]])","v":325}]
["السيد مبارك السيد علي الكسبي",{"$f":"SUM(Sheet2!C93:AF93)","v":7},{"$f":"Table1[[#This Row],[عدد الايام ]]*65","v":455},null,null,{"$f":"Table1[[#This Row],[المرتب ]]-(Table1[[#This Row],[السلف ]]+Table1[[#This Row],[الخصم ]])","v":455}]
["السيد محمود احمد عبداللطيف",{"$f":"SUM(Sheet2!C94:AF94)","v":14},{"$f":"Table1[[#This Row],[عدد الايام ]]*65","v":910},null,null,{"$f":"Table1[[#This Row],[المرتب ]]-(Table1[[#This Row],[السلف ]]+Table1[[#This Row],[الخصم ]])","v":910}]
["السيد مسعود السيد محمد",{"$f":"SUM(Sheet2!C95:AF95)","v":11},{"$f":"Table1[[#This Row],[عدد الايام ]]*65","v":715},null,null,{"$f":"Table1[[#This Row],[المرتب ]]-(Table1[[#This Row],[السلف ]]+Table1[[#This Row],[الخصم ]])","v":715}]
["الشحات حميده مبروك اسماعيل",{"$f":"SUM(Sheet2!C96:AF96)","v":3},{"$f":"Table1[[#This Row],[عدد الايام ]]*65","v":195},null,null,{"$f":"Table1[[#This Row],[المرتب ]]-(Table1[[#This Row],[السلف ]]+Table1[[#This Row],[الخصم ]])","v":195}]
["انس سعد مصطفي سلامه",{"$f":"SUM(Sheet2!C97:AF97)","v":7},{"$f":"Table1[[#This Row],[عدد الايام ]]*65","v":455},null,null,{"$f":"Table1[[#This Row],[المرتب ]]-(Table1[[#This Row],[السلف ]]+Table1[[#This Row],[الخصم ]])","v":455}]
["انور عبدالسلام احمد العجوز",{"$f":"SUM(Sheet2!C98:AF98)","v":26},{"$f":"Table1[[#This Row],[عدد الايام ]]*65","v":1690},null,null,{"$f":"Table1[[#This Row],[المرتب ]]-(Table1[[#This Row],[السلف ]]+Table1[[#This Row],[الخصم ]])","v":1690}]
["ايمن السيد محمد ابوزيد",{"$f":"SUM(Sheet2!C99:AF99)","v":2},{"$f":"Table1[[#This Row],[عدد الايام ]]*65","v":130},null,null,{"$f":"Table1[[#This Row],[المرتب ]]-(Table1[[#This Row],[السلف ]]+Table1[[#This Row],[الخصم ]])","v":130}]
["ايمن جمال السيد السيد مشحوت",{"$f":"SUM(Sheet2!C100:AF100)","v":27},{"$f":"Table1[[#This Row],[عدد الايام ]]*65","v":1755},null,null,{"$f":"Table1[[#This Row],[المرتب ]]-(Table1[[#This Row],[السلف ]]+Table1[[#This Row],[الخصم ]])","v":1755}]
["ايمن عبدالعزيز محمد زايد",{"$f":"SUM(Sheet2!C101:AF101)","v":1},{"$f":"Table1[[#This Row],[عدد الايام ]]*65","v":65},null,null,{"$f":"Table1[[#This Row],[المرتب ]]-(Table1[[#This Row],[السلف ]]+Table1[[#This Row],[الخصم ]])","v":65}]
["ايمن محمود هاشم محمود",{"$f":"SUM(Sheet2!C102:AF102)","v":3},{"$f":"Table1[[#This Row],[عدد الايام ]]*65","v":195},null,null,{"$f":"Table1[[#This Row],[المرتب ]]-(Table1[[#This Row],[السلف ]]+Table1[[#This Row],[الخصم ]])","v":195}]
["ايهاب حسن عبدالنطلب غنيم",{"$f":"SUM(Sheet2!C103:AF103)","v":5},{"$f":"Table1[[#This Row],[عدد الايام ]]*65","v":325},null,null,{"$f":"Table1[[#This Row],[المرتب ]]-(Table1[[#This Row],[السلف ]]+Table1[[#This Row],[الخصم ]])","v":325}]
["ايهاب فتحي مصطفي",{"$f":"SUM(Sheet2!C104:AF104)","v":0},{"$f":"Table1[[#This Row],[عدد الايام ]]*65","v":0},null,null,{"$f":"Table1[[#This Row],[المرتب ]]-(Table1[[#This Row],[السلف ]]+Table1[[#This Row],[الخصم ]])","v":0}]
["باسم فاروق محمود همام",{"$f":"SUM(Sheet2!C105:AF105)","v":29},{"$f":"Table1[[#This Row],[عدد الايام ]]*65","v":1885},null,null,{"$f":"Table1[[#This Row],[المرتب ]]-(Table1[[#This Row],[السلف ]]+Table1[[#This Row],[الخصم ]])","v":1885}]
["باسم نصر ابراهيم اسماعيل",{"$f":"SUM(Sheet2!C106:AF106)","v":13},{"$f":"Table1[[#This Row],[عدد الايام ]]*65","v":845},null,null,{"$f":"Table1[[#This Row],[المرتب ]]-(Table1[[#This Row],[السلف ]]+Table1[[#This Row],[الخصم ]])","v":845}]
["بدري عبدالله بدري عبدالله",{"$f":"SUM(Sheet2!C107:AF107)","v":6},{"$f":"Table1[[#This Row],[عدد الايام ]]*65","v":390},null,null,{"$f":"Table1[[#This Row],[المرتب ]]-(Table1[[#This Row],[السلف ]]+Table1[[#This Row],[الخصم ]])","v":390}]
["بلال جمعه عمر امين",{"$f":"SUM(Sheet2!C108:AF108)","v":19},{"$f":"Table1[[#This Row],[عدد الايام ]]*65","v":1235},null,null,{"$f":"Table1[[#This Row],[المرتب ]]-(Table1[[#This Row],[السلف ]]+Table1[[#This Row],[الخصم ]])","v":1235}]
["بلال رزق عبدالعزيز",{"$f":"SUM(Sheet2!C109:AF109)","v":19},{"$f":"Table1[[#This Row],[عدد الايام ]]*65","v":1235},null,null,{"$f":"Table1[[#This Row],[المرتب ]]-(Table1[[#This Row],[السلف ]]+Table1[[#This Row],[الخصم ]])","v":1235}]
["بلال عبدالعزيز احمد",{"$f":"SUM(Sheet2!C110:AF110)","v":1},{"$f":"Table1[[#This Row],[عدد الايام ]]*65","v":65},null,null,{"$f":"Table1[[#This Row],[المرتب ]]-(Table1[[#This Row],[السلف ]]+Table1[[#This Row],[الخصم ]])","v":65}]
["بلال عطيه على احمد",{"$f":"SUM(Sheet2!C111:AF111)","v":30},{"$f":"Table1[[#This Row],[عدد الايام ]]*65","v":1950},null,null,{"$f":"Table1[[#This Row],[المرتب ]]-(Table1[[#This Row],[السلف ]]+Table1[[#This Row],[الخصم ]])","v":1950}]
["بلال محمد عبدالتواب",{"$f":"SUM(Sheet2!C112:AF112)","v":1},{"$f":"Table1[[#This Row],[عدد الايام ]]*65","v":65},null,null,{"$f":"Table1[[#This Row],[المرتب ]]-(Table1[[#This Row],[السلف ]]+Table1[[#This Row],[الخصم ]])","v":65}]
["بلال محمد عبدالعزيز محمد علي",{"$f":"SUM(Sheet2!C113:AF113)","v":47},{"$f":"Table1[[#This Row],[عدد الايام ]]*65","v":3055},null,null,{"$f":"Table1[[#This Row],[المرتب ]]-(Table1[[#This Row],[السلف ]]+Table1[[#This Row],[الخصم ]])","v":3055}]
["بيشوي رضا جرجس سعد",{"$f":"SUM(Sheet2!C114:AF114)","v":13},{"$f":"Table1[[#This Row],[عدد الايام ]]*65","v":845},null,null,{"$f":"Table1[[#This Row],[المرتب ]]-(Table1[[#This Row],[السلف ]]+Table1[[#This Row],[الخصم ]])","v":845}]
["جابر صبري محمود اسماعيل",{"$f":"SUM(Sheet2!C115:AF115)","v":1},{"$f":"Table1[[#This Row],[عدد الايام ]]*65","v":65},null,null,{"$f":"Table1[[#This Row],[المرتب ]]-(Table1[[#This Row],[السلف ]]+Table1[[#This Row],[الخصم ]])","v":65}]
["جاد رزق عبدالعزيز احمد شعيشع",{"$f":"SUM(Sheet2!C116:AF116)","v":1},{"$f":"Table1[[#This Row],[عدد الايام ]]*65","v":65},null,null,{"$f":"Table1[[#This Row],[المرتب ]]-(Table1[[#This Row],[السلف ]]+Table1[[#This Row],[الخصم ]])","v":65}]
["جرجس موريس وهيب",{"$f":"SUM(Sheet2!C117:AF117)","v":1},{"$f":"Table1[[#This Row],[عدد الايام ]]*65","v":65},null,null,{"$f":"Table1[[#This Row],[المرتب ]]-(Table1[[#This Row],[السلف ]]+Table1[[#This Row],[الخصم ]])","v":65}]
["جمعه حمدي زكي محمد",{"$f":"SUM(Sheet2!C118:AF118)","v":10},{"$f":"Table1[[#This Row],[عدد الايام ]]*65","v":650},null,null,{"$f":"Table1[[#This Row],[المرتب ]]-(Table1[[#This Row],[السلف ]]+Table1[[#This Row],[الخصم ]])","v":650}]
["حازم عبدالجليل احمد",{"$f":"SUM(Sheet2!C119:AF119)","v":2},{"$f":"Table1[[#This Row],[عدد الايام ]]*65","v":130},null,null,{"$f":"Table1[[#This Row],[المرتب ]]-(Table1[[#This Row],[السلف ]]+Table1[[#This Row],[الخصم ]])","v":130}]
["حسام عصام فتحي محمد",{"$f":"SUM(Sheet2!C120:AF120)","v":4},{"$f":"Table1[[#This Row],[عدد الايام ]]*65","v":260},null,null,{"$f":"Table1[[#This Row],[المرتب ]]-(Table1[[#This Row],[السلف ]]+Table1[[#This Row],[الخصم ]])","v":260}]
["حسام فتحي احمد الشامي",{"$f":"SUM(Sheet2!C121:AF121)","v":4},{"$f":"Table1[[#This Row],[عدد الايام ]]*65","v":260},null,null,{"$f":"Table1[[#This Row],[المرتب ]]-(Table1[[#This Row],[السلف ]]+Table1[[#This Row],[الخصم ]])","v":260}]
["حسام كريم ابراهيم السيد",{"$f":"SUM(Sheet2!C122:AF122)","v":3},{"$f":"Table1[[#This Row],[عدد الايام ]]*65","v":195},null,null,{"$f":"Table1[[#This Row],[المرتب ]]-(Table1[[#This Row],[السلف ]]+Table1[[#This Row],[الخصم ]])","v":195}]
["حسام محمد محمود يوسف",{"$f":"SUM(Sheet2!C123:AF123)","v":4},{"$f":"Table1[[#This Row],[عدد الايام ]]*65","v":260},null,null,{"$f":"Table1[[#This Row],[المرتب ]]-(Table1[[#This Row],[السلف ]]+Table1[[#This Row],[الخصم ]])","v":260}]
["حسام نبيل محمود ",{"$f":"SUM(Sheet2!C124:AF124)","v":3},{"$f":"Table1[[#This Row],[عدد الايام ]]*65","v":195},null,null,{"$f":"Table1[[#This Row],[المرتب ]]-(Table1[[#This Row],[السلف ]]+Table1[[#This Row],[الخصم ]])","v":195}]
["حسب النبي سعيد فتحي",{"$f":"SUM(Sheet2!C125:AF125)","v":20},{"$f":"Table1[[#This Row],[عدد الايام ]]*65","v":1300},null,null,{"$f":"Table1[[#This Row],[المرتب ]]-(Table1[[#This Row],[السلف ]]+Table1[[#This Row],[الخصم ]])","v":1300}]
["حسن الحسيني مسعد",{"$f":"SUM(Sheet2!C126:AF126)","v":6},{"$f":"Table1[[#This Row],[عدد الايام ]]*65","v":390},null,null,{"$f":"Table1[[#This Row],[المرتب ]]-(Table1[[#This Row],[السلف ]]+Table1[[#This Row],[الخصم ]])","v":390}]
["حسن رمضان السيد سليم",{"$f":"SUM(Sheet2!C127:AF127)","v":1},{"$f":"Table1[[#This Row],[عدد الايام ]]*65","v":65},null,null,{"$f":"Table1[[#This Row],[المرتب ]]-(Table1[[#This Row],[السلف ]]+Table1[[#This Row],[الخصم ]])","v":65}]
["حسن سامي سعيد",{"$f":"SUM(Sheet2!C128:AF128)","v":4},{"$f":"Table1[[#This Row],[عدد الايام ]]*65","v":260},null,null,{"$f":"Table1[[#This Row],[المرتب ]]-(Table1[[#This Row],[السلف ]]+Table1[[#This Row],[الخصم ]])","v":260}]
["حسن سامي سعيد الكر",{"$f":"SUM(Sheet2!C129:AF129)","v":2},{"$f":"Table1[[#This Row],[عدد الايام ]]*65","v":130},null,null,{"$f":"Table1[[#This Row],[المرتب ]]-(Table1[[#This Row],[السلف ]]+Table1[[#This Row],[الخصم ]])","v":130}]
["حسن عبدالغفار محمد عبدالعليم",{"$f":"SUM(Sheet2!C130:AF130)","v":4},{"$f":"Table1[[#This Row],[عدد الايام ]]*65","v":260},null,null,{"$f":"Table1[[#This Row],[المرتب ]]-(Table1[[#This Row],[السلف ]]+Table1[[#This Row],[الخصم ]])","v":260}]
["حسني عزالدين عبدالفضيل",{"$f":"SUM(Sheet2!C131:AF131)","v":19},{"$f":"Table1[[#This Row],[عدد الايام ]]*65","v":1235},null,null,{"$f":"Table1[[#This Row],[المرتب ]]-(Table1[[#This Row],[السلف ]]+Table1[[#This Row],[الخصم ]])","v":1235}]
["حسين عبدالغنى السيد محمد",{"$f":"SUM(Sheet2!C132:AF132)","v":26},{"$f":"Table1[[#This Row],[عدد الايام ]]*65","v":1690},null,null,{"$f":"Table1[[#This Row],[المرتب ]]-(Table1[[#This Row],[السلف ]]+Table1[[#This Row],[الخصم ]])","v":1690}]
["حماده رجب عبدالحفيظ",{"$f":"SUM(Sheet2!C133:AF133)","v":1},{"$f":"Table1[[#This Row],[عدد الايام ]]*65","v":65},null,null,{"$f":"Table1[[#This Row],[المرتب ]]-(Table1[[#This Row],[السلف ]]+Table1[[#This Row],[الخصم ]])","v":65}]
["حماده مرعي سعد محمد",{"$f":"SUM(Sheet2!C134:AF134)","v":1},{"$f":"Table1[[#This Row],[عدد الايام ]]*65","v":65},null,null,{"$f":"Table1[[#This Row],[المرتب ]]-(Table1[[#This Row],[السلف ]]+Table1[[#This Row],[الخصم ]])","v":65}]
["خالد عوض السيد عبدالرحمن",{"$f":"SUM(Sheet2!C135:AF135)","v":13},{"$f":"Table1[[#This Row],[عدد الايام ]]*65","v":845},null,null,{"$f":"Table1[[#This Row],[المرتب ]]-(Table1[[#This Row],[السلف ]]+Table1[[#This Row],[الخصم ]])","v":845}]
["خالد محمود محمد عبداللطيف",{"$f":"SUM(Sheet2!C136:AF136)","v":16},{"$f":"Table1[[#This Row],[عدد الايام ]]*65","v":1040},null,null,{"$f":"Table1[[#This Row],[المرتب ]]-(Table1[[#This Row],[السلف ]]+Table1[[#This Row],[الخصم ]])","v":1040}]
["خيري احمد عبدالغني هنداوي",{"$f":"SUM(Sheet2!C137:AF137)","v":7},{"$f":"Table1[[#This Row],[عدد الايام ]]*65","v":455},null,null,{"$f":"Table1[[#This Row],[المرتب ]]-(Table1[[#This Row],[السلف ]]+Table1[[#This Row],[الخصم ]])","v":455}]
["درويش الجوهري ابراهيم البري",{"$f":"SUM(Sheet2!C138:AF138)","v":5},{"$f":"Table1[[#This Row],[عدد الايام ]]*65","v":325},null,null,{"$f":"Table1[[#This Row],[المرتب ]]-(Table1[[#This Row],[السلف ]]+Table1[[#This Row],[الخصم ]])","v":325}]
["درويش رافت درويش",{"$f":"SUM(Sheet2!C139:AF139)","v":45},{"$f":"Table1[[#This Row],[عدد الايام ]]*65","v":2925},null,null,{"$f":"Table1[[#This Row],[المرتب ]]-(Table1[[#This Row],[السلف ]]+Table1[[#This Row],[الخصم ]])","v":2925}]
["راجي محمد الصباحي",{"$f":"SUM(Sheet2!C140:AF140)","v":7},{"$f":"Table1[[#This Row],[عدد الايام ]]*65","v":455},null,null,{"$f":"Table1[[#This Row],[المرتب ]]-(Table1[[#This Row],[السلف ]]+Table1[[#This Row],[الخصم ]])","v":455}]
["راعي سيد علي بربر ",{"$f":"SUM(Sheet2!C141:AF141)","v":19},{"$f":"Table1[[#This Row],[عدد الايام ]]*65","v":1235},null,null,{"$f":"Table1[[#This Row],[المرتب ]]-(Table1[[#This Row],[السلف ]]+Table1[[#This Row],[الخصم ]])","v":1235}]
["رافت اشرف رفعت امين",{"$f":"SUM(Sheet2!C142:AF142)","v":13},{"$f":"Table1[[#This Row],[عدد الايام ]]*65","v":845},null,null,{"$f":"Table1[[#This Row],[المرتب ]]-(Table1[[#This Row],[السلف ]]+Table1[[#This Row],[الخصم ]])","v":845}]
["رافت كامل عبدالله  عبدالعزيز",{"$f":"SUM(Sheet2!C143:AF143)","v":1},{"$f":"Table1[[#This Row],[عدد الايام ]]*65","v":65},null,null,{"$f":"Table1[[#This Row],[المرتب ]]-(Table1[[#This Row],[السلف ]]+Table1[[#This Row],[الخصم ]])","v":65}]
["رزق علاء رجب نصر عيسي",{"$f":"SUM(Sheet2!C144:AF144)","v":3},{"$f":"Table1[[#This Row],[عدد الايام ]]*65","v":195},null,null,{"$f":"Table1[[#This Row],[المرتب ]]-(Table1[[#This Row],[السلف ]]+Table1[[#This Row],[الخصم ]])","v":195}]
["رزق محمد رزق اسماعيل",{"$f":"SUM(Sheet2!C145:AF145)","v":1},{"$f":"Table1[[#This Row],[عدد الايام ]]*65","v":65},null,null,{"$f":"Table1[[#This Row],[المرتب ]]-(Table1[[#This Row],[السلف ]]+Table1[[#This Row],[الخصم ]])","v":65}]
["رضا غريب صقر محمد",{"$f":"SUM(Sheet2!C146:AF146)","v":1},{"$f":"Table1[[#This Row],[عدد الايام ]]*65","v":65},null,null,{"$f":"Table1[[#This Row],[المرتب ]]-(Table1[[#This Row],[السلف ]]+Table1[[#This Row],[الخصم ]])","v":65}]
["رضا معوض عباس",{"$f":"SUM(Sheet2!C147:AF147)","v":2},{"$f":"Table1[[#This Row],[عدد الايام ]]*65","v":130},null,null,{"$f":"Table1[[#This Row],[المرتب ]]-(Table1[[#This Row],[السلف ]]+Table1[[#This Row],[الخصم ]])","v":130}]
["رضوان شحاته احمد",{"$f":"SUM(Sheet2!C148:AF148)","v":1},{"$f":"Table1[[#This Row],[عدد الايام ]]*65","v":65},null,null,{"$f":"Table1[[#This Row],[المرتب ]]-(Table1[[#This Row],[السلف ]]+Table1[[#This Row],[الخصم ]])","v":65}]
["رفعت اشرف رفعت امين",{"$f":"SUM(Sheet2!C149:AF149)","v":12},{"$f":"Table1[[#This Row],[عدد الايام ]]*65","v":780},null,null,{"$f":"Table1[[#This Row],[المرتب ]]-(Table1[[#This Row],[السلف ]]+Table1[[#This Row],[الخصم ]])","v":780}]
["زكريا عبدالفتاح عبدالحميد",{"$f":"SUM(Sheet2!C150:AF150)","v":26},{"$f":"Table1[[#This Row],[عدد الايام ]]*65","v":1690},null,null,{"$f":"Table1[[#This Row],[المرتب ]]-(Table1[[#This Row],[السلف ]]+Table1[[#This Row],[الخصم ]])","v":1690}]
["زياد سالم احمد فراج",{"$f":"SUM(Sheet2!C151:AF151)","v":10},{"$f":"Table1[[#This Row],[عدد الايام ]]*65","v":650},null,null,{"$f":"Table1[[#This Row],[المرتب ]]-(Table1[[#This Row],[السلف ]]+Table1[[#This Row],[الخصم ]])","v":650}]
["سامح انور طلبه عطاالله",{"$f":"SUM(Sheet2!C152:AF152)","v":9},{"$f":"Table1[[#This Row],[عدد الايام ]]*65","v":585},null,null,{"$f":"Table1[[#This Row],[المرتب ]]-(Table1[[#This Row],[السلف ]]+Table1[[#This Row],[الخصم ]])","v":585}]
["سامح عابدين محمد علي",{"$f":"SUM(Sheet2!C153:AF153)","v":5},{"$f":"Table1[[#This Row],[عدد الايام ]]*65","v":325},null,null,{"$f":"Table1[[#This Row],[المرتب ]]-(Table1[[#This Row],[السلف ]]+Table1[[#This Row],[الخصم ]])","v":325}]
["سامي صبري جبر علي",{"$f":"SUM(Sheet2!C154:AF154)","v":16},{"$f":"Table1[[#This Row],[عدد الايام ]]*65","v":1040},null,null,{"$f":"Table1[[#This Row],[المرتب ]]-(Table1[[#This Row],[السلف ]]+Table1[[#This Row],[الخصم ]])","v":1040}]
["سامي عبدالله محمد سيد احمد",{"$f":"SUM(Sheet2!C155:AF155)","v":11},{"$f":"Table1[[#This Row],[عدد الايام ]]*65","v":715},null,null,{"$f":"Table1[[#This Row],[المرتب ]]-(Table1[[#This Row],[السلف ]]+Table1[[#This Row],[الخصم ]])","v":715}]
["سامي محمد عبده السيسي",{"$f":"SUM(Sheet2!C156:AF156)","v":31},{"$f":"Table1[[#This Row],[عدد الايام ]]*65","v":2015},null,null,{"$f":"Table1[[#This Row],[المرتب ]]-(Table1[[#This Row],[السلف ]]+Table1[[#This Row],[الخصم ]])","v":2015}]
["سعد محمد سعد خرش",{"$f":"SUM(Sheet2!C157:AF157)","v":1},{"$f":"Table1[[#This Row],[عدد الايام ]]*65","v":65},null,null,{"$f":"Table1[[#This Row],[المرتب ]]-(Table1[[#This Row],[السلف ]]+Table1[[#This Row],[الخصم ]])","v":65}]
["سعودي محمد طلبه محمد",{"$f":"SUM(Sheet2!C158:AF158)","v":1},{"$f":"Table1[[#This Row],[عدد الايام ]]*65","v":65},null,null,{"$f":"Table1[[#This Row],[المرتب ]]-(Table1[[#This Row],[السلف ]]+Table1[[#This Row],[الخصم ]])","v":65}]
["سعودي محمد عطيه",{"$f":"SUM(Sheet2!C159:AF159)","v":33},{"$f":"Table1[[#This Row],[عدد الايام ]]*65","v":2145},null,null,{"$f":"Table1[[#This Row],[المرتب ]]-(Table1[[#This Row],[السلف ]]+Table1[[#This Row],[الخصم ]])","v":2145}]
["سعيد علي عبدالهادي ",{"$f":"SUM(Sheet2!C160:AF160)","v":18},{"$f":"Table1[[#This Row],[عدد الايام ]]*65","v":1170},null,null,{"$f":"Table1[[#This Row],[المرتب ]]-(Table1[[#This Row],[السلف ]]+Table1[[#This Row],[الخصم ]])","v":1170}]
["سليم اسماعيل بيومي سليم ",{"$f":"SUM(Sheet2!C161:AF161)","v":7},{"$f":"Table1[[#This Row],[عدد الايام ]]*65","v":455},null,null,{"$f":"Table1[[#This Row],[المرتب ]]-(Table1[[#This Row],[السلف ]]+Table1[[#This Row],[الخصم ]])","v":455}]
["سليم عمار رحصان عيد",{"$f":"SUM(Sheet2!C162:AF162)","v":0},{"$f":"Table1[[#This Row],[عدد الايام ]]*65","v":0},null,null,{"$f":"Table1[[#This Row],[المرتب ]]-(Table1[[#This Row],[السلف ]]+Table1[[#This Row],[الخصم ]])","v":0}]
["سيد فاروق فؤاد سعد",{"$f":"SUM(Sheet2!C163:AF163)","v":3},{"$f":"Table1[[#This Row],[عدد الايام ]]*65","v":195},null,null,{"$f":"Table1[[#This Row],[المرتب ]]-(Table1[[#This Row],[السلف ]]+Table1[[#This Row],[الخصم ]])","v":195}]
["شامل مبروك حسن محمد",{"$f":"SUM(Sheet2!C164:AF164)","v":1},{"$f":"Table1[[#This Row],[عدد الايام ]]*65","v":65},null,null,{"$f":"Table1[[#This Row],[المرتب ]]-(Table1[[#This Row],[السلف ]]+Table1[[#This Row],[الخصم ]])","v":65}]
["شريف احمد محمد عبدالله",{"$f":"SUM(Sheet2!C165:AF165)","v":19},{"$f":"Table1[[#This Row],[عدد الايام ]]*65","v":1235},null,null,{"$f":"Table1[[#This Row],[المرتب ]]-(Table1[[#This Row],[السلف ]]+Table1[[#This Row],[الخصم ]])","v":1235}]
["شريف عبدالعزيز علي هندي",{"$f":"SUM(Sheet2!C166:AF166)","v":7},{"$f":"Table1[[#This Row],[عدد الايام ]]*65","v":455},null,null,{"$f":"Table1[[#This Row],[المرتب ]]-(Table1[[#This Row],[السلف ]]+Table1[[#This Row],[الخصم ]])","v":455}]
["شريف عمر امين محمد",{"$f":"SUM(Sheet2!C167:AF167)","v":21},{"$f":"Table1[[#This Row],[عدد الايام ]]*65","v":1365},null,null,{"$f":"Table1[[#This Row],[المرتب ]]-(Table1[[#This Row],[السلف ]]+Table1[[#This Row],[الخصم ]])","v":1365}]
["شعبان الشحات المتولي الشوكي",{"$f":"SUM(Sheet2!C168:AF168)","v":1},{"$f":"Table1[[#This Row],[عدد الايام ]]*65","v":65},null,null,{"$f":"Table1[[#This Row],[المرتب ]]-(Table1[[#This Row],[السلف ]]+Table1[[#This Row],[الخصم ]])","v":65}]
["شعبان بلبل الشحات المتولي",{"$f":"SUM(Sheet2!C169:AF169)","v":43},{"$f":"Table1[[#This Row],[عدد الايام ]]*65","v":2795},null,null,{"$f":"Table1[[#This Row],[المرتب ]]-(Table1[[#This Row],[السلف ]]+Table1[[#This Row],[الخصم ]])","v":2795}]
["شعبان حمدي شعبان الهليس",{"$f":"SUM(Sheet2!C170:AF170)","v":1},{"$f":"Table1[[#This Row],[عدد الايام ]]*65","v":65},null,null,{"$f":"Table1[[#This Row],[المرتب ]]-(Table1[[#This Row],[السلف ]]+Table1[[#This Row],[الخصم ]])","v":65}]
["شعبان عبدالكريم علواني عبدالكريم",{"$f":"SUM(Sheet2!C171:AF171)","v":6},{"$f":"Table1[[#This Row],[عدد الايام ]]*65","v":390},null,null,{"$f":"Table1[[#This Row],[المرتب ]]-(Table1[[#This Row],[السلف ]]+Table1[[#This Row],[الخصم ]])","v":390}]
["شكر صابر ابراهيم رضوان",{"$f":"SUM(Sheet2!C172:AF172)","v":21},{"$f":"Table1[[#This Row],[عدد الايام ]]*65","v":1365},null,null,{"$f":"Table1[[#This Row],[المرتب ]]-(Table1[[#This Row],[السلف ]]+Table1[[#This Row],[الخصم ]])","v":1365}]
["شهاب ابراهيم فرج عبدالعزيز",{"$f":"SUM(Sheet2!C173:AF173)","v":1},{"$f":"Table1[[#This Row],[عدد الايام ]]*65","v":65},null,null,{"$f":"Table1[[#This Row],[المرتب ]]-(Table1[[#This Row],[السلف ]]+Table1[[#This Row],[الخصم ]])","v":65}]
["صابر صبري محمود اسماعيل",{"$f":"SUM(Sheet2!C174:AF174)","v":11},{"$f":"Table1[[#This Row],[عدد الايام ]]*65","v":715},null,null,{"$f":"Table1[[#This Row],[المرتب ]]-(Table1[[#This Row],[السلف ]]+Table1[[#This Row],[الخصم ]])","v":715}]
["صادق عيد السيد عبدالرحمن",{"$f":"SUM(Sheet2!C175:AF175)","v":2},{"$f":"Table1[[#This Row],[عدد الايام ]]*65","v":130},null,null,{"$f":"Table1[[#This Row],[المرتب ]]-(Table1[[#This Row],[السلف ]]+Table1[[#This Row],[الخصم ]])","v":130}]
["صبحي توفيق السيد",{"$f":"SUM(Sheet2!C176:AF176)","v":18},{"$f":"Table1[[#This Row],[عدد الايام ]]*65","v":1170},null,null,{"$f":"Table1[[#This Row],[المرتب ]]-(Table1[[#This Row],[السلف ]]+Table1[[#This Row],[الخصم ]])","v":1170}]
["ضياء محمد محمد شحاته بحيري",{"$f":"SUM(Sheet2!C177:AF177)","v":1},{"$f":"Table1[[#This Row],[عدد الايام ]]*65","v":65},null,null,{"$f":"Table1[[#This Row],[المرتب ]]-(Table1[[#This Row],[السلف ]]+Table1[[#This Row],[الخصم ]])","v":65}]
["طارق عبدالفتاح السعيد عبدالباقي",{"$f":"SUM(Sheet2!C178:AF178)","v":16},{"$f":"Table1[[#This Row],[عدد الايام ]]*65","v":1040},null,null,{"$f":"Table1[[#This Row],[المرتب ]]-(Table1[[#This Row],[السلف ]]+Table1[[#This Row],[الخصم ]])","v":1040}]
["طارق عرفه عنتر زراع",{"$f":"SUM(Sheet2!C179:AF179)","v":19},{"$f":"Table1[[#This Row],[عدد الايام ]]*65","v":1235},null,null,{"$f":"Table1[[#This Row],[المرتب ]]-(Table1[[#This Row],[السلف ]]+Table1[[#This Row],[الخصم ]])","v":1235}]
["طارق محمود محمود عبدالمعطي",{"$f":"SUM(Sheet2!C180:AF180)","v":28},{"$f":"Table1[[#This Row],[عدد الايام ]]*65","v":1820},null,null,{"$f":"Table1[[#This Row],[المرتب ]]-(Table1[[#This Row],[السلف ]]+Table1[[#This Row],[الخصم ]])","v":1820}]
["طه حسن حسن الهندي",{"$f":"SUM(Sheet2!C181:AF181)","v":38},{"$f":"Table1[[#This Row],[عدد الايام ]]*65","v":2470},null,null,{"$f":"Table1[[#This Row],[المرتب ]]-(Table1[[#This Row],[السلف ]]+Table1[[#This Row],[الخصم ]])","v":2470}]
["طه عيد عبدالله شحاته",{"$f":"SUM(Sheet2!C182:AF182)","v":12},{"$f":"Table1[[#This Row],[عدد الايام ]]*65","v":780},null,null,{"$f":"Table1[[#This Row],[المرتب ]]-(Table1[[#This Row],[السلف ]]+Table1[[#This Row],[الخصم ]])","v":780}]
["عاصم السيد عبدالرحمن الدسوقي",{"$f":"SUM(Sheet2!C183:AF183)","v":2},{"$f":"Table1[[#This Row],[عدد الايام ]]*65","v":130},null,null,{"$f":"Table1[[#This Row],[المرتب ]]-(Table1[[#This Row],[السلف ]]+Table1[[#This Row],[الخصم ]])","v":130}]
["عاطف ابراهيم حليم مشحوت",{"$f":"SUM(Sheet2!C184:AF184)","v":6},{"$f":"Table1[[#This Row],[عدد الايام ]]*65","v":390},null,null,{"$f":"Table1[[#This Row],[المرتب ]]-(Table1[[#This Row],[السلف ]]+Table1[[#This Row],[الخصم ]])","v":390}]
["عاطف محمد محمد دراز",{"$f":"SUM(Sheet2!C185:AF185)","v":20},{"$f":"Table1[[#This Row],[عدد الايام ]]*65","v":1300},null,null,{"$f":"Table1[[#This Row],[المرتب ]]-(Table1[[#This Row],[السلف ]]+Table1[[#This Row],[الخصم ]])","v":1300}]
["عامر ابراهيم عامر بدوي",{"$f":"SUM(Sheet2!C186:AF186)","v":7},{"$f":"Table1[[#This Row],[عدد الايام ]]*65","v":455},null,null,{"$f":"Table1[[#This Row],[المرتب ]]-(Table1[[#This Row],[السلف ]]+Table1[[#This Row],[الخصم ]])","v":455}]
["عامر حبشي محمد حبشي",{"$f":"SUM(Sheet2!C187:AF187)","v":40},{"$f":"Table1[[#This Row],[عدد الايام ]]*65","v":2600},null,null,{"$f":"Table1[[#This Row],[المرتب ]]-(Table1[[#This Row],[السلف ]]+Table1[[#This Row],[الخصم ]])","v":2600}]
["عبدالحميد غريب عبدالحميد",{"$f":"SUM(Sheet2!C188:AF188)","v":24},{"$f":"Table1[[#This Row],[عدد الايام ]]*65","v":1560},null,null,{"$f":"Table1[[#This Row],[المرتب ]]-(Table1[[#This Row],[السلف ]]+Table1[[#This Row],[الخصم ]])","v":1560}]
["عبدالرحمن ابراهيم عبدالغني الطوخي",{"$f":"SUM(Sheet2!C189:AF189)","v":3},{"$f":"Table1[[#This Row],[عدد الايام ]]*65","v":195},null,null,{"$f":"Table1[[#This Row],[المرتب ]]-(Table1[[#This Row],[السلف ]]+Table1[[#This Row],[الخصم ]])","v":195}]
["عبدالرحمن ابراهيم عيد الفقي",{"$f":"SUM(Sheet2!C190:AF190)","v":3},{"$f":"Table1[[#This Row],[عدد الايام ]]*65","v":195},null,null,{"$f":"Table1[[#This Row],[المرتب ]]-(Table1[[#This Row],[السلف ]]+Table1[[#This Row],[الخصم ]])","v":195}]
["عبدالرحمن سالم عبدالرحمن",{"$f":"SUM(Sheet2!C191:AF191)","v":13},{"$f":"Table1[[#This Row],[عدد الايام ]]*65","v":845},null,null,{"$f":"Table1[[#This Row],[المرتب ]]-(Table1[[#This Row],[السلف ]]+Table1[[#This Row],[الخصم ]])","v":845}]
["عبدالرحمن عبداللاه عبدالعزيز طه",{"$f":"SUM(Sheet2!C192:AF192)","v":9},{"$f":"Table1[[#This Row],[عدد الايام ]]*65","v":585},null,null,{"$f":"Table1[[#This Row],[المرتب ]]-(Table1[[#This Row],[السلف ]]+Table1[[#This Row],[الخصم ]])","v":585}]
["عبدالرحمن محمد زياد محمد ",{"$f":"SUM(Sheet2!C193:AF193)","v":2},{"$f":"Table1[[#This Row],[عدد الايام ]]*65","v":130},null,null,{"$f":"Table1[[#This Row],[المرتب ]]-(Table1[[#This Row],[السلف ]]+Table1[[#This Row],[الخصم ]])","v":130}]
["عبدالستارعيدعبدالستارعيسي ",{"$f":"SUM(Sheet2!C194:AF194)","v":11},{"$f":"Table1[[#This Row],[عدد الايام ]]*65","v":715},null,null,{"$f":"Table1[[#This Row],[المرتب ]]-(Table1[[#This Row],[السلف ]]+Table1[[#This Row],[الخصم ]])","v":715}]
["عبدالسلام فتحي شلبي",{"$f":"SUM(Sheet2!C195:AF195)","v":8},{"$f":"Table1[[#This Row],[عدد الايام ]]*65","v":520},null,null,{"$f":"Table1[[#This Row],[المرتب ]]-(Table1[[#This Row],[السلف ]]+Table1[[#This Row],[الخصم ]])","v":520}]
["عبدالسلام فتحي محمد",{"$f":"SUM(Sheet2!C196:AF196)","v":2},{"$f":"Table1[[#This Row],[عدد الايام ]]*65","v":130},null,null,{"$f":"Table1[[#This Row],[المرتب ]]-(Table1[[#This Row],[السلف ]]+Table1[[#This Row],[الخصم ]])","v":130}]
["عبدالسلام مصطفي علي",{"$f":"SUM(Sheet2!C197:AF197)","v":1},{"$f":"Table1[[#This Row],[عدد الايام ]]*65","v":65},null,null,{"$f":"Table1[[#This Row],[المرتب ]]-(Table1[[#This Row],[السلف ]]+Table1[[#This Row],[الخصم ]])","v":65}]
["عبدالعزيز حمدي عبدالعزيز محمد",{"$f":"SUM(Sheet2!C198:AF198)","v":1},{"$f":"Table1[[#This Row],[عدد الايام ]]*65","v":65},null,null,{"$f":"Table1[[#This Row],[المرتب ]]-(Table1[[#This Row],[السلف ]]+Table1[[#This Row],[الخصم ]])","v":65}]
["عبدالغفار محمد منير",{"$f":"SUM(Sheet2!C199:AF199)","v":10},{"$f":"Table1[[#This Row],[عدد الايام ]]*65","v":650},null,null,{"$f":"Table1[[#This Row],[المرتب ]]-(Table1[[#This Row],[السلف ]]+Table1[[#This Row],[الخصم ]])","v":650}]
["عبدالغفور محمد عبالغفور دره",{"$f":"SUM(Sheet2!C200:AF200)","v":5},{"$f":"Table1[[#This Row],[عدد الايام ]]*65","v":325},null,null,{"$f":"Table1[[#This Row],[المرتب ]]-(Table1[[#This Row],[السلف ]]+Table1[[#This Row],[الخصم ]])","v":325}]
["عبدالغني جمال عاشور محمد",{"$f":"SUM(Sheet2!C201:AF201)","v":8},{"$f":"Table1[[#This Row],[عدد الايام ]]*65","v":520},null,null,{"$f":"Table1[[#This Row],[المرتب ]]-(Table1[[#This Row],[السلف ]]+Table1[[#This Row],[الخصم ]])","v":520}]
["عبدالفتاح جمعه عبدالحكيم جمعه",{"$f":"SUM(Sheet2!C202:AF202)","v":3},{"$f":"Table1[[#This Row],[عدد الايام ]]*65","v":195},null,null,{"$f":"Table1[[#This Row],[المرتب ]]-(Table1[[#This Row],[السلف ]]+Table1[[#This Row],[الخصم ]])","v":195}]
["عبدالفتاح عبدالقوي عبدالفتاح",{"$f":"SUM(Sheet2!C203:AF203)","v":22},{"$f":"Table1[[#This Row],[عدد الايام ]]*65","v":1430},null,null,{"$f":"Table1[[#This Row],[المرتب ]]-(Table1[[#This Row],[السلف ]]+Table1[[#This Row],[الخصم ]])","v":1430}]
["عبدالكريم محمد محمود",{"$f":"SUM(Sheet2!C204:AF204)","v":1},{"$f":"Table1[[#This Row],[عدد الايام ]]*65","v":65},null,null,{"$f":"Table1[[#This Row],[المرتب ]]-(Table1[[#This Row],[السلف ]]+Table1[[#This Row],[الخصم ]])","v":65}]
["عبدالله ابوالسعود عبدالمجيد",{"$f":"SUM(Sheet2!C205:AF205)","v":25},{"$f":"Table1[[#This Row],[عدد الايام ]]*65","v":1625},null,null,{"$f":"Table1[[#This Row],[المرتب ]]-(Table1[[#This Row],[السلف ]]+Table1[[#This Row],[الخصم ]])","v":1625}]
["عبدالله ابوبكر سلامه",{"$f":"SUM(Sheet2!C206:AF206)","v":1},{"$f":"Table1[[#This Row],[عدد الايام ]]*65","v":65},null,null,{"$f":"Table1[[#This Row],[المرتب ]]-(Table1[[#This Row],[السلف ]]+Table1[[#This Row],[الخصم ]])","v":65}]
["عبدالله احمد كامل علي عويان",{"$f":"SUM(Sheet2!C207:AF207)","v":22},{"$f":"Table1[[#This Row],[عدد الايام ]]*65","v":1430},null,null,{"$f":"Table1[[#This Row],[المرتب ]]-(Table1[[#This Row],[السلف ]]+Table1[[#This Row],[الخصم ]])","v":1430}]
["عبدالله حسين احمد جاد الرب",{"$f":"SUM(Sheet2!C208:AF208)","v":7},{"$f":"Table1[[#This Row],[عدد الايام ]]*65","v":455},null,null,{"$f":"Table1[[#This Row],[المرتب ]]-(Table1[[#This Row],[السلف ]]+Table1[[#This Row],[الخصم ]])","v":455}]
["عبدالله سالم عبدالرحمن",{"$f":"SUM(Sheet2!C209:AF209)","v":1},{"$f":"Table1[[#This Row],[عدد الايام ]]*65","v":65},null,null,{"$f":"Table1[[#This Row],[المرتب ]]-(Table1[[#This Row],[السلف ]]+Table1[[#This Row],[الخصم ]])","v":65}]
["عبدالله سامي مصطفي الجمال",{"$f":"SUM(Sheet2!C210:AF210)","v":5},{"$f":"Table1[[#This Row],[عدد الايام ]]*65","v":325},null,null,{"$f":"Table1[[#This Row],[المرتب ]]-(Table1[[#This Row],[السلف ]]+Table1[[#This Row],[الخصم ]])","v":325}]
["عبدالله سامي مصطفي كامل القط",{"$f":"SUM(Sheet2!C211:AF211)","v":6},{"$f":"Table1[[#This Row],[عدد الايام ]]*65","v":390},null,null,{"$f":"Table1[[#This Row],[المرتب ]]-(Table1[[#This Row],[السلف ]]+Table1[[#This Row],[الخصم ]])","v":390}]
["عبدالله شعبان عبدالله",{"$f":"SUM(Sheet2!C212:AF212)","v":17},{"$f":"Table1[[#This Row],[عدد الايام ]]*65","v":1105},null,null,{"$f":"Table1[[#This Row],[المرتب ]]-(Table1[[#This Row],[السلف ]]+Table1[[#This Row],[الخصم ]])","v":1105}]
["عبدالله عبدالحميد عبدالله",{"$f":"SUM(Sheet2!C213:AF213)","v":1},{"$f":"Table1[[#This Row],[عدد الايام ]]*65","v":65},null,null,{"$f":"Table1[[#This Row],[المرتب ]]-(Table1[[#This Row],[السلف ]]+Table1[[#This Row],[الخصم ]])","v":65}]
["عبدالله عبدالصادق محمد ",{"$f":"SUM(Sheet2!C214:AF214)","v":2},{"$f":"Table1[[#This Row],[عدد الايام ]]*65","v":130},null,null,{"$f":"Table1[[#This Row],[المرتب ]]-(Table1[[#This Row],[السلف ]]+Table1[[#This Row],[الخصم ]])","v":130}]
["عبدالله علي عبدالله علي",{"$f":"SUM(Sheet2!C215:AF215)","v":6},{"$f":"Table1[[#This Row],[عدد الايام ]]*65","v":390},null,null,{"$f":"Table1[[#This Row],[المرتب ]]-(Table1[[#This Row],[السلف ]]+Table1[[#This Row],[الخصم ]])","v":390}]
["عبدالله فوزي عبدالله مرجان",{"$f":"SUM(Sheet2!C216:AF216)","v":14},{"$f":"Table1[[#This Row],[عدد الايام ]]*65","v":910},null,null,{"$f":"Table1[[#This Row],[المرتب ]]-(Table1[[#This Row],[السلف ]]+Table1[[#This Row],[الخصم ]])","v":910}]
["عبدالله محمد الصافي عبدالفتاح",{"$f":"SUM(Sheet2!C217:AF217)","v":1},{"$f":"Table1[[#This Row],[عدد الايام ]]*65","v":65},null,null,{"$f":"Table1[[#This Row],[المرتب ]]-(Table1[[#This Row],[السلف ]]+Table1[[#This Row],[الخصم ]])","v":65}]
["عبدالله محمد صبحي متولي",{"$f":"SUM(Sheet2!C218:AF218)","v":1},{"$f":"Table1[[#This Row],[عدد الايام ]]*65","v":65},null,null,{"$f":"Table1[[#This Row],[المرتب ]]-(Table1[[#This Row],[السلف ]]+Table1[[#This Row],[الخصم ]])","v":65}]
["عبدالله محمد عبدالله خليفه محمد",{"$f":"SUM(Sheet2!C219:AF219)","v":5},{"$f":"Table1[[#This Row],[عدد الايام ]]*65","v":325},null,null,{"$f":"Table1[[#This Row],[المرتب ]]-(Table1[[#This Row],[السلف ]]+Table1[[#This Row],[الخصم ]])","v":325}]
["عبدالناصر احمد عبدالوهاب",{"$f":"SUM(Sheet2!C220:AF220)","v":17},{"$f":"Table1[[#This Row],[عدد الايام ]]*65","v":1105},null,null,{"$f":"Table1[[#This Row],[المرتب ]]-(Table1[[#This Row],[السلف ]]+Table1[[#This Row],[الخصم ]])","v":1105}]
["عبدالنبي حسين عبداللطيف",{"$f":"SUM(Sheet2!C221:AF221)","v":11},{"$f":"Table1[[#This Row],[عدد الايام ]]*65","v":715},null,null,{"$f":"Table1[[#This Row],[المرتب ]]-(Table1[[#This Row],[السلف ]]+Table1[[#This Row],[الخصم ]])","v":715}]
["عبدالواحد كمال عبدالواحد",{"$f":"SUM(Sheet2!C222:AF222)","v":2},{"$f":"Table1[[#This Row],[عدد الايام ]]*65","v":130},null,null,{"$f":"Table1[[#This Row],[المرتب ]]-(Table1[[#This Row],[السلف ]]+Table1[[#This Row],[الخصم ]])","v":130}]
["عز الدين فتحي قرني بكر",{"$f":"SUM(Sheet2!C223:AF223)","v":5},{"$f":"Table1[[#This Row],[عدد الايام ]]*65","v":325},null,null,{"$f":"Table1[[#This Row],[المرتب ]]-(Table1[[#This Row],[السلف ]]+Table1[[#This Row],[الخصم ]])","v":325}]
["عزت محمد ابوالعز",{"$f":"SUM(Sheet2!C224:AF224)","v":4},{"$f":"Table1[[#This Row],[عدد الايام ]]*65","v":260},null,null,{"$f":"Table1[[#This Row],[المرتب ]]-(Table1[[#This Row],[السلف ]]+Table1[[#This Row],[الخصم ]])","v":260}]
["عطيه مصطفي السيد الجنزوري",{"$f":"SUM(Sheet2!C225:AF225)","v":1},{"$f":"Table1[[#This Row],[عدد الايام ]]*65","v":65},null,null,{"$f":"Table1[[#This Row],[المرتب ]]-(Table1[[#This Row],[السلف ]]+Table1[[#This Row],[الخصم ]])","v":65}]
["علاء جمعه التايب جمعه",{"$f":"SUM(Sheet2!C226:AF226)","v":18},{"$f":"Table1[[#This Row],[عدد الايام ]]*65","v":1170},null,null,{"$f":"Table1[[#This Row],[المرتب ]]-(Table1[[#This Row],[السلف ]]+Table1[[#This Row],[الخصم ]])","v":1170}]
["علي احمد علي قنديل",{"$f":"SUM(Sheet2!C227:AF227)","v":47},{"$f":"Table1[[#This Row],[عدد الايام ]]*65","v":3055},null,null,{"$f":"Table1[[#This Row],[المرتب ]]-(Table1[[#This Row],[السلف ]]+Table1[[#This Row],[الخصم ]])","v":3055}]
["علي احمدعلي عوض العزب",{"$f":"SUM(Sheet2!C228:AF228)","v":23},{"$f":"Table1[[#This Row],[عدد الايام ]]*65","v":1495},null,null,{"$f":"Table1[[#This Row],[المرتب ]]-(Table1[[#This Row],[السلف ]]+Table1[[#This Row],[الخصم ]])","v":1495}]
["علي السيد رياض ",{"$f":"SUM(Sheet2!C229:AF229)","v":5},{"$f":"Table1[[#This Row],[عدد الايام ]]*65","v":325},null,null,{"$f":"Table1[[#This Row],[المرتب ]]-(Table1[[#This Row],[السلف ]]+Table1[[#This Row],[الخصم ]])","v":325}]
["علي صلاح علي سليمان",{"$f":"SUM(Sheet2!C230:AF230)","v":16},{"$f":"Table1[[#This Row],[عدد الايام ]]*65","v":1040},null,null,{"$f":"Table1[[#This Row],[المرتب ]]-(Table1[[#This Row],[السلف ]]+Table1[[#This Row],[الخصم ]])","v":1040}]
["علي عبدالباسط علي الجندي",{"$f":"SUM(Sheet2!C231:AF231)","v":4},{"$f":"Table1[[#This Row],[عدد الايام ]]*65","v":260},null,null,{"$f":"Table1[[#This Row],[المرتب ]]-(Table1[[#This Row],[السلف ]]+Table1[[#This Row],[الخصم ]])","v":260}]
["علي عبدالهادي علي",{"$f":"SUM(Sheet2!C232:AF232)","v":6},{"$f":"Table1[[#This Row],[عدد الايام ]]*65","v":390},null,null,{"$f":"Table1[[#This Row],[المرتب ]]-(Table1[[#This Row],[السلف ]]+Table1[[#This Row],[الخصم ]])","v":390}]
["علي عيسي امين عيسي",{"$f":"SUM(Sheet2!C233:AF233)","v":5},{"$f":"Table1[[#This Row],[عدد الايام ]]*65","v":325},null,null,{"$f":"Table1[[#This Row],[المرتب ]]-(Table1[[#This Row],[السلف ]]+Table1[[#This Row],[الخصم ]])","v":325}]
["علي غزالي ابراهيم",{"$f":"SUM(Sheet2!C234:AF234)","v":1},{"$f":"Table1[[#This Row],[عدد الايام ]]*65","v":65},null,null,{"$f":"Table1[[#This Row],[المرتب ]]-(Table1[[#This Row],[السلف ]]+Table1[[#This Row],[الخصم ]])","v":65}]
["علي محمد علي توفيق",{"$f":"SUM(Sheet2!C235:AF235)","v":7},{"$f":"Table1[[#This Row],[عدد الايام ]]*65","v":455},null,null,{"$f":"Table1[[#This Row],[المرتب ]]-(Table1[[#This Row],[السلف ]]+Table1[[#This Row],[الخصم ]])","v":455}]
["علي محمود محمد محمود الدجاج",{"$f":"SUM(Sheet2!C236:AF236)","v":29},{"$f":"Table1[[#This Row],[عدد الايام ]]*65","v":1885},null,null,{"$f":"Table1[[#This Row],[المرتب ]]-(Table1[[#This Row],[السلف ]]+Table1[[#This Row],[الخصم ]])","v":1885}]
["عماد عبدالله مصطفي عبدالله",{"$f":"SUM(Sheet2!C237:AF237)","v":14},{"$f":"Table1[[#This Row],[عدد الايام ]]*65","v":910},null,null,{"$f":"Table1[[#This Row],[المرتب ]]-(Table1[[#This Row],[السلف ]]+Table1[[#This Row],[الخصم ]])","v":910}]
["عماد محمد عبداللاه معوض",{"$f":"SUM(Sheet2!C238:AF238)","v":14},{"$f":"Table1[[#This Row],[عدد الايام ]]*65","v":910},null,null,{"$f":"Table1[[#This Row],[المرتب ]]-(Table1[[#This Row],[السلف ]]+Table1[[#This Row],[الخصم ]])","v":910}]
["عمارمحمد مصطفي شحاته",{"$f":"SUM(Sheet2!C239:AF239)","v":1},{"$f":"Table1[[#This Row],[عدد الايام ]]*65","v":65},null,null,{"$f":"Table1[[#This Row],[المرتب ]]-(Table1[[#This Row],[السلف ]]+Table1[[#This Row],[الخصم ]])","v":65}]
["عمر عبدالعال سليمان عثمان",{"$f":"SUM(Sheet2!C240:AF240)","v":0},{"$f":"Table1[[#This Row],[عدد الايام ]]*65","v":0},null,null,{"$f":"Table1[[#This Row],[المرتب ]]-(Table1[[#This Row],[السلف ]]+Table1[[#This Row],[الخصم ]])","v":0}]
["عمر فتحي عبدالفتاح احمد",{"$f":"SUM(Sheet2!C241:AF241)","v":1},{"$f":"Table1[[#This Row],[عدد الايام ]]*65","v":65},null,null,{"$f":"Table1[[#This Row],[المرتب ]]-(Table1[[#This Row],[السلف ]]+Table1[[#This Row],[الخصم ]])","v":65}]
["عمر ممدوح ابراهيم جويده",{"$f":"SUM(Sheet2!C242:AF242)","v":1},{"$f":"Table1[[#This Row],[عدد الايام ]]*65","v":65},null,null,{"$f":"Table1[[#This Row],[المرتب ]]-(Table1[[#This Row],[السلف ]]+Table1[[#This Row],[الخصم ]])","v":65}]
["عمرو ثابت عبدالفتاح علي",{"$f":"SUM(Sheet2!C243:AF243)","v":22},{"$f":"Table1[[#This Row],[عدد الايام ]]*65","v":1430},null,null,{"$f":"Table1[[#This Row],[المرتب ]]-(Table1[[#This Row],[السلف ]]+Table1[[#This Row],[الخصم ]])","v":1430}]
["عمرو حامد عبدالله قناوي",{"$f":"SUM(Sheet2!C244:AF244)","v":4},{"$f":"Table1[[#This Row],[عدد الايام ]]*65","v":260},null,null,{"$f":"Table1[[#This Row],[المرتب ]]-(Table1[[#This Row],[السلف ]]+Table1[[#This Row],[الخصم ]])","v":260}]
["عمرو حامد عطا الله قناوي",{"$f":"SUM(Sheet2!C245:AF245)","v":20},{"$f":"Table1[[#This Row],[عدد الايام ]]*65","v":1300},null,null,{"$f":"Table1[[#This Row],[المرتب ]]-(Table1[[#This Row],[السلف ]]+Table1[[#This Row],[الخصم ]])","v":1300}]
["عمرو عبدالصمد محمد",{"$f":"SUM(Sheet2!C246:AF246)","v":2},{"$f":"Table1[[#This Row],[عدد الايام ]]*65","v":130},null,null,{"$f":"Table1[[#This Row],[المرتب ]]-(Table1[[#This Row],[السلف ]]+Table1[[#This Row],[الخصم ]])","v":130}]
["عمرو محمد حسن عبدالغني",{"$f":"SUM(Sheet2!C247:AF247)","v":11},{"$f":"Table1[[#This Row],[عدد الايام ]]*65","v":715},null,null,{"$f":"Table1[[#This Row],[المرتب ]]-(Table1[[#This Row],[السلف ]]+Table1[[#This Row],[الخصم ]])","v":715}]
["عمرو محمد عبدالصمد",{"$f":"SUM(Sheet2!C248:AF248)","v":40},{"$f":"Table1[[#This Row],[عدد الايام ]]*65","v":2600},null,null,{"$f":"Table1[[#This Row],[المرتب ]]-(Table1[[#This Row],[السلف ]]+Table1[[#This Row],[الخصم ]])","v":2600}]
["عمرو محمد عبدالفتاح",{"$f":"SUM(Sheet2!C249:AF249)","v":3},{"$f":"Table1[[#This Row],[عدد الايام ]]*65","v":195},null,null,{"$f":"Table1[[#This Row],[المرتب ]]-(Table1[[#This Row],[السلف ]]+Table1[[#This Row],[الخصم ]])","v":195}]
["عمرو محمد فهمي خليفه",{"$f":"SUM(Sheet2!C250:AF250)","v":2},{"$f":"Table1[[#This Row],[عدد الايام ]]*65","v":130},null,null,{"$f":"Table1[[#This Row],[المرتب ]]-(Table1[[#This Row],[السلف ]]+Table1[[#This Row],[الخصم ]])","v":130}]
["عيد عبدالمنعم عيد عجيبه",{"$f":"SUM(Sheet2!C251:AF251)","v":12},{"$f":"Table1[[#This Row],[عدد الايام ]]*65","v":780},null,null,{"$f":"Table1[[#This Row],[المرتب ]]-(Table1[[#This Row],[السلف ]]+Table1[[#This Row],[الخصم ]])","v":780}]
["فارس رشاد حماد عبدالهادي",{"$f":"SUM(Sheet2!C252:AF252)","v":15},{"$f":"Table1[[#This Row],[عدد الايام ]]*65","v":975},null,null,{"$f":"Table1[[#This Row],[المرتب ]]-(Table1[[#This Row],[السلف ]]+Table1[[#This Row],[الخصم ]])","v":975}]
["فارس صبري رزق",{"$f":"SUM(Sheet2!C253:AF253)","v":1},{"$f":"Table1[[#This Row],[عدد الايام ]]*65","v":65},null,null,{"$f":"Table1[[#This Row],[المرتب ]]-(Table1[[#This Row],[السلف ]]+Table1[[#This Row],[الخصم ]])","v":65}]
["فارس ياسر احمد عبدالعليم علي",{"$f":"SUM(Sheet2!C254:AF254)","v":1},{"$f":"Table1[[#This Row],[عدد الايام ]]*65","v":65},null,null,{"$f":"Table1[[#This Row],[المرتب ]]-(Table1[[#This Row],[السلف ]]+Table1[[#This Row],[الخصم ]])","v":65}]
["فايز عبدالله احمد ابراهيم",{"$f":"SUM(Sheet2!C255:AF255)","v":18},{"$f":"Table1[[#This Row],[عدد الايام ]]*65","v":1170},null,null,{"$f":"Table1[[#This Row],[المرتب ]]-(Table1[[#This Row],[السلف ]]+Table1[[#This Row],[الخصم ]])","v":1170}]
["فتحي احمد محمد عبده الحريري",{"$f":"SUM(Sheet2!C256:AF256)","v":2},{"$f":"Table1[[#This Row],[عدد الايام ]]*65","v":130},null,null,{"$f":"Table1[[#This Row],[المرتب ]]-(Table1[[#This Row],[السلف ]]+Table1[[#This Row],[الخصم ]])","v":130}]
["فهمي عباس عبدالدايم حلفايه",{"$f":"SUM(Sheet2!C257:AF257)","v":4},{"$f":"Table1[[#This Row],[عدد الايام ]]*65","v":260},null,null,{"$f":"Table1[[#This Row],[المرتب ]]-(Table1[[#This Row],[السلف ]]+Table1[[#This Row],[الخصم ]])","v":260}]
["فوقي جلال عبده النحري",{"$f":"SUM(Sheet2!C258:AF258)","v":1},{"$f":"Table1[[#This Row],[عدد الايام ]]*65","v":65},null,null,{"$f":"Table1[[#This Row],[المرتب ]]-(Table1[[#This Row],[السلف ]]+Table1[[#This Row],[الخصم ]])","v":65}]
["كامل عبدالله كامل الشيخ",{"$f":"SUM(Sheet2!C259:AF259)","v":3},{"$f":"Table1[[#This Row],[عدد الايام ]]*65","v":195},null,null,{"$f":"Table1[[#This Row],[المرتب ]]-(Table1[[#This Row],[السلف ]]+Table1[[#This Row],[الخصم ]])","v":195}]
["كريم سليمان عيد عبدالمحسن",{"$f":"SUM(Sheet2!C260:AF260)","v":3},{"$f":"Table1[[#This Row],[عدد الايام ]]*65","v":195},null,null,{"$f":"Table1[[#This Row],[المرتب ]]-(Table1[[#This Row],[السلف ]]+Table1[[#This Row],[الخصم ]])","v":195}]
["كريم عبدالحارس عبدالراضي",{"$f":"SUM(Sheet2!C261:AF261)","v":5},{"$f":"Table1[[#This Row],[عدد الايام ]]*65","v":325},null,null,{"$f":"Table1[[#This Row],[المرتب ]]-(Table1[[#This Row],[السلف ]]+Table1[[#This Row],[الخصم ]])","v":325}]
["كريم عبدالقوي عبدالفتاح",{"$f":"SUM(Sheet2!C262:AF262)","v":22},{"$f":"Table1[[#This Row],[عدد الايام ]]*65","v":1430},null,null,{"$f":"Table1[[#This Row],[المرتب ]]-(Table1[[#This Row],[السلف ]]+Table1[[#This Row],[الخصم ]])","v":1430}]
["كمال شريف عبدالمجيد بشر",{"$f":"SUM(Sheet2!C263:AF263)","v":6},{"$f":"Table1[[#This Row],[عدد الايام ]]*65","v":390},null,null,{"$f":"Table1[[#This Row],[المرتب ]]-(Table1[[#This Row],[السلف ]]+Table1[[#This Row],[الخصم ]])","v":390}]
["كيرلس صلاح رزق الله",{"$f":"SUM(Sheet2!C264:AF264)","v":3},{"$f":"Table1[[#This Row],[عدد الايام ]]*65","v":195},null,null,{"$f":"Table1[[#This Row],[المرتب ]]-(Table1[[#This Row],[السلف ]]+Table1[[#This Row],[الخصم ]])","v":195}]
["كيرلس غندي رزق مللك",{"$f":"SUM(Sheet2!C265:AF265)","v":1},{"$f":"Table1[[#This Row],[عدد الايام ]]*65","v":65},null,null,{"$f":"Table1[[#This Row],[المرتب ]]-(Table1[[#This Row],[السلف ]]+Table1[[#This Row],[الخصم ]])","v":65}]
["كيرلس فادي ناجي",{"$f":"SUM(Sheet2!C266:AF266)","v":10},{"$f":"Table1[[#This Row],[عدد الايام ]]*65","v":650},null,null,{"$f":"Table1[[#This Row],[المرتب ]]-(Table1[[#This Row],[السلف ]]+Table1[[#This Row],[الخصم ]])","v":650}]
["ماهر احمد علي حماد",{"$f":"SUM(Sheet2!C267:AF267)","v":25},{"$f":"Table1[[#This Row],[عدد الايام ]]*65","v":1625},null,null,{"$f":"Table1[[#This Row],[المرتب ]]-(Table1[[#This Row],[السلف ]]+Table1[[#This Row],[الخصم ]])","v":1625}]
["مبروك عبدالسلام عمار ابراهيم",{"$f":"SUM(Sheet2!C268:AF268)","v":39},{"$f":"Table1[[#This Row],[عدد الايام ]]*65","v":2535},null,null,{"$f":"Table1[[#This Row],[المرتب ]]-(Table1[[#This Row],[السلف ]]+Table1[[#This Row],[الخصم ]])","v":2535}]
["مبروك محمود مبروك مطر",{"$f":"SUM(Sheet2!C269:AF269)","v":28},{"$f":"Table1[[#This Row],[عدد الايام ]]*65","v":1820},null,null,{"$f":"Table1[[#This Row],[المرتب ]]-(Table1[[#This Row],[السلف ]]+Table1[[#This Row],[الخصم ]])","v":1820}]
["مجدي زكريا عباس",{"$f":"SUM(Sheet2!C270:AF270)","v":14},{"$f":"Table1[[#This Row],[عدد الايام ]]*65","v":910},null,null,{"$f":"Table1[[#This Row],[المرتب ]]-(Table1[[#This Row],[السلف ]]+Table1[[#This Row],[الخصم ]])","v":910}]
["محمد ابراهيم السيد ابراهيم",{"$f":"SUM(Sheet2!C271:AF271)","v":15},{"$f":"Table1[[#This Row],[عدد الايام ]]*65","v":975},null,null,{"$f":"Table1[[#This Row],[المرتب ]]-(Table1[[#This Row],[السلف ]]+Table1[[#This Row],[الخصم ]])","v":975}]
["محمد ابراهيم عاشور عبدالوهاب",{"$f":"SUM(Sheet2!C272:AF272)","v":6},{"$f":"Table1[[#This Row],[عدد الايام ]]*65","v":390},null,null,{"$f":"Table1[[#This Row],[المرتب ]]-(Table1[[#This Row],[السلف ]]+Table1[[#This Row],[الخصم ]])","v":390}]
["محمد ابراهيم عبدالمنعم مغربي",{"$f":"SUM(Sheet2!C273:AF273)","v":0},{"$f":"Table1[[#This Row],[عدد الايام ]]*65","v":0},null,null,{"$f":"Table1[[#This Row],[المرتب ]]-(Table1[[#This Row],[السلف ]]+Table1[[#This Row],[الخصم ]])","v":0}]
["محمد ابراهيم محمود سليمان",{"$f":"SUM(Sheet2!C274:AF274)","v":22},{"$f":"Table1[[#This Row],[عدد الايام ]]*65","v":1430},null,null,{"$f":"Table1[[#This Row],[المرتب ]]-(Table1[[#This Row],[السلف ]]+Table1[[#This Row],[الخصم ]])","v":1430}]
["محمد احمد رفاعي محمد البياع",{"$f":"SUM(Sheet2!C275:AF275)","v":3},{"$f":"Table1[[#This Row],[عدد الايام ]]*65","v":195},null,null,{"$f":"Table1[[#This Row],[المرتب ]]-(Table1[[#This Row],[السلف ]]+Table1[[#This Row],[الخصم ]])","v":195}]
["محمد احمد زكريا شهبو",{"$f":"SUM(Sheet2!C276:AF276)","v":34},{"$f":"Table1[[#This Row],[عدد الايام ]]*65","v":2210},null,null,{"$f":"Table1[[#This Row],[المرتب ]]-(Table1[[#This Row],[السلف ]]+Table1[[#This Row],[الخصم ]])","v":2210}]
["محمد احمد سيد احمد محفوظ",{"$f":"SUM(Sheet2!C277:AF277)","v":2},{"$f":"Table1[[#This Row],[عدد الايام ]]*65","v":130},null,null,{"$f":"Table1[[#This Row],[المرتب ]]-(Table1[[#This Row],[السلف ]]+Table1[[#This Row],[الخصم ]])","v":130}]
["محمد احمد عبدالحكم عبدالمطلب",{"$f":"SUM(Sheet2!C278:AF278)","v":2},{"$f":"Table1[[#This Row],[عدد الايام ]]*65","v":130},null,null,{"$f":"Table1[[#This Row],[المرتب ]]-(Table1[[#This Row],[السلف ]]+Table1[[#This Row],[الخصم ]])","v":130}]
["محمد احمد عبدالرحيم",{"$f":"SUM(Sheet2!C279:AF279)","v":1},{"$f":"Table1[[#This Row],[عدد الايام ]]*65","v":65},null,null,{"$f":"Table1[[#This Row],[المرتب ]]-(Table1[[#This Row],[السلف ]]+Table1[[#This Row],[الخصم ]])","v":65}]
["محمد احمد عبدالمجيد عسل",{"$f":"SUM(Sheet2!C280:AF280)","v":21},{"$f":"Table1[[#This Row],[عدد الايام ]]*65","v":1365},null,null,{"$f":"Table1[[#This Row],[المرتب ]]-(Table1[[#This Row],[السلف ]]+Table1[[#This Row],[الخصم ]])","v":1365}]
["محمد احمد عبدالمقصود شتله ",{"$f":"SUM(Sheet2!C281:AF281)","v":19},{"$f":"Table1[[#This Row],[عدد الايام ]]*65","v":1235},null,null,{"$f":"Table1[[#This Row],[المرتب ]]-(Table1[[#This Row],[السلف ]]+Table1[[#This Row],[الخصم ]])","v":1235}]
["محمد احمد علي قنديل",{"$f":"SUM(Sheet2!C282:AF282)","v":0},{"$f":"Table1[[#This Row],[عدد الايام ]]*65","v":0},null,null,{"$f":"Table1[[#This Row],[المرتب ]]-(Table1[[#This Row],[السلف ]]+Table1[[#This Row],[الخصم ]])","v":0}]
["محمد احمد عيداحمد",{"$f":"SUM(Sheet2!C283:AF283)","v":2},{"$f":"Table1[[#This Row],[عدد الايام ]]*65","v":130},null,null,{"$f":"Table1[[#This Row],[المرتب ]]-(Table1[[#This Row],[السلف ]]+Table1[[#This Row],[الخصم ]])","v":130}]
["محمد احمد محمد عبدالله",{"$f":"SUM(Sheet2!C284:AF284)","v":1},{"$f":"Table1[[#This Row],[عدد الايام ]]*65","v":65},null,null,{"$f":"Table1[[#This Row],[المرتب ]]-(Table1[[#This Row],[السلف ]]+Table1[[#This Row],[الخصم ]])","v":65}]
["محمد احمد مرضي",{"$f":"SUM(Sheet2!C285:AF285)","v":6},{"$f":"Table1[[#This Row],[عدد الايام ]]*65","v":390},null,null,{"$f":"Table1[[#This Row],[المرتب ]]-(Table1[[#This Row],[السلف ]]+Table1[[#This Row],[الخصم ]])","v":390}]
["محمد اسماعيل محمد احمد الديب",{"$f":"SUM(Sheet2!C286:AF286)","v":3},{"$f":"Table1[[#This Row],[عدد الايام ]]*65","v":195},null,null,{"$f":"Table1[[#This Row],[المرتب ]]-(Table1[[#This Row],[السلف ]]+Table1[[#This Row],[الخصم ]])","v":195}]
["محمد اشرف محمد محمود",{"$f":"SUM(Sheet2!C287:AF287)","v":2},{"$f":"Table1[[#This Row],[عدد الايام ]]*65","v":130},null,null,{"$f":"Table1[[#This Row],[المرتب ]]-(Table1[[#This Row],[السلف ]]+Table1[[#This Row],[الخصم ]])","v":130}]
["محمد السطوحي محمد عبدالعال",{"$f":"SUM(Sheet2!C288:AF288)","v":4},{"$f":"Table1[[#This Row],[عدد الايام ]]*65","v":260},null,null,{"$f":"Table1[[#This Row],[المرتب ]]-(Table1[[#This Row],[السلف ]]+Table1[[#This Row],[الخصم ]])","v":260}]
["محمد السعيد عبدالجواد",{"$f":"SUM(Sheet2!C289:AF289)","v":3},{"$f":"Table1[[#This Row],[عدد الايام ]]*65","v":195},null,null,{"$f":"Table1[[#This Row],[المرتب ]]-(Table1[[#This Row],[السلف ]]+Table1[[#This Row],[الخصم ]])","v":195}]
["محمد الشحات عبدالحميد",{"$f":"SUM(Sheet2!C290:AF290)","v":5},{"$f":"Table1[[#This Row],[عدد الايام ]]*65","v":325},null,null,{"$f":"Table1[[#This Row],[المرتب ]]-(Table1[[#This Row],[السلف ]]+Table1[[#This Row],[الخصم ]])","v":325}]
["محمد امين عبدالحميد شلبي",{"$f":"SUM(Sheet2!C291:AF291)","v":18},{"$f":"Table1[[#This Row],[عدد الايام ]]*65","v":1170},null,null,{"$f":"Table1[[#This Row],[المرتب ]]-(Table1[[#This Row],[السلف ]]+Table1[[#This Row],[الخصم ]])","v":1170}]
["محمد انور خميس السيد",{"$f":"SUM(Sheet2!C292:AF292)","v":2},{"$f":"Table1[[#This Row],[عدد الايام ]]*65","v":130},null,null,{"$f":"Table1[[#This Row],[المرتب ]]-(Table1[[#This Row],[السلف ]]+Table1[[#This Row],[الخصم ]])","v":130}]
["محمد جمال عبدالفضيل ابراهيم ",{"$f":"SUM(Sheet2!C293:AF293)","v":1},{"$f":"Table1[[#This Row],[عدد الايام ]]*65","v":65},null,null,{"$f":"Table1[[#This Row],[المرتب ]]-(Table1[[#This Row],[السلف ]]+Table1[[#This Row],[الخصم ]])","v":65}]
["محمد جمعه عبدالحكيم",{"$f":"SUM(Sheet2!C294:AF294)","v":2},{"$f":"Table1[[#This Row],[عدد الايام ]]*65","v":130},null,null,{"$f":"Table1[[#This Row],[المرتب ]]-(Table1[[#This Row],[السلف ]]+Table1[[#This Row],[الخصم ]])","v":130}]
["محمد جمعه عبدالعظيم محمد",{"$f":"SUM(Sheet2!C295:AF295)","v":13},{"$f":"Table1[[#This Row],[عدد الايام ]]*65","v":845},null,null,{"$f":"Table1[[#This Row],[المرتب ]]-(Table1[[#This Row],[السلف ]]+Table1[[#This Row],[الخصم ]])","v":845}]
["محمد حسام الدين محمد عباس",{"$f":"SUM(Sheet2!C296:AF296)","v":1},{"$f":"Table1[[#This Row],[عدد الايام ]]*65","v":65},null,null,{"$f":"Table1[[#This Row],[المرتب ]]-(Table1[[#This Row],[السلف ]]+Table1[[#This Row],[الخصم ]])","v":65}]
["محمد حسن صابر احمد",{"$f":"SUM(Sheet2!C297:AF297)","v":5},{"$f":"Table1[[#This Row],[عدد الايام ]]*65","v":325},null,null,{"$f":"Table1[[#This Row],[المرتب ]]-(Table1[[#This Row],[السلف ]]+Table1[[#This Row],[الخصم ]])","v":325}]
["محمد حسني خيرت عبدالعزيز",{"$f":"SUM(Sheet2!C298:AF298)","v":1},{"$f":"Table1[[#This Row],[عدد الايام ]]*65","v":65},null,null,{"$f":"Table1[[#This Row],[المرتب ]]-(Table1[[#This Row],[السلف ]]+Table1[[#This Row],[الخصم ]])","v":65}]
["محمد حمدي محمد علي ",{"$f":"SUM(Sheet2!C299:AF299)","v":1},{"$f":"Table1[[#This Row],[عدد الايام ]]*65","v":65},null,null,{"$f":"Table1[[#This Row],[المرتب ]]-(Table1[[#This Row],[السلف ]]+Table1[[#This Row],[الخصم ]])","v":65}]
["محمد خالد حلمي الشمالي",{"$f":"SUM(Sheet2!C300:AF300)","v":4},{"$f":"Table1[[#This Row],[عدد الايام ]]*65","v":260},null,null,{"$f":"Table1[[#This Row],[المرتب ]]-(Table1[[#This Row],[السلف ]]+Table1[[#This Row],[الخصم ]])","v":260}]
["محمد رجب عبدالظاهر عيد",{"$f":"SUM(Sheet2!C301:AF301)","v":1},{"$f":"Table1[[#This Row],[عدد الايام ]]*65","v":65},null,null,{"$f":"Table1[[#This Row],[المرتب ]]-(Table1[[#This Row],[السلف ]]+Table1[[#This Row],[الخصم ]])","v":65}]
["محمد رضا ابراهيم مبروك",{"$f":"SUM(Sheet2!C302:AF302)","v":4},{"$f":"Table1[[#This Row],[عدد الايام ]]*65","v":260},null,null,{"$f":"Table1[[#This Row],[المرتب ]]-(Table1[[#This Row],[السلف ]]+Table1[[#This Row],[الخصم ]])","v":260}]
["محمد رضا محمد علي اسماعيل",{"$f":"SUM(Sheet2!C303:AF303)","v":20},{"$f":"Table1[[#This Row],[عدد الايام ]]*65","v":1300},null,null,{"$f":"Table1[[#This Row],[المرتب ]]-(Table1[[#This Row],[السلف ]]+Table1[[#This Row],[الخصم ]])","v":1300}]
["محمد زكريا عبده البربري",{"$f":"SUM(Sheet2!C304:AF304)","v":13},{"$f":"Table1[[#This Row],[عدد الايام ]]*65","v":845},null,null,{"$f":"Table1[[#This Row],[المرتب ]]-(Table1[[#This Row],[السلف ]]+Table1[[#This Row],[الخصم ]])","v":845}]
["محمد سامي عبدالعزيز محمد",{"$f":"SUM(Sheet2!C305:AF305)","v":1},{"$f":"Table1[[#This Row],[عدد الايام ]]*65","v":65},null,null,{"$f":"Table1[[#This Row],[المرتب ]]-(Table1[[#This Row],[السلف ]]+Table1[[#This Row],[الخصم ]])","v":65}]
["محمد سعيد قطب محمود",{"$f":"SUM(Sheet2!C306:AF306)","v":2},{"$f":"Table1[[#This Row],[عدد الايام ]]*65","v":130},null,null,{"$f":"Table1[[#This Row],[المرتب ]]-(Table1[[#This Row],[السلف ]]+Table1[[#This Row],[الخصم ]])","v":130}]
["محمد سمير حسن عامر",{"$f":"SUM(Sheet2!C307:AF307)","v":25},{"$f":"Table1[[#This Row],[عدد الايام ]]*65","v":1625},null,null,{"$f":"Table1[[#This Row],[المرتب ]]-(Table1[[#This Row],[السلف ]]+Table1[[#This Row],[الخصم ]])","v":1625}]
["محمد شديد حسن  مراجعه علي الاسم",{"$f":"SUM(Sheet2!C308:AF308)","v":1},{"$f":"Table1[[#This Row],[عدد الايام ]]*65","v":65},null,null,{"$f":"Table1[[#This Row],[المرتب ]]-(Table1[[#This Row],[السلف ]]+Table1[[#This Row],[الخصم ]])","v":65}]
["محمد صبحي محمد الوكيل",{"$f":"SUM(Sheet2!C309:AF309)","v":0},{"$f":"Table1[[#This Row],[عدد الايام ]]*65","v":0},null,null,{"$f":"Table1[[#This Row],[المرتب ]]-(Table1[[#This Row],[السلف ]]+Table1[[#This Row],[الخصم ]])","v":0}]
["محمد صبري محمد حميده",{"$f":"SUM(Sheet2!C310:AF310)","v":19},{"$f":"Table1[[#This Row],[عدد الايام ]]*65","v":1235},null,null,{"$f":"Table1[[#This Row],[المرتب ]]-(Table1[[#This Row],[السلف ]]+Table1[[#This Row],[الخصم ]])","v":1235}]
["محمد صبري محمود الشرقاوي",{"$f":"SUM(Sheet2!C311:AF311)","v":1},{"$f":"Table1[[#This Row],[عدد الايام ]]*65","v":65},null,null,{"$f":"Table1[[#This Row],[المرتب ]]-(Table1[[#This Row],[السلف ]]+Table1[[#This Row],[الخصم ]])","v":65}]
["محمد طارق سعيد محمد",{"$f":"SUM(Sheet2!C312:AF312)","v":12},{"$f":"Table1[[#This Row],[عدد الايام ]]*65","v":780},null,null,{"$f":"Table1[[#This Row],[المرتب ]]-(Table1[[#This Row],[السلف ]]+Table1[[#This Row],[الخصم ]])","v":780}]
["محمد طلعت سيد عبدالرحيم",{"$f":"SUM(Sheet2!C313:AF313)","v":1},{"$f":"Table1[[#This Row],[عدد الايام ]]*65","v":65},null,null,{"$f":"Table1[[#This Row],[المرتب ]]-(Table1[[#This Row],[السلف ]]+Table1[[#This Row],[الخصم ]])","v":65}]
["محمد عبدالباسط محمد الطباخ",{"$f":"SUM(Sheet2!C314:AF314)","v":12},{"$f":"Table1[[#This Row],[عدد الايام ]]*65","v":780},null,null,{"$f":"Table1[[#This Row],[المرتب ]]-(Table1[[#This Row],[السلف ]]+Table1[[#This Row],[الخصم ]])","v":780}]
["محمد عبدالجليل حلاجي عبدالجليل",{"$f":"SUM(Sheet2!C315:AF315)","v":1},{"$f":"Table1[[#This Row],[عدد الايام ]]*65","v":65},null,null,{"$f":"Table1[[#This Row],[المرتب ]]-(Table1[[#This Row],[السلف ]]+Table1[[#This Row],[الخصم ]])","v":65}]
["محمد عبدالحميد امين هندي",{"$f":"SUM(Sheet2!C316:AF316)","v":3},{"$f":"Table1[[#This Row],[عدد الايام ]]*65","v":195},null,null,{"$f":"Table1[[#This Row],[المرتب ]]-(Table1[[#This Row],[السلف ]]+Table1[[#This Row],[الخصم ]])","v":195}]
["محمد عبدالرحيم عبدالمنعم",{"$f":"SUM(Sheet2!C317:AF317)","v":41},{"$f":"Table1[[#This Row],[عدد الايام ]]*65","v":2665},null,null,{"$f":"Table1[[#This Row],[المرتب ]]-(Table1[[#This Row],[السلف ]]+Table1[[#This Row],[الخصم ]])","v":2665}]
["محمد عبدالعزيز محمد زايد",{"$f":"SUM(Sheet2!C318:AF318)","v":13},{"$f":"Table1[[#This Row],[عدد الايام ]]*65","v":845},null,null,{"$f":"Table1[[#This Row],[المرتب ]]-(Table1[[#This Row],[السلف ]]+Table1[[#This Row],[الخصم ]])","v":845}]
["محمد عبدالغني جبر غنيم",{"$f":"SUM(Sheet2!C319:AF319)","v":5},{"$f":"Table1[[#This Row],[عدد الايام ]]*65","v":325},null,null,{"$f":"Table1[[#This Row],[المرتب ]]-(Table1[[#This Row],[السلف ]]+Table1[[#This Row],[الخصم ]])","v":325}]
["محمد عبداللطيف احمد البسيوني",{"$f":"SUM(Sheet2!C320:AF320)","v":43},{"$f":"Table1[[#This Row],[عدد الايام ]]*65","v":2795},null,null,{"$f":"Table1[[#This Row],[المرتب ]]-(Table1[[#This Row],[السلف ]]+Table1[[#This Row],[الخصم ]])","v":2795}]
["محمد عبداللطيف محمد عثمان",{"$f":"SUM(Sheet2!C321:AF321)","v":1},{"$f":"Table1[[#This Row],[عدد الايام ]]*65","v":65},null,null,{"$f":"Table1[[#This Row],[المرتب ]]-(Table1[[#This Row],[السلف ]]+Table1[[#This Row],[الخصم ]])","v":65}]
["محمد عبده الهولي علي",{"$f":"SUM(Sheet2!C322:AF322)","v":21},{"$f":"Table1[[#This Row],[عدد الايام ]]*65","v":1365},null,null,{"$f":"Table1[[#This Row],[المرتب ]]-(Table1[[#This Row],[السلف ]]+Table1[[#This Row],[الخصم ]])","v":1365}]
["محمد علي احمد علي مقبول",{"$f":"SUM(Sheet2!C323:AF323)","v":7},{"$f":"Table1[[#This Row],[عدد الايام ]]*65","v":455},null,null,{"$f":"Table1[[#This Row],[المرتب ]]-(Table1[[#This Row],[السلف ]]+Table1[[#This Row],[الخصم ]])","v":455}]
["محمد علي محمود علي نبيده علي",{"$f":"SUM(Sheet2!C324:AF324)","v":3},{"$f":"Table1[[#This Row],[عدد الايام ]]*65","v":195},null,null,{"$f":"Table1[[#This Row],[المرتب ]]-(Table1[[#This Row],[السلف ]]+Table1[[#This Row],[الخصم ]])","v":195}]
["محمد عمران حسن محمد",{"$f":"SUM(Sheet2!C325:AF325)","v":6},{"$f":"Table1[[#This Row],[عدد الايام ]]*65","v":390},null,null,{"$f":"Table1[[#This Row],[المرتب ]]-(Table1[[#This Row],[السلف ]]+Table1[[#This Row],[الخصم ]])","v":390}]
["محمد غريب رفاعي البياع",{"$f":"SUM(Sheet2!C326:AF326)","v":3},{"$f":"Table1[[#This Row],[عدد الايام ]]*65","v":195},null,null,{"$f":"Table1[[#This Row],[المرتب ]]-(Table1[[#This Row],[السلف ]]+Table1[[#This Row],[الخصم ]])","v":195}]
["محمد فتحي عبدالجليل",{"$f":"SUM(Sheet2!C327:AF327)","v":2},{"$f":"Table1[[#This Row],[عدد الايام ]]*65","v":130},null,null,{"$f":"Table1[[#This Row],[المرتب ]]-(Table1[[#This Row],[السلف ]]+Table1[[#This Row],[الخصم ]])","v":130}]
["محمد فتحي عبدالمجيد النجار",{"$f":"SUM(Sheet2!C328:AF328)","v":21},{"$f":"Table1[[#This Row],[عدد الايام ]]*65","v":1365},null,null,{"$f":"Table1[[#This Row],[المرتب ]]-(Table1[[#This Row],[السلف ]]+Table1[[#This Row],[الخصم ]])","v":1365}]
["محمد فتحي عطية عبدالجليل ",{"$f":"SUM(Sheet2!C329:AF329)","v":26},{"$f":"Table1[[#This Row],[عدد الايام ]]*65","v":1690},null,null,{"$f":"Table1[[#This Row],[المرتب ]]-(Table1[[#This Row],[السلف ]]+Table1[[#This Row],[الخصم ]])","v":1690}]
["محمد فتحي فكري احمد",{"$f":"SUM(Sheet2!C330:AF330)","v":3},{"$f":"Table1[[#This Row],[عدد الايام ]]*65","v":195},null,null,{"$f":"Table1[[#This Row],[المرتب ]]-(Table1[[#This Row],[السلف ]]+Table1[[#This Row],[الخصم ]])","v":195}]
["محمد فتحي فوزي خالد",{"$f":"SUM(Sheet2!C331:AF331)","v":1},{"$f":"Table1[[#This Row],[عدد الايام ]]*65","v":65},null,null,{"$f":"Table1[[#This Row],[المرتب ]]-(Table1[[#This Row],[السلف ]]+Table1[[#This Row],[الخصم ]])","v":65}]
["محمد فرج عبدالعزيز عبدالسلام",{"$f":"SUM(Sheet2!C332:AF332)","v":1},{"$f":"Table1[[#This Row],[عدد الايام ]]*65","v":65},null,null,{"$f":"Table1[[#This Row],[المرتب ]]-(Table1[[#This Row],[السلف ]]+Table1[[#This Row],[الخصم ]])","v":65}]
["محمد فوزي صديق موسي",{"$f":"SUM(Sheet2!C333:AF333)","v":1},{"$f":"Table1[[#This Row],[عدد الايام ]]*65","v":65},null,null,{"$f":"Table1[[#This Row],[المرتب ]]-(Table1[[#This Row],[السلف ]]+Table1[[#This Row],[الخصم ]])","v":65}]
["محمد كمال احمد محمد",{"$f":"SUM(Sheet2!C334:AF334)","v":5},{"$f":"Table1[[#This Row],[عدد الايام ]]*65","v":325},null,null,{"$f":"Table1[[#This Row],[المرتب ]]-(Table1[[#This Row],[السلف ]]+Table1[[#This Row],[الخصم ]])","v":325}]
["محمد لطفي عطا",{"$f":"SUM(Sheet2!C335:AF335)","v":2},{"$f":"Table1[[#This Row],[عدد الايام ]]*65","v":130},null,null,{"$f":"Table1[[#This Row],[المرتب ]]-(Table1[[#This Row],[السلف ]]+Table1[[#This Row],[الخصم ]])","v":130}]
["محمد محروس علي عبدالعزيز",{"$f":"SUM(Sheet2!C336:AF336)","v":1},{"$f":"Table1[[#This Row],[عدد الايام ]]*65","v":65},null,null,{"$f":"Table1[[#This Row],[المرتب ]]-(Table1[[#This Row],[السلف ]]+Table1[[#This Row],[الخصم ]])","v":65}]
["محمد محمود ابراهيم الخولي",{"$f":"SUM(Sheet2!C337:AF337)","v":1},{"$f":"Table1[[#This Row],[عدد الايام ]]*65","v":65},null,null,{"$f":"Table1[[#This Row],[المرتب ]]-(Table1[[#This Row],[السلف ]]+Table1[[#This Row],[الخصم ]])","v":65}]
["محمد محمود حماده اسماعيل",{"$f":"SUM(Sheet2!C338:AF338)","v":7},{"$f":"Table1[[#This Row],[عدد الايام ]]*65","v":455},null,null,{"$f":"Table1[[#This Row],[المرتب ]]-(Table1[[#This Row],[السلف ]]+Table1[[#This Row],[الخصم ]])","v":455}]
["محمد محمود عبدالغفار عبدالهادي",{"$f":"SUM(Sheet2!C339:AF339)","v":1},{"$f":"Table1[[#This Row],[عدد الايام ]]*65","v":65},null,null,{"$f":"Table1[[#This Row],[المرتب ]]-(Table1[[#This Row],[السلف ]]+Table1[[#This Row],[الخصم ]])","v":65}]
["محمد محمود علي محمود",{"$f":"SUM(Sheet2!C340:AF340)","v":14},{"$f":"Table1[[#This Row],[عدد الايام ]]*65","v":910},null,null,{"$f":"Table1[[#This Row],[المرتب ]]-(Table1[[#This Row],[السلف ]]+Table1[[#This Row],[الخصم ]])","v":910}]
["محمد محمود محمد احمد",{"$f":"SUM(Sheet2!C341:AF341)","v":2},{"$f":"Table1[[#This Row],[عدد الايام ]]*65","v":130},null,null,{"$f":"Table1[[#This Row],[المرتب ]]-(Table1[[#This Row],[السلف ]]+Table1[[#This Row],[الخصم ]])","v":130}]
["محمد محمود محمد السقا",{"$f":"SUM(Sheet2!C342:AF342)","v":14},{"$f":"Table1[[#This Row],[عدد الايام ]]*65","v":910},null,null,{"$f":"Table1[[#This Row],[المرتب ]]-(Table1[[#This Row],[السلف ]]+Table1[[#This Row],[الخصم ]])","v":910}]
["محمد مخلص محمد محمد عوض",{"$f":"SUM(Sheet2!C343:AF343)","v":1},{"$f":"Table1[[#This Row],[عدد الايام ]]*65","v":65},null,null,{"$f":"Table1[[#This Row],[المرتب ]]-(Table1[[#This Row],[السلف ]]+Table1[[#This Row],[الخصم ]])","v":65}]
["محمد ممدوح محمد عبدالجواد",{"$f":"SUM(Sheet2!C344:AF344)","v":14},{"$f":"Table1[[#This Row],[عدد الايام ]]*65","v":910},null,null,{"$f":"Table1[[#This Row],[المرتب ]]-(Table1[[#This Row],[السلف ]]+Table1[[#This Row],[الخصم ]])","v":910}]
["محمد منصور عبدالمجيد",{"$f":"SUM(Sheet2!C345:AF345)","v":20},{"$f":"Table1[[#This Row],[عدد الايام ]]*65","v":1300},null,null,{"$f":"Table1[[#This Row],[المرتب ]]-(Table1[[#This Row],[السلف ]]+Table1[[#This Row],[الخصم ]])","v":1300}]
["محمد مهدي سالم",{"$f":"SUM(Sheet2!C346:AF346)","v":10},{"$f":"Table1[[#This Row],[عدد الايام ]]*65","v":650},null,null,{"$f":"Table1[[#This Row],[المرتب ]]-(Table1[[#This Row],[السلف ]]+Table1[[#This Row],[الخصم ]])","v":650}]
["محمد ناصر محمد سليم",{"$f":"SUM(Sheet2!C347:AF347)","v":3},{"$f":"Table1[[#This Row],[عدد الايام ]]*65","v":195},null,null,{"$f":"Table1[[#This Row],[المرتب ]]-(Table1[[#This Row],[السلف ]]+Table1[[#This Row],[الخصم ]])","v":195}]
["محمد ناصرعبداللطيف محمود حسب النبي",{"$f":"SUM(Sheet2!C348:AF348)","v":1},{"$f":"Table1[[#This Row],[عدد الايام ]]*65","v":65},null,null,{"$f":"Table1[[#This Row],[المرتب ]]-(Table1[[#This Row],[السلف ]]+Table1[[#This Row],[الخصم ]])","v":65}]
["محمد نور خميس السيد",{"$f":"SUM(Sheet2!C349:AF349)","v":2},{"$f":"Table1[[#This Row],[عدد الايام ]]*65","v":130},null,null,{"$f":"Table1[[#This Row],[المرتب ]]-(Table1[[#This Row],[السلف ]]+Table1[[#This Row],[الخصم ]])","v":130}]
["محمد وليد محمود الشحات",{"$f":"SUM(Sheet2!C350:AF350)","v":2},{"$f":"Table1[[#This Row],[عدد الايام ]]*65","v":130},null,null,{"$f":"Table1[[#This Row],[المرتب ]]-(Table1[[#This Row],[السلف ]]+Table1[[#This Row],[الخصم ]])","v":130}]
["محمد ياسر محمدعبدالحميد",{"$f":"SUM(Sheet2!C351:AF351)","v":9},{"$f":"Table1[[#This Row],[عدد الايام ]]*65","v":585},null,null,{"$f":"Table1[[#This Row],[المرتب ]]-(Table1[[#This Row],[السلف ]]+Table1[[#This Row],[الخصم ]])","v":585}]
["محمد يحيي محمد مبروك",{"$f":"SUM(Sheet2!C352:AF352)","v":4},{"$f":"Table1[[#This Row],[عدد الايام ]]*65","v":260},null,null,{"$f":"Table1[[#This Row],[المرتب ]]-(Table1[[#This Row],[السلف ]]+Table1[[#This Row],[الخصم ]])","v":260}]
["محمد يسري محمد رجب",{"$f":"SUM(Sheet2!C353:AF353)","v":4},{"$f":"Table1[[#This Row],[عدد الايام ]]*65","v":260},null,null,{"$f":"Table1[[#This Row],[المرتب ]]-(Table1[[#This Row],[السلف ]]+Table1[[#This Row],[الخصم ]])","v":260}]
["محمود ابراهيم عاشور عبدالوهاب",{"$f":"SUM(Sheet2!C354:AF354)","v":2},{"$f":"Table1[[#This Row],[عدد الايام ]]*65","v":130},null,null,{"$f":"Table1[[#This Row],[المرتب ]]-(Table1[[#This Row],[السلف ]]+Table1[[#This Row],[الخصم ]])","v":130}]
["محمود احمد عبدالمقصود عبدالعاطي",{"$f":"SUM(Sheet2!C355:AF355)","v":1},{"$f":"Table1[[#This Row],[عدد الايام ]]*65","v":65},null,null,{"$f":"Table1[[#This Row],[المرتب ]]-(Table1[[#This Row],[السلف ]]+Table1[[#This Row],[الخصم ]])","v":65}]
["محمود احمد محمد حمزة",{"$f":"SUM(Sheet2!C356:AF356)","v":1},{"$f":"Table1[[#This Row],[عدد الايام ]]*65","v":65},null,null,{"$f":"Table1[[#This Row],[المرتب ]]-(Table1[[#This Row],[السلف ]]+Table1[[#This Row],[الخصم ]])","v":65}]
["محمود اشرف محمد محمود",{"$f":"SUM(Sheet2!C357:AF357)","v":27},{"$f":"Table1[[#This Row],[عدد الايام ]]*65","v":1755},null,null,{"$f":"Table1[[#This Row],[المرتب ]]-(Table1[[#This Row],[السلف ]]+Table1[[#This Row],[الخصم ]])","v":1755}]
["محمود بغدادي توفيق",{"$f":"SUM(Sheet2!C358:AF358)","v":20},{"$f":"Table1[[#This Row],[عدد الايام ]]*65","v":1300},null,null,{"$f":"Table1[[#This Row],[المرتب ]]-(Table1[[#This Row],[السلف ]]+Table1[[#This Row],[الخصم ]])","v":1300}]
["محمود تحسين جاد الرب",{"$f":"SUM(Sheet2!C359:AF359)","v":29},{"$f":"Table1[[#This Row],[عدد الايام ]]*65","v":1885},null,null,{"$f":"Table1[[#This Row],[المرتب ]]-(Table1[[#This Row],[السلف ]]+Table1[[#This Row],[الخصم ]])","v":1885}]
["محمود جلال عثمان",{"$f":"SUM(Sheet2!C360:AF360)","v":1},{"$f":"Table1[[#This Row],[عدد الايام ]]*65","v":65},null,null,{"$f":"Table1[[#This Row],[المرتب ]]-(Table1[[#This Row],[السلف ]]+Table1[[#This Row],[الخصم ]])","v":65}]
["محمود جوده احمد علي",{"$f":"SUM(Sheet2!C361:AF361)","v":0},{"$f":"Table1[[#This Row],[عدد الايام ]]*65","v":0},null,null,{"$f":"Table1[[#This Row],[المرتب ]]-(Table1[[#This Row],[السلف ]]+Table1[[#This Row],[الخصم ]])","v":0}]
["محمود حسن السيد احمد",{"$f":"SUM(Sheet2!C362:AF362)","v":7},{"$f":"Table1[[#This Row],[عدد الايام ]]*65","v":455},null,null,{"$f":"Table1[[#This Row],[المرتب ]]-(Table1[[#This Row],[السلف ]]+Table1[[#This Row],[الخصم ]])","v":455}]
["محمود خليل عثمان البربري",{"$f":"SUM(Sheet2!C363:AF363)","v":18},{"$f":"Table1[[#This Row],[عدد الايام ]]*65","v":1170},null,null,{"$f":"Table1[[#This Row],[المرتب ]]-(Table1[[#This Row],[السلف ]]+Table1[[#This Row],[الخصم ]])","v":1170}]
["محمود رجب عبدالظاهر ",{"$f":"SUM(Sheet2!C364:AF364)","v":27},{"$f":"Table1[[#This Row],[عدد الايام ]]*65","v":1755},null,null,{"$f":"Table1[[#This Row],[المرتب ]]-(Table1[[#This Row],[السلف ]]+Table1[[#This Row],[الخصم ]])","v":1755}]
["محمود رفعت محمدالجزار",{"$f":"SUM(Sheet2!C365:AF365)","v":4},{"$f":"Table1[[#This Row],[عدد الايام ]]*65","v":260},null,null,{"$f":"Table1[[#This Row],[المرتب ]]-(Table1[[#This Row],[السلف ]]+Table1[[#This Row],[الخصم ]])","v":260}]
["محمود سامي عبدالعزيز",{"$f":"SUM(Sheet2!C366:AF366)","v":22},{"$f":"Table1[[#This Row],[عدد الايام ]]*65","v":1430},null,null,{"$f":"Table1[[#This Row],[المرتب ]]-(Table1[[#This Row],[السلف ]]+Table1[[#This Row],[الخصم ]])","v":1430}]
["محمود سعيد نجم ",{"$f":"SUM(Sheet2!C367:AF367)","v":5},{"$f":"Table1[[#This Row],[عدد الايام ]]*65","v":325},null,null,{"$f":"Table1[[#This Row],[المرتب ]]-(Table1[[#This Row],[السلف ]]+Table1[[#This Row],[الخصم ]])","v":325}]
["محمود صبري محمود الشرقاوي",{"$f":"SUM(Sheet2!C368:AF368)","v":1},{"$f":"Table1[[#This Row],[عدد الايام ]]*65","v":65},null,null,{"$f":"Table1[[#This Row],[المرتب ]]-(Table1[[#This Row],[السلف ]]+Table1[[#This Row],[الخصم ]])","v":65}]
["محمود عامر محمد متولي",{"$f":"SUM(Sheet2!C369:AF369)","v":3},{"$f":"Table1[[#This Row],[عدد الايام ]]*65","v":195},null,null,{"$f":"Table1[[#This Row],[المرتب ]]-(Table1[[#This Row],[السلف ]]+Table1[[#This Row],[الخصم ]])","v":195}]
["محمود عبدالسميع السعيد عبدالجواد",{"$f":"SUM(Sheet2!C370:AF370)","v":44},{"$f":"Table1[[#This Row],[عدد الايام ]]*65","v":2860},null,null,{"$f":"Table1[[#This Row],[المرتب ]]-(Table1[[#This Row],[السلف ]]+Table1[[#This Row],[الخصم ]])","v":2860}]
["محمود عيد محمد عبدالغني",{"$f":"SUM(Sheet2!C371:AF371)","v":1},{"$f":"Table1[[#This Row],[عدد الايام ]]*65","v":65},null,null,{"$f":"Table1[[#This Row],[المرتب ]]-(Table1[[#This Row],[السلف ]]+Table1[[#This Row],[الخصم ]])","v":65}]
["محمود فتحي فوزي خالد",{"$f":"SUM(Sheet2!C372:AF372)","v":9},{"$f":"Table1[[#This Row],[عدد الايام ]]*65","v":585},null,null,{"$f":"Table1[[#This Row],[المرتب ]]-(Table1[[#This Row],[السلف ]]+Table1[[#This Row],[الخصم ]])","v":585}]
["محمود فوزي صديق",{"$f":"SUM(Sheet2!C373:AF373)","v":18},{"$f":"Table1[[#This Row],[عدد الايام ]]*65","v":1170},null,null,{"$f":"Table1[[#This Row],[المرتب ]]-(Table1[[#This Row],[السلف ]]+Table1[[#This Row],[الخصم ]])","v":1170}]
["محمود محمد احمدعبدالمقصود",{"$f":"SUM(Sheet2!C374:AF374)","v":32},{"$f":"Table1[[#This Row],[عدد الايام ]]*65","v":2080},null,null,{"$f":"Table1[[#This Row],[المرتب ]]-(Table1[[#This Row],[السلف ]]+Table1[[#This Row],[الخصم ]])","v":2080}]
["محمود محمد محمد الشرباصي",{"$f":"SUM(Sheet2!C375:AF375)","v":6},{"$f":"Table1[[#This Row],[عدد الايام ]]*65","v":390},null,null,{"$f":"Table1[[#This Row],[المرتب ]]-(Table1[[#This Row],[السلف ]]+Table1[[#This Row],[الخصم ]])","v":390}]
["محمود نمر وهيب ادم",{"$f":"SUM(Sheet2!C376:AF376)","v":29},{"$f":"Table1[[#This Row],[عدد الايام ]]*65","v":1885},null,null,{"$f":"Table1[[#This Row],[المرتب ]]-(Table1[[#This Row],[السلف ]]+Table1[[#This Row],[الخصم ]])","v":1885}]
["محمود يوسف جامع احمد",{"$f":"SUM(Sheet2!C377:AF377)","v":5},{"$f":"Table1[[#This Row],[عدد الايام ]]*65","v":325},null,null,{"$f":"Table1[[#This Row],[المرتب ]]-(Table1[[#This Row],[السلف ]]+Table1[[#This Row],[الخصم ]])","v":325}]
["محمود يوسف محمود مهدي",{"$f":"SUM(Sheet2!C378:AF378)","v":4},{"$f":"Table1[[#This Row],[عدد الايام ]]*65","v":260},null,null,{"$f":"Table1[[#This Row],[المرتب ]]-(Table1[[#This Row],[السلف ]]+Table1[[#This Row],[الخصم ]])","v":260}]
["مختار علي محمد عبدالخالق",{"$f":"SUM(Sheet2!C379:AF379)","v":4},{"$f":"Table1[[#This Row],[عدد الايام ]]*65","v":260},null,null,{"$f":"Table1[[#This Row],[المرتب ]]-(Table1[[#This Row],[السلف ]]+Table1[[#This Row],[الخصم ]])","v":260}]
["مختار محمد محمود محمد حسن",{"$f":"SUM(Sheet2!C380:AF380)","v":5},{"$f":"Table1[[#This Row],[عدد الايام ]]*65","v":325},null,null,{"$f":"Table1[[#This Row],[المرتب ]]-(Table1[[#This Row],[السلف ]]+Table1[[#This Row],[الخصم ]])","v":325}]
["مصطفي احمد عبدالحميد عبدالمنصف",{"$f":"SUM(Sheet2!C381:AF381)","v":15},{"$f":"Table1[[#This Row],[عدد الايام ]]*65","v":975},null,null,{"$f":"Table1[[#This Row],[المرتب ]]-(Table1[[#This Row],[السلف ]]+Table1[[#This Row],[الخصم ]])","v":975}]
["مصطفي احمد عيد عبدالحميد",{"$f":"SUM(Sheet2!C382:AF382)","v":5},{"$f":"Table1[[#This Row],[عدد الايام ]]*65","v":325},null,null,{"$f":"Table1[[#This Row],[المرتب ]]-(Table1[[#This Row],[السلف ]]+Table1[[#This Row],[الخصم ]])","v":325}]
["مصطفي اسماعيل اسماعيل  ",{"$f":"SUM(Sheet2!C383:AF383)","v":18},{"$f":"Table1[[#This Row],[عدد الايام ]]*65","v":1170},null,null,{"$f":"Table1[[#This Row],[المرتب ]]-(Table1[[#This Row],[السلف ]]+Table1[[#This Row],[الخصم ]])","v":1170}]
["مصطفي ايهاب محمد عبدالعليم",{"$f":"SUM(Sheet2!C384:AF384)","v":1},{"$f":"Table1[[#This Row],[عدد الايام ]]*65","v":65},null,null,{"$f":"Table1[[#This Row],[المرتب ]]-(Table1[[#This Row],[السلف ]]+Table1[[#This Row],[الخصم ]])","v":65}]
["مصطفي سمير ابراهيم رزق",{"$f":"SUM(Sheet2!C385:AF385)","v":1},{"$f":"Table1[[#This Row],[عدد الايام ]]*65","v":65},null,null,{"$f":"Table1[[#This Row],[المرتب ]]-(Table1[[#This Row],[السلف ]]+Table1[[#This Row],[الخصم ]])","v":65}]
["مصطفي صلاح عباس",{"$f":"SUM(Sheet2!C386:AF386)","v":5},{"$f":"Table1[[#This Row],[عدد الايام ]]*65","v":325},null,null,{"$f":"Table1[[#This Row],[المرتب ]]-(Table1[[#This Row],[السلف ]]+Table1[[#This Row],[الخصم ]])","v":325}]
["مصطفي عبدالحميد عبدالمنصف",{"$f":"SUM(Sheet2!C387:AF387)","v":1},{"$f":"Table1[[#This Row],[عدد الايام ]]*65","v":65},null,null,{"$f":"Table1[[#This Row],[المرتب ]]-(Table1[[#This Row],[السلف ]]+Table1[[#This Row],[الخصم ]])","v":65}]
["مصطفي عبدالقادر مبروك",{"$f":"SUM(Sheet2!C388:AF388)","v":3},{"$f":"Table1[[#This Row],[عدد الايام ]]*65","v":195},null,null,{"$f":"Table1[[#This Row],[المرتب ]]-(Table1[[#This Row],[السلف ]]+Table1[[#This Row],[الخصم ]])","v":195}]
["مصطفي محمد محمد دراز",{"$f":"SUM(Sheet2!C389:AF389)","v":1},{"$f":"Table1[[#This Row],[عدد الايام ]]*65","v":65},null,null,{"$f":"Table1[[#This Row],[المرتب ]]-(Table1[[#This Row],[السلف ]]+Table1[[#This Row],[الخصم ]])","v":65}]
["مصطفي محمود حافظ عاشور",{"$f":"SUM(Sheet2!C390:AF390)","v":1},{"$f":"Table1[[#This Row],[عدد الايام ]]*65","v":65},null,null,{"$f":"Table1[[#This Row],[المرتب ]]-(Table1[[#This Row],[السلف ]]+Table1[[#This Row],[الخصم ]])","v":65}]
["مصطفي ناصر ثابت علي",{"$f":"SUM(Sheet2!C391:AF391)","v":9},{"$f":"Table1[[#This Row],[عدد الايام ]]*65","v":585},null,null,{"$f":"Table1[[#This Row],[المرتب ]]-(Table1[[#This Row],[السلف ]]+Table1[[#This Row],[الخصم ]])","v":585}]
["معاز ممدوح ابراهيم جويده",{"$f":"SUM(Sheet2!C392:AF392)","v":4},{"$f":"Table1[[#This Row],[عدد الايام ]]*65","v":260},null,null,{"$f":"Table1[[#This Row],[المرتب ]]-(Table1[[#This Row],[السلف ]]+Table1[[#This Row],[الخصم ]])","v":260}]
["معتز سمير عبدربه محمد",{"$f":"SUM(Sheet2!C393:AF393)","v":17},{"$f":"Table1[[#This Row],[عدد الايام ]]*65","v":1105},null,null,{"$f":"Table1[[#This Row],[المرتب ]]-(Table1[[#This Row],[السلف ]]+Table1[[#This Row],[الخصم ]])","v":1105}]
["مؤمن نور فتحي بدر",{"$f":"SUM(Sheet2!C394:AF394)","v":1},{"$f":"Table1[[#This Row],[عدد الايام ]]*65","v":65},null,null,{"$f":"Table1[[#This Row],[المرتب ]]-(Table1[[#This Row],[السلف ]]+Table1[[#This Row],[الخصم ]])","v":65}]
["مينا ميلاد بباوي جبرايل",{"$f":"SUM(Sheet2!C395:AF395)","v":1},{"$f":"Table1[[#This Row],[عدد الايام ]]*65","v":65},null,null,{"$f":"Table1[[#This Row],[المرتب ]]-(Table1[[#This Row],[السلف ]]+Table1[[#This Row],[الخصم ]])","v":65}]
["نادر الشحات بدير الشحات",{"$f":"SUM(Sheet2!C396:AF396)","v":2},{"$f":"Table1[[#This Row],[عدد الايام ]]*65","v":130},null,null,{"$f":"Table1[[#This Row],[المرتب ]]-(Table1[[#This Row],[السلف ]]+Table1[[#This Row],[الخصم ]])","v":130}]
["نورالدين سيد معروف علي",{"$f":"SUM(Sheet2!C397:AF397)","v":1},{"$f":"Table1[[#This Row],[عدد الايام ]]*65","v":65},null,null,{"$f":"Table1[[#This Row],[المرتب ]]-(Table1[[#This Row],[السلف ]]+Table1[[#This Row],[الخصم ]])","v":65}]
["هاني سعد ابراهيم محارب",{"$f":"SUM(Sheet2!C398:AF398)","v":32},{"$f":"Table1[[#This Row],[عدد الايام ]]*65","v":2080},null,null,{"$f":"Table1[[#This Row],[المرتب ]]-(Table1[[#This Row],[السلف ]]+Table1[[#This Row],[الخصم ]])","v":2080}]
["هاني عبدالحي عيد حسن",{"$f":"SUM(Sheet2!C399:AF399)","v":1},{"$f":"Table1[[#This Row],[عدد الايام ]]*65","v":65},null,null,{"$f":"Table1[[#This Row],[المرتب ]]-(Table1[[#This Row],[السلف ]]+Table1[[#This Row],[الخصم ]])","v":65}]
["هديره طه عبدالهادي قنديل",{"$f":"SUM(Sheet2!C400:AF400)","v":21},{"$f":"Table1[[#This Row],[عدد الايام ]]*65","v":1365},null,null,{"$f":"Table1[[#This Row],[المرتب ]]-(Table1[[#This Row],[السلف ]]+Table1[[#This Row],[الخصم ]])","v":1365}]
["هشام سعيد صبحي عبدالعزيز",{"$f":"SUM(Sheet2!C401:AF401)","v":26},{"$f":"Table1[[#This Row],[عدد الايام ]]*65","v":1690},null,null,{"$f":"Table1[[#This Row],[المرتب ]]-(Table1[[#This Row],[السلف ]]+Table1[[#This Row],[الخصم ]])","v":1690}]
["هشام صابر سليم ادم",{"$f":"SUM(Sheet2!C402:AF402)","v":1},{"$f":"Table1[[#This Row],[عدد الايام ]]*65","v":65},null,null,{"$f":"Table1[[#This Row],[المرتب ]]-(Table1[[#This Row],[السلف ]]+Table1[[#This Row],[الخصم ]])","v":65}]
["هشام فتحي خليل المنوفي",{"$f":"SUM(Sheet2!C403:AF403)","v":0},{"$f":"Table1[[#This Row],[عدد الايام ]]*65","v":0},null,null,{"$f":"Table1[[#This Row],[المرتب ]]-(Table1[[#This Row],[السلف ]]+Table1[[#This Row],[الخصم ]])","v":0}]
["واءل رجب فنح الله حماده",{"$f":"SUM(Sheet2!C404:AF404)","v":1},{"$f":"Table1[[#This Row],[عدد الايام ]]*65","v":65},null,null,{"$f":"Table1[[#This Row],[المرتب ]]-(Table1[[#This Row],[السلف ]]+Table1[[#This Row],[الخصم ]])","v":65}]
["ياسر محمد ابراهيم سيد",{"$f":"SUM(Sheet2!C405:AF405)","v":2},{"$f":"Table1[[#This Row],[عدد الايام ]]*65","v":130},null,null,{"$f":"Table1[[#This Row],[المرتب ]]-(Table1[[#This Row],[السلف ]]+Table1[[#This Row],[الخصم ]])","v":130}]
["ياسر محمد محمد عباده",{"$f":"SUM(Sheet2!C406:AF406)","v":43},{"$f":"Table1[[#This Row],[عدد الايام ]]*65","v":2795},null,null,{"$f":"Table1[[#This Row],[المرتب ]]-(Table1[[#This Row],[السلف ]]+Table1[[#This Row],[الخصم ]])","v":2795}]
["يحي محمد عبدالكريم الاعرج",{"$f":"SUM(Sheet2!C407:AF407)","v":28},{"$f":"Table1[[#This Row],[عدد الايام ]]*65","v":1820},null,null,{"$f":"Table1[[#This Row],[المرتب ]]-(Table1[[#This Row],[السلف ]]+Table1[[#This Row],[الخصم ]])","v":1820}]
["يحيي فتحي محمد عبدالله راشد",{"$f":"SUM(Sheet2!C408:AF408)","v":1},{"$f":"Table1[[#This Row],[عدد الايام ]]*65","v":65},null,null,{"$f":"Table1[[#This Row],[المرتب ]]-(Table1[[#This Row],[السلف ]]+Table1[[#This Row],[الخصم ]])","v":65}]
["يوسف احمد السيد",{"$f":"SUM(Sheet2!C409:AF409)","v":5},{"$f":"Table1[[#This Row],[عدد الايام ]]*65","v":325},null,null,{"$f":"Table1[[#This Row],[المرتب ]]-(Table1[[#This Row],[السلف ]]+Table1[[#This Row],[الخصم ]])","v":325}]
["يوسف الجمل علي كمال الدين",{"$f":"SUM(Sheet2!C410:AF410)","v":31},{"$f":"Table1[[#This Row],[عدد الايام ]]*65","v":2015},null,null,{"$f":"Table1[[#This Row],[المرتب ]]-(Table1[[#This Row],[السلف ]]+Table1[[#This Row],[الخصم ]])","v":2015}]
["يوسف حسين فرحات",{"$f":"SUM(Sheet2!C411:AF411)","v":1},{"$f":"Table1[[#This Row],[عدد الايام ]]*65","v":65},null,null,{"$f":"Table1[[#This Row],[المرتب ]]-(Table1[[#This Row],[السلف ]]+Table1[[#This Row],[الخصم ]])","v":65}]
["يوسف شعبان عبدالمنعم",{"$f":"SUM(Sheet2!C412:AF412)","v":4},{"$f":"Table1[[#This Row],[عدد الايام ]]*65","v":260},null,null,{"$f":"Table1[[#This Row],[المرتب ]]-(Table1[[#This Row],[السلف ]]+Table1[[#This Row],[الخصم ]])","v":260}]
["يونس الجمل علي كمال",{"$f":"SUM(Sheet2!C413:AF413)","v":15},{"$f":"Table1[[#This Row],[عدد الايام ]]*65","v":975},null,null,{"$f":"Table1[[#This Row],[المرتب ]]-(Table1[[#This Row],[السلف ]]+Table1[[#This Row],[الخصم ]])","v":975}]
[null,{"$f":"SUM(Sheet2!C414:AF414)","v":0},{"$f":"Table1[[#This Row],[عدد الايام ]]*65","v":0},null,null,{"$f":"Table1[[#This Row],[المرتب ]]-(Table1[[#This Row],[السلف ]]+Table1[[#This Row],[الخصم ]])","v":0}]
[null,{"$f":"SUM(Sheet2!C415:AF415)","v":0},{"$f":"Table1[[#This Row],[عدد الايام ]]*65","v":0},null,null,{"$f":"Table1[[#This Row],[المرتب ]]-(Table1[[#This Row],[السلف ]]+Table1[[#This Row],[الخصم ]])","v":0}]
[null,{"$f":"SUM(Sheet2!C416:AF416)","v":0},{"$f":"Table1[[#This Row],[عدد الايام ]]*65","v":0},null,null,{"$f":"Table1[[#This Row],[المرتب ]]-(Table1[[#This Row],[السلف ]]+Table1[[#This Row],[الخصم ]])","v":0}]
[null,{"$f":"SUM(Sheet2!C417:AF417)","v":0},{"$f":"Table1[[#This Row],[عدد الايام ]]*65","v":0},null,null,{"$f":"Table1[[#This Row],[المرتب ]]-(Table1[[#This Row],[السلف ]]+Table1[[#This Row],[الخصم ]])","v":0}]
[null,{"$f":"SUM(Sheet2!C418:AF418)","v":0},{"$f":"Table1[[#This Row],[عدد الايام ]]*65","v":0},null,null,{"$f":"Table1[[#This Row],[المرتب ]]-(Table1[[#This Row],[السلف ]]+Table1[[#This Row],[الخصم ]])","v":0}]
[null,{"$f":"SUM(Sheet2!C419:AF419)","v":0},{"$f":"Table1[[#This Row],[عدد الايام ]]*65","v":0},null,null,{"$f":"Table1[[#This Row],[المرتب ]]-(Table1[[#This Row],[السلف ]]+Table1[[#This Row],[الخصم ]])","v":0}]
[null,{"$f":"SUM(Sheet2!C420:AF420)","v":0},{"$f":"Table1[[#This Row],[عدد الايام ]]*65","v":0},null,null,{"$f":"Table1[[#This Row],[المرتب ]]-(Table1[[#This Row],[السلف ]]+Table1[[#This Row],[الخصم ]])","v":0}]
[null,{"$f":"SUM(Sheet2!C421:AF421)","v":0},{"$f":"Table1[[#This Row],[عدد الايام ]]*65","v":0},null,null,{"$f":"Table1[[#This Row],[المرتب ]]-(Table1[[#This Row],[السلف ]]+Table1[[#This Row],[الخصم ]])","v":0}]
[null,{"$f":"SUM(Sheet2!C422:AF422)","v":0},{"$f":"Table1[[#This Row],[عدد الايام ]]*65","v":0},null,null,{"$f":"Table1[[#This Row],[المرتب ]]-(Table1[[#This Row],[السلف ]]+Table1[[#This Row],[الخصم ]])","v":0}]
[null,{"$f":"SUM(Sheet2!C423:AF423)","v":0},{"$f":"Table1[[#This Row],[عدد الايام ]]*65","v":0},null,null,{"$f":"Table1[[#This Row],[المرتب ]]-(Table1[[#This Row],[السلف ]]+Table1[[#This Row],[الخصم ]])","v":0}]
[null,{"$f":"SUM(Sheet2!C424:AF424)","v":0},{"$f":"Table1[[#This Row],[عدد الايام ]]*65","v":0},null,null,{"$f":"Table1[[#This Row],[المرتب ]]-(Table1[[#This Row],[السلف ]]+Table1[[#This Row],[الخصم ]])","v":0}]
[null,{"$f":"SUM(Sheet2!C425:AF425)","v":0},{"$f":"Table1[[#This Row],[عدد الايام ]]*65","v":0},null,null,{"$f":"Table1[[#This Row],[المرتب ]]-(Table1[[#This Row],[السلف ]]+Table1[[#This Row],[الخصم ]])","v":0}]
[null,{"$f":"SUM(Sheet2!C426:AF426)","v":0},{"$f":"Table1[[#This Row],[عدد الايام ]]*65","v":0},null,null,{"$f":"Table1[[#This Row],[المرتب ]]-(Table1[[#This Row],[السلف ]]+Table1[[#This Row],[الخصم ]])","v":0}]
[null,{"$f":"SUM(Sheet2!C427:AF427)","v":0},{"$f":"Table1[[#This Row],[عدد الايام ]]*65","v":0},null,null,{"$f":"Table1[[#This Row],[المرتب ]]-(Table1[[#This Row],[السلف ]]+Table1[[#This Row],[الخصم ]])","v":0}]
[null,{"$f":"SUM(Sheet2!C428:AF428)","v":0},{"$f":"Table1[[#This Row],[عدد الايام ]]*65","v":0},null,null,{"$f":"Table1[[#This Row],[المرتب ]]-(Table1[[#This Row],[السلف ]]+Table1[[#This Row],[الخصم ]])","v":0}]
[null,{"$f":"SUM(Sheet2!C429:AF429)","v":0},{"$f":"Table1[[#This Row],[عدد الايام ]]*65","v":0},null,null,{"$f":"Table1[[#This Row],[المرتب ]]-(Table1[[#This Row],[السلف ]]+Table1[[#This Row],[الخصم ]])","v":0}]
[null,{"$f":"SUM(Sheet2!C430:AF430)","v":0},{"$f":"Table1[[#This Row],[عدد الايام ]]*65","v":0},null,null,{"$f":"Table1[[#This Row],[المرتب ]]-(Table1[[#This Row],[السلف ]]+Table1[[#This Row],[الخصم ]])","v":0}]
[null,{"$f":"SUM(Sheet2!C431:AF431)","v":0},{"$f":"Table1[[#This Row],[عدد الايام ]]*65","v":0},null,null,{"$f":"Table1[[#This Row],[المرتب ]]-(Table1[[#This Row],[السلف ]]+Table1[[#This Row],[الخصم ]])","v":0}]
[null,{"$f":"SUM(Sheet2!C432:AF432)","v":0},{"$f":"Table1[[#This Row],[عدد الايام ]]*65","v":0},null,null,{"$f":"Table1[[#This Row],[المرتب ]]-(Table1[[#This Row],[السلف ]]+Table1[[#This Row],[الخصم ]])","v":0}]
[null,{"$f":"SUM(Sheet2!C433:AF433)","v":0},{"$f":"Table1[[#This Row],[عدد الايام ]]*65","v":0},null,null,{"$f":"Table1[[#This Row],[المرتب ]]-(Table1[[#This Row],[السلف ]]+Table1[[#This Row],[الخصم ]])","v":0}]
[null,{"$f":"SUM(Sheet2!C434:AF434)","v":0},{"$f":"Table1[[#This Row],[عدد الايام ]]*65","v":0},null,null,{"$f":"Table1[[#This Row],[المرتب ]]-(Table1[[#This Row],[السلف ]]+Table1[[#This Row],[الخصم ]])","v":0}]
[null,{"$f":"SUM(Sheet2!C435:AF435)","v":0},{"$f":"Table1[[#This Row],[عدد الايام ]]*65","v":0},null,null,{"$f":"Table1[[#This Row],[المرتب ]]-(Table1[[#This Row],[السلف ]]+Table1[[#This Row],[الخصم ]])","v":0}]
[null,{"$f":"SUM(Sheet2!C436:AF436)","v":0},{"$f":"Table1[[#This Row],[عدد الايام ]]*65","v":0},null,null,{"$f":"Table1[[#This Row],[المرتب ]]-(Table1[[#This Row],[السلف ]]+Table1[[#This Row],[الخصم ]])","v":0}]
[null,{"$f":"SUM(Sheet2!C437:AF437)","v":0},{"$f":"Table1[[#This Row],[عدد الايام ]]*65","v":0},null,null,{"$f":"Table1[[#This Row],[المرتب ]]-(Table1[[#This Row],[السلف ]]+Table1[[#This Row],[الخصم ]])","v":0}]
[null,{"$f":"SUM(Sheet2!C438:AF438)","v":0},{"$f":"Table1[[#This Row],[عدد الايام ]]*65","v":0},null,null,{"$f":"Table1[[#This Row],[المرتب ]]-(Table1[[#This Row],[السلف ]]+Table1[[#This Row],[الخصم ]])","v":0}]
[null,{"$f":"SUM(Sheet2!C439:AF439)","v":0},{"$f":"Table1[[#This Row],[عدد الايام ]]*65","v":0},null,null,{"$f":"Table1[[#This Row],[المرتب ]]-(Table1[[#This Row],[السلف ]]+Table1[[#This Row],[الخصم ]])","v":0}]
[null,{"$f":"SUM(Sheet2!C440:AF440)","v":0},{"$f":"Table1[[#This Row],[عدد الايام ]]*65","v":0},null,null,{"$f":"Table1[[#This Row],[المرتب ]]-(Table1[[#This Row],[السلف ]]+Table1[[#This Row],[الخصم ]])","v":0}]
[null,{"$f":"SUM(Sheet2!C441:AF441)","v":0},{"$f":"Table1[[#This Row],[عدد الايام ]]*65","v":0},null,null,{"$f":"Table1[[#This Row],[المرتب ]]-(Table1[[#This Row],[السلف ]]+Table1[[#This Row],[الخصم ]])","v":0}]
[null,{"$f":"SUM(Sheet2!C442:AF442)","v":0},{"$f":"Table1[[#This Row],[عدد الايام ]]*65","v":0},null,null,{"$f":"Table1[[#This Row],[المرتب ]]-(Table1[[#This Row],[السلف ]]+Table1[[#This Row],[الخصم ]])","v":0}]
[null,{"$f":"SUM(Sheet2!C443:AF443)","v":0},{"$f":"Table1[[#This Row],[عدد الايام ]]*65","v":0},null,null,{"$f":"Table1[[#This Row],[المرتب ]]-(Table1[[#This Row],[السلف ]]+Table1[[#This Row],[الخصم ]])","v":0}]
[null,{"$f":"SUM(Sheet2!C444:AF444)","v":0},{"$f":"Table1[[#This Row],[عدد الايام ]]*65","v":0},null,null,{"$f":"Table1[[#This Row],[المرتب ]]-(Table1[[#This Row],[السلف ]]+Table1[[#This Row],[الخصم ]])","v":0}]
[null,{"$f":"SUM(Sheet2!C445:AF445)","v":0},{"$f":"Table1[[#This Row],[عدد الايام ]]*65","v":0},null,null,{"$f":"Table1[[#This Row],[المرتب ]]-(Table1[[#This Row],[السلف ]]+Table1[[#This Row],[الخصم ]])","v":0}]
[null,{"$f":"SUM(Sheet2!C446:AF446)","v":0},{"$f":"Table1[[#This Row],[عدد الايام ]]*65","v":0},null,null,{"$f":"Table1[[#This Row],[المرتب ]]-(Table1[[#This Row],[السلف ]]+Table1[[#This Row],[الخصم ]])","v":0}]
[null,{"$f":"SUM(Sheet2!C447:AF447)","v":0},{"$f":"Table1[[#This Row],[عدد الايام ]]*65","v":0},null,null,{"$f":"Table1[[#This Row],[المرتب ]]-(Table1[[#This Row],[السلف ]]+Table1[[#This Row],[الخصم ]])","v":0}]
[null,{"$f":"SUM(Sheet2!C448:AF448)","v":0},{"$f":"Table1[[#This Row],[عدد الايام ]]*65","v":0},null,null,{"$f":"Table1[[#This Row],[المرتب ]]-(Table1[[#This Row],[السلف ]]+Table1[[#This Row],[الخصم ]])","v":0}]
[null,{"$f":"SUM(Sheet2!C449:AF449)","v":0},{"$f":"Table1[[#This Row],[عدد الايام ]]*65","v":0},null,null,{"$f":"Table1[[#This Row],[المرتب ]]-(Table1[[#This Row],[السلف ]]+Table1[[#This Row],[الخصم ]])","v":0}]
[null,{"$f":"SUM(Sheet2!C450:AF450)","v":0},{"$f":"Table1[[#This Row],[عدد الايام ]]*65","v":0},null,null,{"$f":"Table1[[#This Row],[المرتب ]]-(Table1[[#This Row],[السلف ]]+Table1[[#This Row],[الخصم ]])","v":0}]
[null,{"$f":"SUM(Sheet2!C451:AF451)","v":0},{"$f":"Table1[[#This Row],[عدد الايام ]]*65","v":0},null,null,{"$f":"Table1[[#This Row],[المرتب ]]-(Table1[[#This Row],[السلف ]]+Table1[[#This Row],[الخصم ]])","v":0}]
[null,{"$f":"SUM(Sheet2!C452:AF452)","v":0},{"$f":"Table1[[#This Row],[عدد الايام ]]*65","v":0},null,null,{"$f":"Table1[[#This Row],[المرتب ]]-(Table1[[#This Row],[السلف ]]+Table1[[#This Row],[الخصم ]])","v":0}]
[null,{"$f":"SUM(Sheet2!C453:AF453)","v":0},{"$f":"Table1[[#This Row],[عدد الايام ]]*65","v":0},null,null,{"$f":"Table1[[#This Row],[المرتب ]]-(Table1[[#This Row],[السلف ]]+Table1[[#This Row],[الخصم ]])","v":0}]
[null,{"$f":"SUM(Sheet2!C454:AF454)","v":0},{"$f":"Table1[[#This Row],[عدد الايام ]]*65","v":0},null,null,{"$f":"Table1[[#This Row],[المرتب ]]-(Table1[[#This Row],[السلف ]]+Table1[[#This Row],[الخصم ]])","v":0}]
[null,{"$f":"SUM(Sheet2!C455:AF455)","v":0},{"$f":"Table1[[#This Row],[عدد الايام ]]*65","v":0},null,null,{"$f":"Table1[[#This Row],[المرتب ]]-(Table1[[#This Row],[السلف ]]+Table1[[#This Row],[الخصم ]])","v":0}]
[null,{"$f":"SUM(Sheet2!C456:AF456)","v":0},{"$f":"Table1[[#This Row],[عدد الايام ]]*65","v":0},null,null,{"$f":"Table1[[#This Row],[المرتب ]]-(Table1[[#This Row],[السلف ]]+Table1[[#This Row],[الخصم ]])","v":0}]
[null,{"$f":"SUM(Sheet2!C457:AF457)","v":0},{"$f":"Table1[[#This Row],[عدد الايام ]]*65","v":0},null,null,{"$f":"Table1[[#This Row],[المرتب ]]-(Table1[[#This Row],[السلف ]]+Table1[[#This Row],[الخصم ]])","v":0}]
[null,{"$f":"SUM(Sheet2!C458:AF458)","v":0},{"$f":"Table1[[#This Row],[عدد الايام ]]*65","v":0},null,null,{"$f":"Table1[[#This Row],[المرتب ]]-(Table1[[#This Row],[السلف ]]+Table1[[#This Row],[الخصم ]])","v":0}]
[null,{"$f":"SUM(Sheet2!C459:AF459)","v":0},{"$f":"Table1[[#This Row],[عدد الايام ]]*65","v":0},null,null,{"$f":"Table1[[#This Row],[المرتب ]]-(Table1[[#This Row],[السلف ]]+Table1[[#This Row],[الخصم ]])","v":0}]
[null,{"$f":"SUM(Sheet2!C460:AF460)","v":0},{"$f":"Table1[[#This Row],[عدد الايام ]]*65","v":0},null,null,{"$f":"Table1[[#This Row],[المرتب ]]-(Table1[[#This Row],[السلف ]]+Table1[[#This Row],[الخصم ]])","v":0}]
[null,{"$f":"SUM(Sheet2!C461:AF461)","v":0},{"$f":"Table1[[#This Row],[عدد الايام ]]*65","v":0},null,null,{"$f":"Table1[[#This Row],[المرتب ]]-(Table1[[#This Row],[السلف ]]+Table1[[#This Row],[الخصم ]])","v":0}]
[null,{"$f":"SUM(Sheet2!C462:AF462)","v":0},{"$f":"Table1[[#This Row],[عدد الايام ]]*65","v":0},null,null,{"$f":"Table1[[#This Row],[المرتب ]]-(Table1[[#This Row],[السلف ]]+Table1[[#This Row],[الخصم ]])","v":0}]
[null,{"$f":"SUM(Sheet2!C463:AF463)","v":0},{"$f":"Table1[[#This Row],[عدد الايام ]]*65","v":0},null,null,{"$f":"Table1[[#This Row],[المرتب ]]-(Table1[[#This Row],[السلف ]]+Table1[[#This Row],[الخصم ]])","v":0}]
[null,{"$f":"SUM(Sheet2!C464:AF464)","v":0},{"$f":"Table1[[#This Row],[عدد الايام ]]*65","v":0},null,null,{"$f":"Table1[[#This Row],[المرتب ]]-(Table1[[#This Row],[السلف ]]+Table1[[#This Row],[الخصم ]])","v":0}]
[null,{"$f":"SUM(Sheet2!C465:AF465)","v":0},{"$f":"Table1[[#This Row],[عدد الايام ]]*65","v":0},null,null,{"$f":"Table1[[#This Row],[المرتب ]]-(Table1[[#This Row],[السلف ]]+Table1[[#This Row],[الخصم ]])","v":0}]
[null,{"$f":"SUM(Sheet2!C466:AF466)","v":0},{"$f":"Table1[[#This Row],[عدد الايام ]]*65","v":0},null,null,{"$f":"Table1[[#This Row],[المرتب ]]-(Table1[[#This Row],[السلف ]]+Table1[[#This Row],[الخصم ]])","v":0}]
[null,{"$f":"SUM(Sheet2!C467:AF467)","v":0},{"$f":"Table1[[#This Row],[عدد الايام ]]*65","v":0},null,null,{"$f":"Table1[[#This Row],[المرتب ]]-(Table1[[#This Row],[السلف ]]+Table1[[#This Row],[الخصم ]])","v":0}]
[null,{"$f":"SUM(Sheet2!C468:AF468)","v":0},{"$f":"Table1[[#This Row],[عدد الايام ]]*65","v":0},null,null,{"$f":"Table1[[#This Row],[المرتب ]]-(Table1[[#This Row],[السلف ]]+Table1[[#This Row],[الخصم ]])","v":0}]
[null,{"$f":"SUM(Sheet2!C469:AF469)","v":0},{"$f":"Table1[[#This Row],[عدد الايام ]]*65","v":0},null,null,{"$f":"Table1[[#This Row],[المرتب ]]-(Table1[[#This Row],[السلف ]]+Table1[[#This Row],[الخصم ]])","v":0}]
[null,{"$f":"SUM(Sheet2!C470:AF470)","v":0},{"$f":"Table1[[#This Row],[عدد الايام ]]*65","v":0},null,null,{"$f":"Table1[[#This Row],[المرتب ]]-(Table1[[#This Row],[السلف ]]+Table1[[#This Row],[الخصم ]])","v":0}]
[null,{"$f":"SUM(Sheet2!C471:AF471)","v":0},{"$f":"Table1[[#This Row],[عدد الايام ]]*65","v":0},null,null,{"$f":"Table1[[#This Row],[المرتب ]]-(Table1[[#This Row],[السلف ]]+Table1[[#This Row],[الخصم ]])","v":0}]
[null,{"$f":"SUM(Sheet2!C472:AF472)","v":0},{"$f":"Table1[[#This Row],[عدد الايام ]]*65","v":0},null,null,{"$f":"Table1[[#This Row],[المرتب ]]-(Table1[[#This Row],[السلف ]]+Table1[[#This Row],[الخصم ]])","v":0}]
[null,{"$f":"SUM(Sheet2!C473:AF473)","v":0},{"$f":"Table1[[#This Row],[عدد الايام ]]*65","v":0},null,null,{"$f":"Table1[[#This Row],[المرتب ]]-(Table1[[#This Row],[السلف ]]+Table1[[#This Row],[الخصم ]])","v":0}]
[null,{"$f":"SUM(Sheet2!C474:AF474)","v":0},{"$f":"Table1[[#This Row],[عدد الايام ]]*65","v":0},null,null,{"$f":"Table1[[#This Row],[المرتب ]]-(Table1[[#This Row],[السلف ]]+Table1[[#This Row],[الخصم ]])","v":0}]
[null,{"$f":"SUM(Sheet2!C475:AF475)","v":0},{"$f":"Table1[[#This Row],[عدد الايام ]]*65","v":0},null,null,{"$f":"Table1[[#This Row],[المرتب ]]-(Table1[[#This Row],[السلف ]]+Table1[[#This Row],[الخصم ]])","v":0}]
[null,{"$f":"SUM(Sheet2!C476:AF476)","v":0},{"$f":"Table1[[#This Row],[عدد الايام ]]*65","v":0},null,null,{"$f":"Table1[[#This Row],[المرتب ]]-(Table1[[#This Row],[السلف ]]+Table1[[#This Row],[الخصم ]])","v":0}]
[null,{"$f":"SUM(Sheet2!C477:AF477)","v":0},{"$f":"Table1[[#This Row],[عدد الايام ]]*65","v":0},null,null,{"$f":"Table1[[#This Row],[المرتب ]]-(Table1[[#This Row],[السلف ]]+Table1[[#This Row],[الخصم ]])","v":0}]
[null,{"$f":"SUM(Sheet2!C478:AF478)","v":0},{"$f":"Table1[[#This Row],[عدد الايام ]]*65","v":0},null,null,{"$f":"Table1[[#This Row],[المرتب ]]-(Table1[[#This Row],[السلف ]]+Table1[[#This Row],[الخصم ]])","v":0}]
[null,{"$f":"SUM(Sheet2!C479:AF479)","v":0},{"$f":"Table1[[#This Row],[عدد الايام ]]*65","v":0},null,null,{"$f":"Table1[[#This Row],[المرتب ]]-(Table1[[#This Row],[السلف ]]+Table1[[#This Row],[الخصم ]])","v":0}]
[null,{"$f":"SUM(Sheet2!C480:AF480)","v":0},{"$f":"Table1[[#This Row],[عدد الايام ]]*65","v":0},null,null,{"$f":"Table1[[#This Row],[المرتب ]]-(Table1[[#This Row],[السلف ]]+Table1[[#This Row],[الخصم ]])","v":0}]
[null,{"$f":"SUM(Sheet2!C481:AF481)","v":0},{"$f":"Table1[[#This Row],[عدد الايام ]]*65","v":0},null,null,{"$f":"Table1[[#This Row],[المرتب ]]-(Table1[[#This Row],[السلف ]]+Table1[[#This Row],[الخصم ]])","v":0}]
[null,{"$f":"SUM(Sheet2!C482:AF482)","v":0},{"$f":"Table1[[#This Row],[عدد الايام ]]*65","v":0},null,null,{"$f":"Table1[[#This Row],[المرتب ]]-(Table1[[#This Row],[السلف ]]+Table1[[#This Row],[الخصم ]])","v":0}]
[null,{"$f":"SUM(Sheet2!C483:AF483)","v":0},{"$f":"Table1[[#This Row],[عدد الايام ]]*65","v":0},null,null,{"$f":"Table1[[#This Row],[المرتب ]]-(Table1[[#This Row],[السلف ]]+Table1[[#This Row],[الخصم ]])","v":0}]
[null,{"$f":"SUM(Sheet2!C484:AF484)","v":0},{"$f":"Table1[[#This Row],[عدد الايام ]]*65","v":0},null,null,{"$f":"Table1[[#This Row],[المرتب ]]-(Table1[[#This Row],[السلف ]]+Table1[[#This Row],[الخصم ]])","v":0}]
[null,{"$f":"SUM(Sheet2!C485:AF485)","v":0},{"$f":"Table1[[#This Row],[عدد الايام ]]*65","v":0},null,null,{"$f":"Table1[[#This Row],[المرتب ]]-(Table1[[#This Row],[السلف ]]+Table1[[#This Row],[الخصم ]])","v":0}]
[null,{"$f":"SUM(Sheet2!C486:AF486)","v":0},{"$f":"Table1[[#This Row],[عدد الايام ]]*65","v":0},null,null,{"$f":"Table1[[#This Row],[المرتب ]]-(Table1[[#This Row],[السلف ]]+Table1[[#This Row],[الخصم ]])","v":0}]
[null,{"$f":"SUM(Sheet2!C487:AF487)","v":0},{"$f":"Table1[[#This Row],[عدد الايام ]]*65","v":0},null,null,{"$f":"Table1[[#This Row],[المرتب ]]-(Table1[[#This Row],[السلف ]]+Table1[[#This Row],[الخصم ]])","v":0}]
[null,{"$f":"SUM(Sheet2!C488:AF488)","v":0},{"$f":"Table1[[#This Row],[عدد الايام ]]*65","v":0},null,null,{"$f":"Table1[[#This Row],[المرتب ]]-(Table1[[#This Row],[السلف ]]+Table1[[#This Row],[الخصم ]])","v":0}]
[null,{"$f":"SUM(Sheet2!C489:AF489)","v":0},{"$f":"Table1[[#This Row],[عدد الايام ]]*65","v":0},null,null,{"$f":"Table1[[#This Row],[المرتب ]]-(Table1[[#This Row],[السلف ]]+Table1[[#This Row],[الخصم ]])","v":0}]
[null,{"$f":"SUM(Sheet2!C490:AF490)","v":0},{"$f":"Table1[[#This Row],[عدد الايام ]]*65","v":0},null,null,{"$f":"Table1[[#This Row],[المرتب ]]-(Table1[[#This Row],[السلف ]]+Table1[[#This Row],[الخصم ]])","v":0}]
[null,{"$f":"SUM(Sheet2!C491:AF491)","v":0},{"$f":"Table1[[#This Row],[عدد الايام ]]*65","v":0},null,null,{"$f":"Table1[[#This Row],[المرتب ]]-(Table1[[#This Row],[السلف ]]+Table1[[#This Row],[الخصم ]])","v":0}]
[null,{"$f":"SUM(Sheet2!C492:AF492)","v":0},{"$f":"Table1[[#This Row],[عدد الايام ]]*65","v":0},null,null,{"$f":"Table1[[#This Row],[المرتب ]]-(Table1[[#This Row],[السلف ]]+Table1[[#This Row],[الخصم ]])","v":0}]
[null,{"$f":"SUM(Sheet2!C493:AF493)","v":0},{"$f":"Table1[[#This Row],[عدد الايام ]]*65","v":0},null,null,{"$f":"Table1[[#This Row],[المرتب ]]-(Table1[[#This Row],[السلف ]]+Table1[[#This Row],[الخصم ]])","v":0}]
[null,{"$f":"SUM(Sheet2!C494:AF494)","v":0},{"$f":"Table1[[#This Row],[عدد الايام ]]*65","v":0},null,null,{"$f":"Table1[[#This Row],[المرتب ]]-(Table1[[#This Row],[السلف ]]+Table1[[#This Row],[الخصم ]])","v":0}]
[null,{"$f":"SUM(Sheet2!C495:AF495)","v":0},{"$f":"Table1[[#This Row],[عدد الايام ]]*65","v":0},null,null,{"$f":"Table1[[#This Row],[المرتب ]]-(Table1[[#This Row],[السلف ]]+Table1[[#This Row],[الخصم ]])","v":0}]
[null,{"$f":"SUM(Sheet2!C496:AF496)","v":0},{"$f":"Table1[[#This Row],[عدد الايام ]]*65","v":0},null,null,{"$f":"Table1[[#This Row],[المرتب ]]-(Table1[[#This Row],[السلف ]]+Table1[[#This Row],[الخصم ]])","v":0}]
[null,{"$f":"SUM(Sheet2!C497:AF497)","v":0},{"$f":"Table1[[#This Row],[عدد الايام ]]*65","v":0},null,null,{"$f":"Table1[[#This Row],[المرتب ]]-(Table1[[#This Row],[السلف ]]+Table1[[#This Row],[الخصم ]])","v":0}]
[null,{"$f":"SUM(Sheet2!C498:AF498)","v":0},{"$f":"Table1[[#This Row],[عدد الايام ]]*65","v":0},null,null,{"$f":"Table1[[#This Row],[المرتب ]]-(Table1[[#This Row],[السلف ]]+Table1[[#This Row],[الخصم ]])","v":0}]
[null,{"$f":"SUM(Sheet2!C499:AF499)","v":0},{"$f":"Table1[[#This Row],[عدد الايام ]]*65","v":0},null,null,{"$f":"Table1[[#This Row],[المرتب ]]-(Table1[[#This Row],[السلف ]]+Table1[[#This Row],[الخصم ]])","v":0}]
[null,{"$f":"SUM(Sheet2!C500:AF500)","v":0},{"$f":"Table1[[#This Row],[عدد الايام ]]*65","v":0},null,null,{"$f":"Table1[[#This Row],[المرتب ]]-(Table1[[#This Row],[السلف ]]+Table1[[#This Row],[الخصم ]])","v":0}]
[null,{"$f":"SUM(Sheet2!C501:AF501)","v":0},{"$f":"Table1[[#This Row],[عدد الايام ]]*65","v":0},null,null,{"$f":"Table1[[#This Row],[المرتب ]]-(Table1[[#This Row],[السلف ]]+Table1[[#This Row],[الخصم ]])","v":0}]
[null,{"$f":"SUM(Sheet2!C502:AF502)","v":0},{"$f":"Table1[[#This Row],[عدد الايام ]]*65","v":0},null,null,{"$f":"Table1[[#This Row],[المرتب ]]-(Table1[[#This Row],[السلف ]]+Table1[[#This Row],[الخصم ]])","v":0}]
[null,{"$f":"SUM(Sheet2!C503:AF503)","v":0},{"$f":"Table1[[#This Row],[عدد الايام ]]*65","v":0},null,null,{"$f":"Table1[[#This Row],[المرتب ]]-(Table1[[#This Row],[السلف ]]+Table1[[#This Row],[الخصم ]])","v":0}]
[null,{"$f":"SUM(Sheet2!C504:AF504)","v":0},{"$f":"Table1[[#This Row],[عدد الايام ]]*65","v":0},null,null,{"$f":"Table1[[#This Row],[المرتب ]]-(Table1[[#This Row],[السلف ]]+Table1[[#This Row],[الخصم ]])","v":0}]
[null,{"$f":"SUM(Sheet2!C505:AF505)","v":0},{"$f":"Table1[[#This Row],[عدد الايام ]]*65","v":0},null,null,{"$f":"Table1[[#This Row],[المرتب ]]-(Table1[[#This Row],[السلف ]]+Table1[[#This Row],[الخصم ]])","v":0}]
[null,{"$f":"SUM(Sheet2!C506:AF506)","v":0},{"$f":"Table1[[#This Row],[عدد الايام ]]*65","v":0},null,null,{"$f":"Table1[[#This Row],[المرتب ]]-(Table1[[#This Row],[السلف ]]+Table1[[#This Row],[الخصم ]])","v":0}]
[null,{"$f":"SUM(Sheet2!C507:AF507)","v":0},{"$f":"Table1[[#This Row],[عدد الايام ]]*65","v":0},null,null,{"$f":"Table1[[#This Row],[المرتب ]]-(Table1[[#This Row],[السلف ]]+Table1[[#This Row],[الخصم ]])","v":0}]
[null,{"$f":"SUM(Sheet2!C508:AF508)","v":0},{"$f":"Table1[[#This Row],[عدد الايام ]]*65","v":0},null,null,{"$f":"Table1[[#This Row],[المرتب ]]-(Table1[[#This Row],[السلف ]]+Table1[[#This Row],[الخصم ]])","v":0}]
[null,{"$f":"SUM(Sheet2!C509:AF509)","v":0},{"$f":"Table1[[#This Row],[عدد الايام ]]*65","v":0},null,null,{"$f":"Table1[[#This Row],[المرتب ]]-(Table1[[#This Row],[السلف ]]+Table1[[#This Row],[الخصم ]])","v":0}]
[null,{"$f":"SUM(Sheet2!C510:AF510)","v":0},{"$f":"Table1[[#This Row],[عدد الايام ]]*65","v":0},null,null,{"$f":"Table1[[#This Row],[المرتب ]]-(Table1[[#This Row],[السلف ]]+Table1[[#This Row],[الخصم ]])","v":0}]
[null,{"$f":"SUM(Sheet2!C511:AF511)","v":0},{"$f":"Table1[[#This Row],[عدد الايام ]]*65","v":0},null,null,{"$f":"Table1[[#This Row],[المرتب ]]-(Table1[[#This Row],[السلف ]]+Table1[[#This Row],[الخصم ]])","v":0}]
[null,{"$f":"SUM(Sheet2!C512:AF512)","v":0},{"$f":"Table1[[#This Row],[عدد الايام ]]*65","v":0},null,null,{"$f":"Table1[[#This Row],[المرتب ]]-(Table1[[#This Row],[السلف ]]+Table1[[#This Row],[الخصم ]])","v":0}]
[null,{"$f":"SUM(Sheet2!C513:AF513)","v":0},{"$f":"Table1[[#This Row],[عدد الايام ]]*65","v":0},null,null,{"$f":"Table1[[#This Row],[المرتب ]]-(Table1[[#This Row],[السلف ]]+Table1[[#This Row],[الخصم ]])","v":0}]
[null,{"$f":"SUM(Sheet2!C514:AF514)","v":0},{"$f":"Table1[[#This Row],[عدد الايام ]]*65","v":0},null,null,{"$f":"Table1[[#This Row],[المرتب ]]-(Table1[[#This Row],[السلف ]]+Table1[[#This Row],[الخصم ]])","v":0}]
[null,{"$f":"SUM(Sheet2!C515:AF515)","v":0},{"$f":"Table1[[#This Row],[عدد الايام ]]*65","v":0},null,null,{"$f":"Table1[[#This Row],[المرتب ]]-(Table1[[#This Row],[السلف ]]+Table1[[#This Row],[الخصم ]])","v":0}]
[null,{"$f":"SUM(Sheet2!C516:AF516)","v":0},{"$f":"Table1[[#This Row],[عدد الايام ]]*65","v":0},null,null,{"$f":"Table1[[#This Row],[المرتب ]]-(Table1[[#This Row],[السلف ]]+Table1[[#This Row],[الخصم ]])","v":0}]
[null,{"$f":"SUM(Sheet2!C517:AF517)","v":0},{"$f":"Table1[[#This Row],[عدد الايام ]]*65","v":0},null,null,{"$f":"Table1[[#This Row],[المرتب ]]-(Table1[[#This Row],[السلف ]]+Table1[[#This Row],[الخصم ]])","v":0}]
[null,{"$f":"SUM(Sheet2!C518:AF518)","v":0},{"$f":"Table1[[#This Row],[عدد الايام ]]*65","v":0},null,null,{"$f":"Table1[[#This Row],[المرتب ]]-(Table1[[#This Row],[السلف ]]+Table1[[#This Row],[الخصم ]])","v":0}]
[null,{"$f":"SUM(Sheet2!C519:AF519)","v":0},{"$f":"Table1[[#This Row],[عدد الايام ]]*65","v":0},null,null,{"$f":"Table1[[#This Row],[المرتب ]]-(Table1[[#This Row],[السلف ]]+Table1[[#This Row],[الخصم ]])","v":0}]
[null,{"$f":"SUM(Sheet2!C520:AF520)","v":0},{"$f":"Table1[[#This Row],[عدد الايام ]]*65","v":0},null,null,{"$f":"Table1[[#This Row],[المرتب ]]-(Table1[[#This Row],[السلف ]]+Table1[[#This Row],[الخصم ]])","v":0}]
[null,{"$f":"SUM(Sheet2!C521:AF521)","v":0},{"$f":"Table1[[#This Row],[عدد الايام ]]*65","v":0},null,null,{"$f":"Table1[[#This Row],[المرتب ]]-(Table1[[#This Row],[السلف ]]+Table1[[#This Row],[الخصم ]])","v":0}]
[null,{"$f":"SUM(Sheet2!C522:AF522)","v":0},{"$f":"Table1[[#This Row],[عدد الايام ]]*65","v":0},null,null,{"$f":"Table1[[#This Row],[المرتب ]]-(Table1[[#This Row],[السلف ]]+Table1[[#This Row],[الخصم ]])","v":0}]
[null,{"$f":"SUM(Sheet2!C523:AF523)","v":0},{"$f":"Table1[[#This Row],[عدد الايام ]]*65","v":0},null,null,{"$f":"Table1[[#This Row],[المرتب ]]-(Table1[[#This Row],[السلف ]]+Table1[[#This Row],[الخصم ]])","v":0}]
[null,{"$f":"SUM(Sheet2!C524:AF524)","v":0},{"$f":"Table1[[#This Row],[عدد الايام ]]*65","v":0},null,null,{"$f":"Table1[[#This Row],[المرتب ]]-(Table1[[#This Row],[السلف ]]+Table1[[#This Row],[الخصم ]])","v":0}]
[null,{"$f":"SUM(Sheet2!C525:AF525)","v":0},{"$f":"Table1[[#This Row],[عدد الايام ]]*65","v":0},null,null,{"$f":"Table1[[#This Row],[المرتب ]]-(Table1[[#This Row],[السلف ]]+Table1[[#This Row],[الخصم ]])","v":0}]
[null,{"$f":"SUM(Sheet2!C526:AF526)","v":0},{"$f":"Table1[[#This Row],[عدد الايام ]]*65","v":0},null,null,{"$f":"Table1[[#This Row],[المرتب ]]-(Table1[[#This Row],[السلف ]]+Table1[[#This Row],[الخصم ]])","v":0}]
[null,{"$f":"SUM(Sheet2!C527:AF527)","v":0},{"$f":"Table1[[#This Row],[عدد الايام ]]*65","v":0},null,null,{"$f":"Table1[[#This Row],[المرتب ]]-(Table1[[#This Row],[السلف ]]+Table1[[#This Row],[الخصم ]])","v":0}]
[null,{"$f":"SUM(Sheet2!C528:AF528)","v":0},{"$f":"Table1[[#This Row],[عدد الايام ]]*65","v":0},null,null,{"$f":"Table1[[#This Row],[المرتب ]]-(Table1[[#This Row],[السلف ]]+Table1[[#This Row],[الخصم ]])","v":0}]
[null,{"$f":"SUM(Sheet2!C529:AF529)","v":0},{"$f":"Table1[[#This Row],[عدد الايام ]]*65","v":0},null,null,{"$f":"Table1[[#This Row],[المرتب ]]-(Table1[[#This Row],[السلف ]]+Table1[[#This Row],[الخصم ]])","v":0}]
[null,{"$f":"SUM(Sheet2!C530:AF530)","v":0},{"$f":"Table1[[#This Row],[عدد الايام ]]*65","v":0},null,null,{"$f":"Table1[[#This Row],[المرتب ]]-(Table1[[#This Row],[السلف ]]+Table1[[#This Row],[الخصم ]])","v":0}]
[null,{"$f":"SUM(Sheet2!C531:AF531)","v":0},{"$f":"Table1[[#This Row],[عدد الايام ]]*65","v":0},null,null,{"$f":"Table1[[#This Row],[المرتب ]]-(Table1[[#This Row],[السلف ]]+Table1[[#This Row],[الخصم ]])","v":0}]
[null,{"$f":"SUM(Sheet2!C532:AF532)","v":0},{"$f":"Table1[[#This Row],[عدد الايام ]]*65","v":0},null,null,{"$f":"Table1[[#This Row],[المرتب ]]-(Table1[[#This Row],[السلف ]]+Table1[[#This Row],[الخصم ]])","v":0}]
[null,{"$f":"SUM(Sheet2!C533:AF533)","v":0},{"$f":"Table1[[#This Row],[عدد الايام ]]*65","v":0},null,null,{"$f":"Table1[[#This Row],[المرتب ]]-(Table1[[#This Row],[السلف ]]+Table1[[#This Row],[الخصم ]])","v":0}]
[null,{"$f":"SUM(Sheet2!C534:AF534)","v":0},{"$f":"Table1[[#This Row],[عدد الايام ]]*65","v":0},null,null,{"$f":"Table1[[#This Row],[المرتب ]]-(Table1[[#This Row],[السلف ]]+Table1[[#This Row],[الخصم ]])","v":0}]
[null,{"$f":"SUM(Sheet2!C535:AF535)","v":0},{"$f":"Table1[[#This Row],[عدد الايام ]]*65","v":0},null,null,{"$f":"Table1[[#This Row],[المرتب ]]-(Table1[[#This Row],[السلف ]]+Table1[[#This Row],[الخصم ]])","v":0}]
[null,{"$f":"SUM(Sheet2!C536:AF536)","v":0},{"$f":"Table1[[#This Row],[عدد الايام ]]*65","v":0},null,null,{"$f":"Table1[[#This Row],[المرتب ]]-(Table1[[#This Row],[السلف ]]+Table1[[#This Row],[الخصم ]])","v":0}]
[null,{"$f":"SUM(Sheet2!C537:AF537)","v":0},{"$f":"Table1[[#This Row],[عدد الايام ]]*65","v":0},null,null,{"$f":"Table1[[#This Row],[المرتب ]]-(Table1[[#This Row],[السلف ]]+Table1[[#This Row],[الخصم ]])","v":0}]
[null,{"$f":"SUM(Sheet2!C538:AF538)","v":0},{"$f":"Table1[[#This Row],[عدد الايام ]]*65","v":0},null,null,{"$f":"Table1[[#This Row],[المرتب ]]-(Table1[[#This Row],[السلف ]]+Table1[[#This Row],[الخصم ]])","v":0}]
[null,{"$f":"SUM(Sheet2!C539:AF539)","v":0},{"$f":"Table1[[#This Row],[عدد الايام ]]*65","v":0},null,null,{"$f":"Table1[[#This Row],[المرتب ]]-(Table1[[#This Row],[السلف ]]+Table1[[#This Row],[الخصم ]])","v":0}]
[null,{"$f":"SUM(Sheet2!C540:AF540)","v":0},{"$f":"Table1[[#This Row],[عدد الايام ]]*65","v":0},null,null,{"$f":"Table1[[#This Row],[المرتب ]]-(Table1[[#This Row],[السلف ]]+Table1[[#This Row],[الخصم ]])","v":0}]
[null,{"$f":"SUM(Sheet2!C541:AF541)","v":0},{"$f":"Table1[[#This Row],[عدد الايام ]]*65","v":0},null,null,{"$f":"Table1[[#This Row],[المرتب ]]-(Table1[[#This Row],[السلف ]]+Table1[[#This Row],[الخصم ]])","v":0}]
[null,{"$f":"SUM(Sheet2!C542:AF542)","v":0},{"$f":"Table1[[#This Row],[عدد الايام ]]*65","v":0},null,null,{"$f":"Table1[[#This Row],[المرتب ]]-(Table1[[#This Row],[السلف ]]+Table1[[#This Row],[الخصم ]])","v":0}]
[null,{"$f":"SUM(Sheet2!C543:AF543)","v":0},{"$f":"Table1[[#This Row],[عدد الايام ]]*65","v":0},null,null,{"$f":"Table1[[#This Row],[المرتب ]]-(Table1[[#This Row],[السلف ]]+Table1[[#This Row],[الخصم ]])","v":0}]
[null,{"$f":"SUM(Sheet2!C544:AF544)","v":0},{"$f":"Table1[[#This Row],[عدد الايام ]]*65","v":0},null,null,{"$f":"Table1[[#This Row],[المرتب ]]-(Table1[[#This Row],[السلف ]]+Table1[[#This Row],[الخصم ]])","v":0}]
[null,{"$f":"SUM(Sheet2!C545:AF545)","v":0},{"$f":"Table1[[#This Row],[عدد الايام ]]*65","v":0},null,null,{"$f":"Table1[[#This Row],[المرتب ]]-(Table1[[#This Row],[السلف ]]+Table1[[#This Row],[الخصم ]])","v":0}]
[null,{"$f":"SUM(Sheet2!C546:AF546)","v":0},{"$f":"Table1[[#This Row],[عدد الايام ]]*65","v":0},null,null,{"$f":"Table1[[#This Row],[المرتب ]]-(Table1[[#This Row],[السلف ]]+Table1[[#This Row],[الخصم ]])","v":0}]
[null,{"$f":"SUM(Sheet2!C547:AF547)","v":0},{"$f":"Table1[[#This Row],[عدد الايام ]]*65","v":0},null,null,{"$f":"Table1[[#This Row],[المرتب ]]-(Table1[[#This Row],[السلف ]]+Table1[[#This Row],[الخصم ]])","v":0}]
[null,{"$f":"SUM(Sheet2!C548:AF548)","v":0},{"$f":"Table1[[#This Row],[عدد الايام ]]*65","v":0},null,null,{"$f":"Table1[[#This Row],[المرتب ]]-(Table1[[#This Row],[السلف ]]+Table1[[#This Row],[الخصم ]])","v":0}]
[null,{"$f":"SUM(Sheet2!C549:AF549)","v":0},{"$f":"Table1[[#This Row],[عدد الايام ]]*65","v":0},null,null,{"$f":"Table1[[#This Row],[المرتب ]]-(Table1[[#This Row],[السلف ]]+Table1[[#This Row],[الخصم ]])","v":0}]
[null,{"$f":"SUM(Sheet2!C550:AF550)","v":0},{"$f":"Table1[[#This Row],[عدد الايام ]]*65","v":0},null,null,{"$f":"Table1[[#This Row],[المرتب ]]-(Table1[[#This Row],[السلف ]]+Table1[[#This Row],[الخصم ]])","v":0}]
[null,{"$f":"SUM(Sheet2!C551:AF551)","v":0},{"$f":"Table1[[#This Row],[عدد الايام ]]*65","v":0},null,null,{"$f":"Table1[[#This Row],[المرتب ]]-(Table1[[#This Row],[السلف ]]+Table1[[#This Row],[الخصم ]])","v":0}]
[null,{"$f":"SUM(Sheet2!C552:AF552)","v":0},{"$f":"Table1[[#This Row],[عدد الايام ]]*65","v":0},null,null,{"$f":"Table1[[#This Row],[المرتب ]]-(Table1[[#This Row],[السلف ]]+Table1[[#This Row],[الخصم ]])","v":0}]
[null,{"$f":"SUM(Sheet2!C553:AF553)","v":0},{"$f":"Table1[[#This Row],[عدد الايام ]]*65","v":0},null,null,{"$f":"Table1[[#This Row],[المرتب ]]-(Table1[[#This Row],[السلف ]]+Table1[[#This Row],[الخصم ]])","v":0}]
[null,{"$f":"SUM(Sheet2!C554:AF554)","v":0},{"$f":"Table1[[#This Row],[عدد الايام ]]*65","v":0},null,null,{"$f":"Table1[[#This Row],[المرتب ]]-(Table1[[#This Row],[السلف ]]+Table1[[#This Row],[الخصم ]])","v":0}]
[null,{"$f":"SUM(Sheet2!C555:AF555)","v":0},{"$f":"Table1[[#This Row],[عدد الايام ]]*65","v":0},null,null,{"$f":"Table1[[#This Row],[المرتب ]]-(Table1[[#This Row],[السلف ]]+Table1[[#This Row],[الخصم ]])","v":0}]
[null,{"$f":"SUM(Sheet2!C556:AF556)","v":0},{"$f":"Table1[[#This Row],[عدد الايام ]]*65","v":0},null,null,{"$f":"Table1[[#This Row],[المرتب ]]-(Table1[[#This Row],[السلف ]]+Table1[[#This Row],[الخصم ]])","v":0}]
[null,{"$f":"SUM(Sheet2!C557:AF557)","v":0},{"$f":"Table1[[#This Row],[عدد الايام ]]*65","v":0},null,null,{"$f":"Table1[[#This Row],[المرتب ]]-(Table1[[#This Row],[السلف ]]+Table1[[#This Row],[الخصم ]])","v":0}]
[null,{"$f":"SUM(Sheet2!C558:AF558)","v":0},{"$f":"Table1[[#This Row],[عدد الايام ]]*65","v":0},null,null,{"$f":"Table1[[#This Row],[المرتب ]]-(Table1[[#This Row],[السلف ]]+Table1[[#This Row],[الخصم ]])","v":0}]
[null,{"$f":"SUM(Sheet2!C559:AF559)","v":0},{"$f":"Table1[[#This Row],[عدد الايام ]]*65","v":0},null,null,{"$f":"Table1[[#This Row],[المرتب ]]-(Table1[[#This Row],[السلف ]]+Table1[[#This Row],[الخصم ]])","v":0}]
[null,{"$f":"SUM(Sheet2!C560:AF560)","v":0},{"$f":"Table1[[#This Row],[عدد الايام ]]*65","v":0},null,null,{"$f":"Table1[[#This Row],[المرتب ]]-(Table1[[#This Row],[السلف ]]+Table1[[#This Row],[الخصم ]])","v":0}]
[null,{"$f":"SUM(Sheet2!C561:AF561)","v":0},{"$f":"Table1[[#This Row],[عدد الايام ]]*65","v":0},null,null,{"$f":"Table1[[#This Row],[المرتب ]]-(Table1[[#This Row],[السلف ]]+Table1[[#This Row],[الخصم ]])","v":0}]
[null,{"$f":"SUM(Sheet2!C562:AF562)","v":0},{"$f":"Table1[[#This Row],[عدد الايام ]]*65","v":0},null,null,{"$f":"Table1[[#This Row],[المرتب ]]-(Table1[[#This Row],[السلف ]]+Table1[[#This Row],[الخصم ]])","v":0}]
[null,{"$f":"SUM(Sheet2!C563:AF563)","v":0},{"$f":"Table1[[#This Row],[عدد الايام ]]*65","v":0},null,null,{"$f":"Table1[[#This Row],[المرتب ]]-(Table1[[#This Row],[السلف ]]+Table1[[#This Row],[الخصم ]])","v":0}]
[null,{"$f":"SUM(Sheet2!C564:AF564)","v":0},{"$f":"Table1[[#This Row],[عدد الايام ]]*65","v":0},null,null,{"$f":"Table1[[#This Row],[المرتب ]]-(Table1[[#This Row],[السلف ]]+Table1[[#This Row],[الخصم ]])","v":0}]
[null,{"$f":"SUM(Sheet2!C565:AF565)","v":0},{"$f":"Table1[[#This Row],[عدد الايام ]]*65","v":0},null,null,{"$f":"Table1[[#This Row],[المرتب ]]-(Table1[[#This Row],[السلف ]]+Table1[[#This Row],[الخصم ]])","v":0}]
[null,{"$f":"SUM(Sheet2!C566:AF566)","v":0},{"$f":"Table1[[#This Row],[عدد الايام ]]*65","v":0},null,null,{"$f":"Table1[[#This Row],[المرتب ]]-(Table1[[#This Row],[السلف ]]+Table1[[#This Row],[الخصم ]])","v":0}]
[null,{"$f":"SUM(Sheet2!C567:AF567)","v":0},{"$f":"Table1[[#This Row],[عدد الايام ]]*65","v":0},null,null,{"$f":"Table1[[#This Row],[المرتب ]]-(Table1[[#This Row],[السلف ]]+Table1[[#This Row],[الخصم ]])","v":0}]
[null,{"$f":"SUM(Sheet2!C568:AF568)","v":0},{"$f":"Table1[[#This Row],[عدد الايام ]]*65","v":0},null,null,{"$f":"Table1[[#This Row],[المرتب ]]-(Table1[[#This Row],[السلف ]]+Table1[[#This Row],[الخصم ]])","v":0}]
[null,{"$f":"SUM(Sheet2!C569:AF569)","v":0},{"$f":"Table1[[#This Row],[عدد الايام ]]*65","v":0},null,null,{"$f":"Table1[[#This Row],[المرتب ]]-(Table1[[#This Row],[السلف ]]+Table1[[#This Row],[الخصم ]])","v":0}]
[null,{"$f":"SUM(Sheet2!C570:AF570)","v":0},{"$f":"Table1[[#This Row],[عدد الايام ]]*65","v":0},null,null,{"$f":"Table1[[#This Row],[المرتب ]]-(Table1[[#This Row],[السلف ]]+Table1[[#This Row],[الخصم ]])","v":0}]
[null,{"$f":"SUM(Sheet2!C571:AF571)","v":0},{"$f":"Table1[[#This Row],[عدد الايام ]]*65","v":0},null,null,{"$f":"Table1[[#This Row],[المرتب ]]-(Table1[[#This Row],[السلف ]]+Table1[[#This Row],[الخصم ]])","v":0}]
[null,{"$f":"SUM(Sheet2!C572:AF572)","v":0},{"$f":"Table1[[#This Row],[عدد الايام ]]*65","v":0},null,null,{"$f":"Table1[[#This Row],[المرتب ]]-(Table1[[#This Row],[السلف ]]+Table1[[#This Row],[الخصم ]])","v":0}]
[null,{"$f":"SUM(Sheet2!C573:AF573)","v":0},{"$f":"Table1[[#This Row],[عدد الايام ]]*65","v":0},null,null,{"$f":"Table1[[#This Row],[المرتب ]]-(Table1[[#This Row],[السلف ]]+Table1[[#This Row],[الخصم ]])","v":0}]
[null,{"$f":"SUM(Sheet2!C574:AF574)","v":0},{"$f":"Table1[[#This Row],[عدد الايام ]]*65","v":0},null,null,{"$f":"Table1[[#This Row],[المرتب ]]-(Table1[[#This Row],[السلف ]]+Table1[[#This Row],[الخصم ]])","v":0}]
[null,{"$f":"SUM(Sheet2!C575:AF575)","v":0},{"$f":"Table1[[#This Row],[عدد الايام ]]*65","v":0},null,null,{"$f":"Table1[[#This Row],[المرتب ]]-(Table1[[#This Row],[السلف ]]+Table1[[#This Row],[الخصم ]])","v":0}]
[null,{"$f":"SUM(Sheet2!C576:AF576)","v":0},{"$f":"Table1[[#This Row],[عدد الايام ]]*65","v":0},null,null,{"$f":"Table1[[#This Row],[المرتب ]]-(Table1[[#This Row],[السلف ]]+Table1[[#This Row],[الخصم ]])","v":0}]
[null,{"$f":"SUM(Sheet2!C577:AF577)","v":0},{"$f":"Table1[[#This Row],[عدد الايام ]]*65","v":0},null,null,{"$f":"Table1[[#This Row],[المرتب ]]-(Table1[[#This Row],[السلف ]]+Table1[[#This Row],[الخصم ]])","v":0}]
[null,{"$f":"SUM(Sheet2!C578:AF578)","v":0},{"$f":"Table1[[#This Row],[عدد الايام ]]*65","v":0},null,null,{"$f":"Table1[[#This Row],[المرتب ]]-(Table1[[#This Row],[السلف ]]+Table1[[#This Row],[الخصم ]])","v":0}]
[null,{"$f":"SUM(Sheet2!C579:AF579)","v":0},{"$f":"Table1[[#This Row],[عدد الايام ]]*65","v":0},null,null,{"$f":"Table1[[#This Row],[المرتب ]]-(Table1[[#This Row],[السلف ]]+Table1[[#This Row],[الخصم ]])","v":0}]
[null,{"$f":"SUM(Sheet2!C580:AF580)","v":0},{"$f":"Table1[[#This Row],[عدد الايام ]]*65","v":0},null,null,{"$f":"Table1[[#This Row],[المرتب ]]-(Table1[[#This Row],[السلف ]]+Table1[[#This Row],[الخصم ]])","v":0}]
[null,{"$f":"SUM(Sheet2!C581:AF581)","v":0},{"$f":"Table1[[#This Row],[عدد الايام ]]*65","v":0},null,null,{"$f":"Table1[[#This Row],[المرتب ]]-(Table1[[#This Row],[السلف ]]+Table1[[#This Row],[الخصم ]])","v":0}]
[null,{"$f":"SUM(Sheet2!C582:AF582)","v":0},{"$f":"Table1[[#This Row],[عدد الايام ]]*65","v":0},null,null,{"$f":"Table1[[#This Row],[المرتب ]]-(Table1[[#This Row],[السلف ]]+Table1[[#This Row],[الخصم ]])","v":0}]
[null,{"$f":"SUM(Sheet2!C583:AF583)","v":0},{"$f":"Table1[[#This Row],[عدد الايام ]]*65","v":0},null,null,{"$f":"Table1[[#This Row],[المرتب ]]-(Table1[[#This Row],[السلف ]]+Table1[[#This Row],[الخصم ]])","v":0}]
[null,{"$f":"SUM(Sheet2!C584:AF584)","v":0},{"$f":"Table1[[#This Row],[عدد الايام ]]*65","v":0},null,null,{"$f":"Table1[[#This Row],[المرتب ]]-(Table1[[#This Row],[السلف ]]+Table1[[#This Row],[الخصم ]])","v":0}]
[null,{"$f":"SUM(Sheet2!C585:AF585)","v":0},{"$f":"Table1[[#This Row],[عدد الايام ]]*65","v":0},null,null,{"$f":"Table1[[#This Row],[المرتب ]]-(Table1[[#This Row],[السلف ]]+Table1[[#This Row],[الخصم ]])","v":0}]
[null,{"$f":"SUM(Sheet2!C586:AF586)","v":0},{"$f":"Table1[[#This Row],[عدد الايام ]]*65","v":0},null,null,{"$f":"Table1[[#This Row],[المرتب ]]-(Table1[[#This Row],[السلف ]]+Table1[[#This Row],[الخصم ]])","v":0}]
[null,{"$f":"SUM(Sheet2!C587:AF587)","v":0},{"$f":"Table1[[#This Row],[عدد الايام ]]*65","v":0},null,null,{"$f":"Table1[[#This Row],[المرتب ]]-(Table1[[#This Row],[السلف ]]+Table1[[#This Row],[الخصم ]])","v":0}]
[null,{"$f":"SUM(Sheet2!C588:AF588)","v":0},{"$f":"Table1[[#This Row],[عدد الايام ]]*65","v":0},null,null,{"$f":"Table1[[#This Row],[المرتب ]]-(Table1[[#This Row],[السلف ]]+Table1[[#This Row],[الخصم ]])","v":0}]
[null,{"$f":"SUM(Sheet2!C589:AF589)","v":0},{"$f":"Table1[[#This Row],[عدد الايام ]]*65","v":0},null,null,{"$f":"Table1[[#This Row],[المرتب ]]-(Table1[[#This Row],[السلف ]]+Table1[[#This Row],[الخصم ]])","v":0}]
[null,{"$f":"SUM(Sheet2!C590:AF590)","v":0},{"$f":"Table1[[#This Row],[عدد الايام ]]*65","v":0},null,null,{"$f":"Table1[[#This Row],[المرتب ]]-(Table1[[#This Row],[السلف ]]+Table1[[#This Row],[الخصم ]])","v":0}]
[null,{"$f":"SUM(Sheet2!C591:AF591)","v":0},{"$f":"Table1[[#This Row],[عدد الايام ]]*65","v":0},null,null,{"$f":"Table1[[#This Row],[المرتب ]]-(Table1[[#This Row],[السلف ]]+Table1[[#This Row],[الخصم ]])","v":0}]
[null,{"$f":"SUM(Sheet2!C592:AF592)","v":0},{"$f":"Table1[[#This Row],[عدد الايام ]]*65","v":0},null,null,{"$f":"Table1[[#This Row],[المرتب ]]-(Table1[[#This Row],[السلف ]]+Table1[[#This Row],[الخصم ]])","v":0}]
[null,{"$f":"SUM(Sheet2!C593:AF593)","v":0},{"$f":"Table1[[#This Row],[عدد الايام ]]*65","v":0},null,null,{"$f":"Table1[[#This Row],[المرتب ]]-(Table1[[#This Row],[السلف ]]+Table1[[#This Row],[الخصم ]])","v":0}]
[null,{"$f":"SUM(Sheet2!C594:AF594)","v":0},{"$f":"Table1[[#This Row],[عدد الايام ]]*65","v":0},null,null,{"$f":"Table1[[#This Row],[المرتب ]]-(Table1[[#This Row],[السلف ]]+Table1[[#This Row],[الخصم ]])","v":0}]
[null,{"$f":"SUM(Sheet2!C595:AF595)","v":0},{"$f":"Table1[[#This Row],[عدد الايام ]]*65","v":0},null,null,{"$f":"Table1[[#This Row],[المرتب ]]-(Table1[[#This Row],[السلف ]]+Table1[[#This Row],[الخصم ]])","v":0}]
[null,{"$f":"SUM(Sheet2!C596:AF596)","v":0},{"$f":"Table1[[#This Row],[عدد الايام ]]*65","v":0},null,null,{"$f":"Table1[[#This Row],[المرتب ]]-(Table1[[#This Row],[السلف ]]+Table1[[#This Row],[الخصم ]])","v":0}]
[null,{"$f":"SUM(Sheet2!C597:AF597)","v":0},{"$f":"Table1[[#This Row],[عدد الايام ]]*65","v":0},null,null,{"$f":"Table1[[#This Row],[المرتب ]]-(Table1[[#This Row],[السلف ]]+Table1[[#This Row],[الخصم ]])","v":0}]
[null,{"$f":"SUM(Sheet2!C598:AF598)","v":0},{"$f":"Table1[[#This Row],[عدد الايام ]]*65","v":0},null,null,{"$f":"Table1[[#This Row],[المرتب ]]-(Table1[[#This Row],[السلف ]]+Table1[[#This Row],[الخصم ]])","v":0}]
[null,{"$f":"SUM(Sheet2!C599:AF599)","v":0},{"$f":"Table1[[#This Row],[عدد الايام ]]*65","v":0},null,null,{"$f":"Table1[[#This Row],[المرتب ]]-(Table1[[#This Row],[السلف ]]+Table1[[#This Row],[الخصم ]])","v":0}]
[null,{"$f":"SUM(Sheet2!C600:AF600)","v":0},{"$f":"Table1[[#This Row],[عدد الايام ]]*65","v":0},null,null,{"$f":"Table1[[#This Row],[المرتب ]]-(Table1[[#This Row],[السلف ]]+Table1[[#This Row],[الخصم ]])","v":0}]
[null,{"$f":"SUM(Sheet2!C601:AF601)","v":0},{"$f":"Table1[[#This Row],[عدد الايام ]]*65","v":0},null,null,{"$f":"Table1[[#This Row],[المرتب ]]-(Table1[[#This Row],[السلف ]]+Table1[[#This Row],[الخصم ]])","v":0}]
[null,{"$f":"SUM(Sheet2!C602:AF602)","v":0},{"$f":"Table1[[#This Row],[عدد الايام ]]*65","v":0},null,null,{"$f":"Table1[[#This Row],[المرتب ]]-(Table1[[#This Row],[السلف ]]+Table1[[#This Row],[الخصم ]])","v":0}]
[null,{"$f":"SUM(Sheet2!C603:AF603)","v":0},{"$f":"Table1[[#This Row],[عدد الايام ]]*65","v":0},null,null,{"$f":"Table1[[#This Row],[المرتب ]]-(Table1[[#This Row],[السلف ]]+Table1[[#This Row],[الخصم ]])","v":0}]
[null,{"$f":"SUM(Sheet2!C604:AF604)","v":0},{"$f":"Table1[[#This Row],[عدد الايام ]]*65","v":0},null,null,{"$f":"Table1[[#This Row],[المرتب ]]-(Table1[[#This Row],[السلف ]]+Table1[[#This Row],[الخصم ]])","v":0}]
[null,{"$f":"SUM(Sheet2!C605:AF605)","v":0},{"$f":"Table1[[#This Row],[عدد الايام ]]*65","v":0},null,null,{"$f":"Table1[[#This Row],[المرتب ]]-(Table1[[#This Row],[السلف ]]+Table1[[#This Row],[الخصم ]])","v":0}]
[null,{"$f":"SUM(Sheet2!C606:AF606)","v":0},{"$f":"Table1[[#This Row],[عدد الايام ]]*65","v":0},null,null,{"$f":"Table1[[#This Row],[المرتب ]]-(Table1[[#This Row],[السلف ]]+Table1[[#This Row],[الخصم ]])","v":0}]
[null,{"$f":"SUM(Sheet2!C607:AF607)","v":0},{"$f":"Table1[[#This Row],[عدد الايام ]]*65","v":0},null,null,{"$f":"Table1[[#This Row],[المرتب ]]-(Table1[[#This Row],[السلف ]]+Table1[[#This Row],[الخصم ]])","v":0}]
[null,{"$f":"SUM(Sheet2!C608:AF608)","v":0},{"$f":"Table1[[#This Row],[عدد الايام ]]*65","v":0},null,null,{"$f":"Table1[[#This Row],[المرتب ]]-(Table1[[#This Row],[السلف ]]+Table1[[#This Row],[الخصم ]])","v":0}]
[null,{"$f":"SUM(Sheet2!C609:AF609)","v":0},{"$f":"Table1[[#This Row],[عدد الايام ]]*65","v":0},null,null,{"$f":"Table1[[#This Row],[المرتب ]]-(Table1[[#This Row],[السلف ]]+Table1[[#This Row],[الخصم ]])","v":0}]
[null,{"$f":"SUM(Sheet2!C610:AF610)","v":0},{"$f":"Table1[[#This Row],[عدد الايام ]]*65","v":0},null,null,{"$f":"Table1[[#This Row],[المرتب ]]-(Table1[[#This Row],[السلف ]]+Table1[[#This Row],[الخصم ]])","v":0}]
[null,{"$f":"SUM(Sheet2!C611:AF611)","v":0},{"$f":"Table1[[#This Row],[عدد الايام ]]*65","v":0},null,null,{"$f":"Table1[[#This Row],[المرتب ]]-(Table1[[#This Row],[السلف ]]+Table1[[#This Row],[الخصم ]])","v":0}]
[null,{"$f":"SUM(Sheet2!C612:AF612)","v":0},{"$f":"Table1[[#This Row],[عدد الايام ]]*65","v":0},null,null,{"$f":"Table1[[#This Row],[المرتب ]]-(Table1[[#This Row],[السلف ]]+Table1[[#This Row],[الخصم ]])","v":0}]
[null,{"$f":"SUM(Sheet2!C613:AF613)","v":0},{"$f":"Table1[[#This Row],[عدد الايام ]]*65","v":0},null,null,{"$f":"Table1[[#This Row],[المرتب ]]-(Table1[[#This Row],[السلف ]]+Table1[[#This Row],[الخصم ]])","v":0}]
[null,{"$f":"SUM(Sheet2!C614:AF614)","v":0},{"$f":"Table1[[#This Row],[عدد الايام ]]*65","v":0},null,null,{"$f":"Table1[[#This Row],[المرتب ]]-(Table1[[#This Row],[السلف ]]+Table1[[#This Row],[الخصم ]])","v":0}]
[null,{"$f":"SUM(Sheet2!C615:AF615)","v":0},{"$f":"Table1[[#This Row],[عدد الايام ]]*65","v":0},null,null,{"$f":"Table1[[#This Row],[المرتب ]]-(Table1[[#This Row],[السلف ]]+Table1[[#This Row],[الخصم ]])","v":0}]
[null,{"$f":"SUM(Sheet2!C616:AF616)","v":0},{"$f":"Table1[[#This Row],[عدد الايام ]]*65","v":0},null,null,{"$f":"Table1[[#This Row],[المرتب ]]-(Table1[[#This Row],[السلف ]]+Table1[[#This Row],[الخصم ]])","v":0}]
[null,{"$f":"SUM(Sheet2!C617:AF617)","v":0},{"$f":"Table1[[#This Row],[عدد الايام ]]*65","v":0},null,null,{"$f":"Table1[[#This Row],[المرتب ]]-(Table1[[#This Row],[السلف ]]+Table1[[#This Row],[الخصم ]])","v":0}]
[null,{"$f":"SUM(Sheet2!C618:AF618)","v":0},{"$f":"Table1[[#This Row],[عدد الايام ]]*65","v":0},null,null,{"$f":"Table1[[#This Row],[المرتب ]]-(Table1[[#This Row],[السلف ]]+Table1[[#This Row],[الخصم ]])","v":0}]
[null,{"$f":"SUM(Sheet2!C619:AF619)","v":0},{"$f":"Table1[[#This Row],[عدد الايام ]]*65","v":0},null,null,{"$f":"Table1[[#This Row],[المرتب ]]-(Table1[[#This Row],[السلف ]]+Table1[[#This Row],[الخصم ]])","v":0}]
[null,{"$f":"SUM(Sheet2!C620:AF620)","v":0},{"$f":"Table1[[#This Row],[عدد الايام ]]*65","v":0},null,null,{"$f":"Table1[[#This Row],[المرتب ]]-(Table1[[#This Row],[السلف ]]+Table1[[#This Row],[الخصم ]])","v":0}]
[null,{"$f":"SUM(Sheet2!C621:AF621)","v":0},{"$f":"Table1[[#This Row],[عدد الايام ]]*65","v":0},null,null,{"$f":"Table1[[#This Row],[المرتب ]]-(Table1[[#This Row],[السلف ]]+Table1[[#This Row],[الخصم ]])","v":0}]
[null,{"$f":"SUM(Sheet2!C622:AF622)","v":0},{"$f":"Table1[[#This Row],[عدد الايام ]]*65","v":0},null,null,{"$f":"Table1[[#This Row],[المرتب ]]-(Table1[[#This Row],[السلف ]]+Table1[[#This Row],[الخصم ]])","v":0}]
[null,{"$f":"SUM(Sheet2!C623:AF623)","v":0},{"$f":"Table1[[#This Row],[عدد الايام ]]*65","v":0},null,null,{"$f":"Table1[[#This Row],[المرتب ]]-(Table1[[#This Row],[السلف ]]+Table1[[#This Row],[الخصم ]])","v":0}]
[null,{"$f":"SUM(Sheet2!C624:AF624)","v":0},{"$f":"Table1[[#This Row],[عدد الايام ]]*65","v":0},null,null,{"$f":"Table1[[#This Row],[المرتب ]]-(Table1[[#This Row],[السلف ]]+Table1[[#This Row],[الخصم ]])","v":0}]
[null,{"$f":"SUM(Sheet2!C625:AF625)","v":0},{"$f":"Table1[[#This Row],[عدد الايام ]]*65","v":0},null,null,{"$f":"Table1[[#This Row],[المرتب ]]-(Table1[[#This Row],[السلف ]]+Table1[[#This Row],[الخصم ]])","v":0}]
[null,{"$f":"SUM(Sheet2!C626:AF626)","v":0},{"$f":"Table1[[#This Row],[عدد الايام ]]*65","v":0},null,null,{"$f":"Table1[[#This Row],[المرتب ]]-(Table1[[#This Row],[السلف ]]+Table1[[#This Row],[الخصم ]])","v":0}]
[null,{"$f":"SUM(Sheet2!C627:AF627)","v":0},{"$f":"Table1[[#This Row],[عدد الايام ]]*65","v":0},null,null,{"$f":"Table1[[#This Row],[المرتب ]]-(Table1[[#This Row],[السلف ]]+Table1[[#This Row],[الخصم ]])","v":0}]
[null,{"$f":"SUM(Sheet2!C628:AF628)","v":0},{"$f":"Table1[[#This Row],[عدد الايام ]]*65","v":0},null,null,{"$f":"Table1[[#This Row],[المرتب ]]-(Table1[[#This Row],[السلف ]]+Table1[[#This Row],[الخصم ]])","v":0}]
[null,{"$f":"SUM(Sheet2!C629:AF629)","v":0},{"$f":"Table1[[#This Row],[عدد الايام ]]*65","v":0},null,null,{"$f":"Table1[[#This Row],[المرتب ]]-(Table1[[#This Row],[السلف ]]+Table1[[#This Row],[الخصم ]])","v":0}]
[null,{"$f":"SUM(Sheet2!C630:AF630)","v":0},{"$f":"Table1[[#This Row],[عدد الايام ]]*65","v":0},null,null,{"$f":"Table1[[#This Row],[المرتب ]]-(Table1[[#This Row],[السلف ]]+Table1[[#This Row],[الخصم ]])","v":0}]
[null,{"$f":"SUM(Sheet2!C631:AF631)","v":0},{"$f":"Table1[[#This Row],[عدد الايام ]]*65","v":0},null,null,{"$f":"Table1[[#This Row],[المرتب ]]-(Table1[[#This Row],[السلف ]]+Table1[[#This Row],[الخصم ]])","v":0}]
[null,{"$f":"SUM(Sheet2!C632:AF632)","v":0},{"$f":"Table1[[#This Row],[عدد الايام ]]*65","v":0},null,null,{"$f":"Table1[[#This Row],[المرتب ]]-(Table1[[#This Row],[السلف ]]+Table1[[#This Row],[الخصم ]])","v":0}]
[null,{"$f":"SUM(Sheet2!C633:AF633)","v":0},{"$f":"Table1[[#This Row],[عدد الايام ]]*65","v":0},null,null,{"$f":"Table1[[#This Row],[المرتب ]]-(Table1[[#This Row],[السلف ]]+Table1[[#This Row],[الخصم ]])","v":0}]
[null,{"$f":"SUM(Sheet2!C634:AF634)","v":0},{"$f":"Table1[[#This Row],[عدد الايام ]]*65","v":0},null,null,{"$f":"Table1[[#This Row],[المرتب ]]-(Table1[[#This Row],[السلف ]]+Table1[[#This Row],[الخصم ]])","v":0}]
[null,{"$f":"SUM(Sheet2!C635:AF635)","v":0},{"$f":"Table1[[#This Row],[عدد الايام ]]*65","v":0},null,null,{"$f":"Table1[[#This Row],[المرتب ]]-(Table1[[#This Row],[السلف ]]+Table1[[#This Row],[الخصم ]])","v":0}]
[null,{"$f":"SUM(Sheet2!C636:AF636)","v":0},{"$f":"Table1[[#This Row],[عدد الايام ]]*65","v":0},null,null,{"$f":"Table1[[#This Row],[المرتب ]]-(Table1[[#This Row],[السلف ]]+Table1[[#This Row],[الخصم ]])","v":0}]
[null,{"$f":"SUM(Sheet2!C637:AF637)","v":0},{"$f":"Table1[[#This Row],[عدد الايام ]]*65","v":0},null,null,{"$f":"Table1[[#This Row],[المرتب ]]-(Table1[[#This Row],[السلف ]]+Table1[[#This Row],[الخصم ]])","v":0}]
[null,{"$f":"SUM(Sheet2!C638:AF638)","v":0},{"$f":"Table1[[#This Row],[عدد الايام ]]*65","v":0},null,null,{"$f":"Table1[[#This Row],[المرتب ]]-(Table1[[#This Row],[السلف ]]+Table1[[#This Row],[الخصم ]])","v":0}]
[null,{"$f":"SUM(Sheet2!C639:AF639)","v":0},{"$f":"Table1[[#This Row],[عدد الايام ]]*65","v":0},null,null,{"$f":"Table1[[#This Row],[المرتب ]]-(Table1[[#This Row],[السلف ]]+Table1[[#This Row],[الخصم ]])","v":0}]
[null,{"$f":"SUM(Sheet2!C640:AF640)","v":0},{"$f":"Table1[[#This Row],[عدد الايام ]]*65","v":0},null,null,{"$f":"Table1[[#This Row],[المرتب ]]-(Table1[[#This Row],[السلف ]]+Table1[[#This Row],[الخصم ]])","v":0}]
[null,{"$f":"SUM(Sheet2!C641:AF641)","v":0},{"$f":"Table1[[#This Row],[عدد الايام ]]*65","v":0},null,null,{"$f":"Table1[[#This Row],[المرتب ]]-(Table1[[#This Row],[السلف ]]+Table1[[#This Row],[الخصم ]])","v":0}]
[null,{"$f":"SUM(Sheet2!C642:AF642)","v":0},{"$f":"Table1[[#This Row],[عدد الايام ]]*65","v":0},null,null,{"$f":"Table1[[#This Row],[المرتب ]]-(Table1[[#This Row],[السلف ]]+Table1[[#This Row],[الخصم ]])","v":0}]
[null,{"$f":"SUM(Sheet2!C643:AF643)","v":0},{"$f":"Table1[[#This Row],[عدد الايام ]]*65","v":0},null,null,{"$f":"Table1[[#This Row],[المرتب ]]-(Table1[[#This Row],[السلف ]]+Table1[[#This Row],[الخصم ]])","v":0}]
[null,{"$f":"SUM(Sheet2!C644:AF644)","v":0},{"$f":"Table1[[#This Row],[عدد الايام ]]*65","v":0},null,null,{"$f":"Table1[[#This Row],[المرتب ]]-(Table1[[#This Row],[السلف ]]+Table1[[#This Row],[الخصم ]])","v":0}]
[null,{"$f":"SUM(Sheet2!C645:AF645)","v":0},{"$f":"Table1[[#This Row],[عدد الايام ]]*65","v":0},null,null,{"$f":"Table1[[#This Row],[المرتب ]]-(Table1[[#This Row],[السلف ]]+Table1[[#This Row],[الخصم ]])","v":0}]
[null,{"$f":"SUM(Sheet2!C646:AF646)","v":0},{"$f":"Table1[[#This Row],[عدد الايام ]]*65","v":0},null,null,{"$f":"Table1[[#This Row],[المرتب ]]-(Table1[[#This Row],[السلف ]]+Table1[[#This Row],[الخصم ]])","v":0}]
[null,{"$f":"SUM(Sheet2!C647:AF647)","v":0},{"$f":"Table1[[#This Row],[عدد الايام ]]*65","v":0},null,null,{"$f":"Table1[[#This Row],[المرتب ]]-(Table1[[#This Row],[السلف ]]+Table1[[#This Row],[الخصم ]])","v":0}]
[null,{"$f":"SUM(Sheet2!C648:AF648)","v":0},{"$f":"Table1[[#This Row],[عدد الايام ]]*65","v":0},null,null,{"$f":"Table1[[#This Row],[المرتب ]]-(Table1[[#This Row],[السلف ]]+Table1[[#This Row],[الخصم ]])","v":0}]
[null,{"$f":"SUM(Sheet2!C649:AF649)","v":0},{"$f":"Table1[[#This Row],[عدد الايام ]]*65","v":0},null,null,{"$f":"Table1[[#This Row],[المرتب ]]-(Table1[[#This Row],[السلف ]]+Table1[[#This Row],[الخصم ]])","v":0}]
[null,{"$f":"SUM(Sheet2!C650:AF650)","v":0},{"$f":"Table1[[#This Row],[عدد الايام ]]*65","v":0},null,null,{"$f":"Table1[[#This Row],[المرتب ]]-(Table1[[#This Row],[السلف ]]+Table1[[#This Row],[الخصم ]])","v":0}]
[null,{"$f":"SUM(Sheet2!C651:AF651)","v":0},{"$f":"Table1[[#This Row],[عدد الايام ]]*65","v":0},null,null,{"$f":"Table1[[#This Row],[المرتب ]]-(Table1[[#This Row],[السلف ]]+Table1[[#This Row],[الخصم ]])","v":0}]
[null,{"$f":"SUM(Sheet2!C652:AF652)","v":0},{"$f":"Table1[[#This Row],[عدد الايام ]]*65","v":0},null,null,{"$f":"Table1[[#This Row],[المرتب ]]-(Table1[[#This Row],[السلف ]]+Table1[[#This Row],[الخصم ]])","v":0}]
[null,{"$f":"SUM(Sheet2!C653:AF653)","v":0},{"$f":"Table1[[#This Row],[عدد الايام ]]*65","v":0},null,null,{"$f":"Table1[[#This Row],[المرتب ]]-(Table1[[#This Row],[السلف ]]+Table1[[#This Row],[الخصم ]])","v":0}]
[null,{"$f":"SUM(Sheet2!C654:AF654)","v":0},{"$f":"Table1[[#This Row],[عدد الايام ]]*65","v":0},null,null,{"$f":"Table1[[#This Row],[المرتب ]]-(Table1[[#This Row],[السلف ]]+Table1[[#This Row],[الخصم ]])","v":0}]
[null,{"$f":"SUM(Sheet2!C655:AF655)","v":0},{"$f":"Table1[[#This Row],[عدد الايام ]]*65","v":0},null,null,{"$f":"Table1[[#This Row],[المرتب ]]-(Table1[[#This Row],[السلف ]]+Table1[[#This Row],[الخصم ]])","v":0}]
[null,{"$f":"SUM(Sheet2!C656:AF656)","v":0},{"$f":"Table1[[#This Row],[عدد الايام ]]*65","v":0},null,null,{"$f":"Table1[[#This Row],[المرتب ]]-(Table1[[#This Row],[السلف ]]+Table1[[#This Row],[الخصم ]])","v":0}]
[null,{"$f":"SUM(Sheet2!C657:AF657)","v":0},{"$f":"Table1[[#This Row],[عدد الايام ]]*65","v":0},null,null,{"$f":"Table1[[#This Row],[المرتب ]]-(Table1[[#This Row],[السلف ]]+Table1[[#This Row],[الخصم ]])","v":0}]
[null,{"$f":"SUM(Sheet2!C658:AF658)","v":0},{"$f":"Table1[[#This Row],[عدد الايام ]]*65","v":0},null,null,{"$f":"Table1[[#This Row],[المرتب ]]-(Table1[[#This Row],[السلف ]]+Table1[[#This Row],[الخصم ]])","v":0}]
[null,{"$f":"SUM(Sheet2!C659:AF659)","v":0},{"$f":"Table1[[#This Row],[عدد الايام ]]*65","v":0},null,null,{"$f":"Table1[[#This Row],[المرتب ]]-(Table1[[#This Row],[السلف ]]+Table1[[#This Row],[الخصم ]])","v":0}]
[null,{"$f":"SUM(Sheet2!C660:AF660)","v":0},{"$f":"Table1[[#This Row],[عدد الايام ]]*65","v":0},null,null,{"$f":"Table1[[#This Row],[المرتب ]]-(Table1[[#This Row],[السلف ]]+Table1[[#This Row],[الخصم ]])","v":0}]
[null,{"$f":"SUM(Sheet2!C661:AF661)","v":0},{"$f":"Table1[[#This Row],[عدد الايام ]]*65","v":0},null,null,{"$f":"Table1[[#This Row],[المرتب ]]-(Table1[[#This Row],[السلف ]]+Table1[[#This Row],[الخصم ]])","v":0}]
[null,{"$f":"SUM(Sheet2!C662:AF662)","v":0},{"$f":"Table1[[#This Row],[عدد الايام ]]*65","v":0},null,null,{"$f":"Table1[[#This Row],[المرتب ]]-(Table1[[#This Row],[السلف ]]+Table1[[#This Row],[الخصم ]])","v":0}]
[null,{"$f":"SUM(Sheet2!C663:AF663)","v":0},{"$f":"Table1[[#This Row],[عدد الايام ]]*65","v":0},null,null,{"$f":"Table1[[#This Row],[المرتب ]]-(Table1[[#This Row],[السلف ]]+Table1[[#This Row],[الخصم ]])","v":0}]
[null,{"$f":"SUM(Sheet2!C664:AF664)","v":0},{"$f":"Table1[[#This Row],[عدد الايام ]]*65","v":0},null,null,{"$f":"Table1[[#This Row],[المرتب ]]-(Table1[[#This Row],[السلف ]]+Table1[[#This Row],[الخصم ]])","v":0}]
[null,{"$f":"SUM(Sheet2!C665:AF665)","v":0},{"$f":"Table1[[#This Row],[عدد الايام ]]*65","v":0},null,null,{"$f":"Table1[[#This Row],[المرتب ]]-(Table1[[#This Row],[السلف ]]+Table1[[#This Row],[الخصم ]])","v":0}]
[null,{"$f":"SUM(Sheet2!C666:AF666)","v":0},{"$f":"Table1[[#This Row],[عدد الايام ]]*65","v":0},null,null,{"$f":"Table1[[#This Row],[المرتب ]]-(Table1[[#This Row],[السلف ]]+Table1[[#This Row],[الخصم ]])","v":0}]
[null,{"$f":"SUM(Sheet2!C667:AF667)","v":0},{"$f":"Table1[[#This Row],[عدد الايام ]]*65","v":0},null,null,{"$f":"Table1[[#This Row],[المرتب ]]-(Table1[[#This Row],[السلف ]]+Table1[[#This Row],[الخصم ]])","v":0}]
[null,{"$f":"SUM(Sheet2!C668:AF668)","v":0},{"$f":"Table1[[#This Row],[عدد الايام ]]*65","v":0},null,null,{"$f":"Table1[[#This Row],[المرتب ]]-(Table1[[#This Row],[السلف ]]+Table1[[#This Row],[الخصم ]])","v":0}]
[null,{"$f":"SUM(Sheet2!C669:AF669)","v":0},{"$f":"Table1[[#This Row],[عدد الايام ]]*65","v":0},null,null,{"$f":"Table1[[#This Row],[المرتب ]]-(Table1[[#This Row],[السلف ]]+Table1[[#This Row],[الخصم ]])","v":0}]
[null,{"$f":"SUM(Sheet2!C670:AF670)","v":0},{"$f":"Table1[[#This Row],[عدد الايام ]]*65","v":0},null,null,{"$f":"Table1[[#This Row],[المرتب ]]-(Table1[[#This Row],[السلف ]]+Table1[[#This Row],[الخصم ]])","v":0}]
[null,{"$f":"SUM(Sheet2!C671:AF671)","v":0},{"$f":"Table1[[#This Row],[عدد الايام ]]*65","v":0},null,null,{"$f":"Table1[[#This Row],[المرتب ]]-(Table1[[#This Row],[السلف ]]+Table1[[#This Row],[الخصم ]])","v":0}]
[null,{"$f":"SUM(Sheet2!C672:AF672)","v":0},{"$f":"Table1[[#This Row],[عدد الايام ]]*65","v":0},null,null,{"$f":"Table1[[#This Row],[المرتب ]]-(Table1[[#This Row],[السلف ]]+Table1[[#This Row],[الخصم ]])","v":0}]
[null,{"$f":"SUM(Sheet2!C673:AF673)","v":0},{"$f":"Table1[[#This Row],[عدد الايام ]]*65","v":0},null,null,{"$f":"Table1[[#This Row],[المرتب ]]-(Table1[[#This Row],[السلف ]]+Table1[[#This Row],[الخصم ]])","v":0}]
[null,{"$f":"SUM(Sheet2!C674:AF674)","v":0},{"$f":"Table1[[#This Row],[عدد الايام ]]*65","v":0},null,null,{"$f":"Table1[[#This Row],[المرتب ]]-(Table1[[#This Row],[السلف ]]+Table1[[#This Row],[الخصم ]])","v":0}]
[null,{"$f":"SUM(Sheet2!C675:AF675)","v":0},{"$f":"Table1[[#This Row],[عدد الايام ]]*65","v":0},null,null,{"$f":"Table1[[#This Row],[المرتب ]]-(Table1[[#This Row],[السلف ]]+Table1[[#This Row],[الخصم ]])","v":0}]
[null,{"$f":"SUM(Sheet2!C676:AF676)","v":0},{"$f":"Table1[[#This Row],[عدد الايام ]]*65","v":0},null,null,{"$f":"Table1[[#This Row],[المرتب ]]-(Table1[[#This Row],[السلف ]]+Table1[[#This Row],[الخصم ]])","v":0}]
[null,{"$f":"SUM(Sheet2!C677:AF677)","v":0},{"$f":"Table1[[#This Row],[عدد الايام ]]*65","v":0},null,null,{"$f":"Table1[[#This Row],[المرتب ]]-(Table1[[#This Row],[السلف ]]+Table1[[#This Row],[الخصم ]])","v":0}]
[null,{"$f":"SUM(Sheet2!C678:AF678)","v":0},{"$f":"Table1[[#This Row],[عدد الايام ]]*65","v":0},null,null,{"$f":"Table1[[#This Row],[المرتب ]]-(Table1[[#This Row],[السلف ]]+Table1[[#This Row],[الخصم ]])","v":0}]
[null,{"$f":"SUM(Sheet2!C679:AF679)","v":0},{"$f":"Table1[[#This Row],[عدد الايام ]]*65","v":0},null,null,{"$f":"Table1[[#This Row],[المرتب ]]-(Table1[[#This Row],[السلف ]]+Table1[[#This Row],[الخصم ]])","v":0}]
[null,{"$f":"SUM(Sheet2!C680:AF680)","v":0},{"$f":"Table1[[#This Row],[عدد الايام ]]*65","v":0},null,null,{"$f":"Table1[[#This Row],[المرتب ]]-(Table1[[#This Row],[السلف ]]+Table1[[#This Row],[الخصم ]])","v":0}]
[null,{"$f":"SUM(Sheet2!C681:AF681)","v":0},{"$f":"Table1[[#This Row],[عدد الايام ]]*65","v":0},null,null,{"$f":"Table1[[#This Row],[المرتب ]]-(Table1[[#This Row],[السلف ]]+Table1[[#This Row],[الخصم ]])","v":0}]
[null,{"$f":"SUM(Sheet2!C682:AF682)","v":0},{"$f":"Table1[[#This Row],[عدد الايام ]]*65","v":0},null,null,{"$f":"Table1[[#This Row],[المرتب ]]-(Table1[[#This Row],[السلف ]]+Table1[[#This Row],[الخصم ]])","v":0}]
[null,{"$f":"SUM(Sheet2!C683:AF683)","v":0},{"$f":"Table1[[#This Row],[عدد الايام ]]*65","v":0},null,null,{"$f":"Table1[[#This Row],[المرتب ]]-(Table1[[#This Row],[السلف ]]+Table1[[#This Row],[الخصم ]])","v":0}]
[null,{"$f":"SUM(Sheet2!C684:AF684)","v":0},{"$f":"Table1[[#This Row],[عدد الايام ]]*65","v":0},null,null,{"$f":"Table1[[#This Row],[المرتب ]]-(Table1[[#This Row],[السلف ]]+Table1[[#This Row],[الخصم ]])","v":0}]
[null,{"$f":"SUM(Sheet2!C685:AF685)","v":0},{"$f":"Table1[[#This Row],[عدد الايام ]]*65","v":0},null,null,{"$f":"Table1[[#This Row],[المرتب ]]-(Table1[[#This Row],[السلف ]]+Table1[[#This Row],[الخصم ]])","v":0}]
[null,{"$f":"SUM(Sheet2!C686:AF686)","v":0},{"$f":"Table1[[#This Row],[عدد الايام ]]*65","v":0},null,null,{"$f":"Table1[[#This Row],[المرتب ]]-(Table1[[#This Row],[السلف ]]+Table1[[#This Row],[الخصم ]])","v":0}]
[null,{"$f":"SUM(Sheet2!C687:AF687)","v":0},{"$f":"Table1[[#This Row],[عدد الايام ]]*65","v":0},null,null,{"$f":"Table1[[#This Row],[المرتب ]]-(Table1[[#This Row],[السلف ]]+Table1[[#This Row],[الخصم ]])","v":0}]
[null,{"$f":"SUM(Sheet2!C688:AF688)","v":0},{"$f":"Table1[[#This Row],[عدد الايام ]]*65","v":0},null,null,{"$f":"Table1[[#This Row],[المرتب ]]-(Table1[[#This Row],[السلف ]]+Table1[[#This Row],[الخصم ]])","v":0}]
[null,{"$f":"SUM(Sheet2!C689:AF689)","v":0},{"$f":"Table1[[#This Row],[عدد الايام ]]*65","v":0},null,null,{"$f":"Table1[[#This Row],[المرتب ]]-(Table1[[#This Row],[السلف ]]+Table1[[#This Row],[الخصم ]])","v":0}]
[null,{"$f":"SUM(Sheet2!C690:AF690)","v":0},{"$f":"Table1[[#This Row],[عدد الايام ]]*65","v":0},null,null,{"$f":"Table1[[#This Row],[المرتب ]]-(Table1[[#This Row],[السلف ]]+Table1[[#This Row],[الخصم ]])","v":0}]
[null,{"$f":"SUM(Sheet2!C691:AF691)","v":0},{"$f":"Table1[[#This Row],[عدد الايام ]]*65","v":0},null,null,{"$f":"Table1[[#This Row],[المرتب ]]-(Table1[[#This Row],[السلف ]]+Table1[[#This Row],[الخصم ]])","v":0}]
[null,{"$f":"SUM(Sheet2!C692:AF692)","v":0},{"$f":"Table1[[#This Row],[عدد الايام ]]*65","v":0},null,null,{"$f":"Table1[[#This Row],[المرتب ]]-(Table1[[#This Row],[السلف ]]+Table1[[#This Row],[الخصم ]])","v":0}]
[null,{"$f":"SUM(Sheet2!C693:AF693)","v":0},{"$f":"Table1[[#This Row],[عدد الايام ]]*65","v":0},null,null,{"$f":"Table1[[#This Row],[المرتب ]]-(Table1[[#This Row],[السلف ]]+Table1[[#This Row],[الخصم ]])","v":0}]
[null,{"$f":"SUM(Sheet2!C694:AF694)","v":0},{"$f":"Table1[[#This Row],[عدد الايام ]]*65","v":0},null,null,{"$f":"Table1[[#This Row],[المرتب ]]-(Table1[[#This Row],[السلف ]]+Table1[[#This Row],[الخصم ]])","v":0}]
[null,{"$f":"SUM(Sheet2!C695:AF695)","v":0},{"$f":"Table1[[#This Row],[عدد الايام ]]*65","v":0},null,null,{"$f":"Table1[[#This Row],[المرتب ]]-(Table1[[#This Row],[السلف ]]+Table1[[#This Row],[الخصم ]])","v":0}]
[null,{"$f":"SUM(Sheet2!C696:AF696)","v":0},{"$f":"Table1[[#This Row],[عدد الايام ]]*65","v":0},null,null,{"$f":"Table1[[#This Row],[المرتب ]]-(Table1[[#This Row],[السلف ]]+Table1[[#This Row],[الخصم ]])","v":0}]
[null,{"$f":"SUM(Sheet2!C697:AF697)","v":0},{"$f":"Table1[[#This Row],[عدد الايام ]]*65","v":0},null,null,{"$f":"Table1[[#This Row],[المرتب ]]-(Table1[[#This Row],[السلف ]]+Table1[[#This Row],[الخصم ]])","v":0}]
[null,{"$f":"SUM(Sheet2!C698:AF698)","v":0},{"$f":"Table1[[#This Row],[عدد الايام ]]*65","v":0},null,null,{"$f":"Table1[[#This Row],[المرتب ]]-(Table1[[#This Row],[السلف ]]+Table1[[#This Row],[الخصم ]])","v":0}]
[null,{"$f":"SUM(Sheet2!C699:AF699)","v":0},{"$f":"Table1[[#This Row],[عدد الايام ]]*65","v":0},null,null,{"$f":"Table1[[#This Row],[المرتب ]]-(Table1[[#This Row],[السلف ]]+Table1[[#This Row],[الخصم ]])","v":0}]
[null,{"$f":"SUM(Sheet2!C700:AF700)","v":0},{"$f":"Table1[[#This Row],[عدد الايام ]]*65","v":0},null,null,{"$f":"Table1[[#This Row],[المرتب ]]-(Table1[[#This Row],[السلف ]]+Table1[[#This Row],[الخصم ]])","v":0}]
[null,{"$f":"SUM(Sheet2!C701:AF701)","v":0},{"$f":"Table1[[#This Row],[عدد الايام ]]*65","v":0},null,null,{"$f":"Table1[[#This Row],[المرتب ]]-(Table1[[#This Row],[السلف ]]+Table1[[#This Row],[الخصم ]])","v":0}]
[null,{"$f":"SUM(Sheet2!C702:AF702)","v":0},{"$f":"Table1[[#This Row],[عدد الايام ]]*65","v":0},null,null,{"$f":"Table1[[#This Row],[المرتب ]]-(Table1[[#This Row],[السلف ]]+Table1[[#This Row],[الخصم ]])","v":0}]
[null,{"$f":"SUM(Sheet2!C703:AF703)","v":0},{"$f":"Table1[[#This Row],[عدد الايام ]]*65","v":0},null,null,{"$f":"Table1[[#This Row],[المرتب ]]-(Table1[[#This Row],[السلف ]]+Table1[[#This Row],[الخصم ]])","v":0}]
[null,{"$f":"SUM(Sheet2!C704:AF704)","v":0},{"$f":"Table1[[#This Row],[عدد الايام ]]*65","v":0},null,null,{"$f":"Table1[[#This Row],[المرتب ]]-(Table1[[#This Row],[السلف ]]+Table1[[#This Row],[الخصم ]])","v":0}]
[null,{"$f":"SUM(Sheet2!C705:AF705)","v":0},{"$f":"Table1[[#This Row],[عدد الايام ]]*65","v":0},null,null,{"$f":"Table1[[#This Row],[المرتب ]]-(Table1[[#This Row],[السلف ]]+Table1[[#This Row],[الخصم ]])","v":0}]
[null,{"$f":"SUM(Sheet2!C706:AF706)","v":0},{"$f":"Table1[[#This Row],[عدد الايام ]]*65","v":0},null,null,{"$f":"Table1[[#This Row],[المرتب ]]-(Table1[[#This Row],[السلف ]]+Table1[[#This Row],[الخصم ]])","v":0}]
[null,{"$f":"SUM(Sheet2!C707:AF707)","v":0},{"$f":"Table1[[#This Row],[عدد الايام ]]*65","v":0},null,null,{"$f":"Table1[[#This Row],[المرتب ]]-(Table1[[#This Row],[السلف ]]+Table1[[#This Row],[الخصم ]])","v":0}]
[null,{"$f":"SUM(Sheet2!C708:AF708)","v":0},{"$f":"Table1[[#This Row],[عدد الايام ]]*65","v":0},null,null,{"$f":"Table1[[#This Row],[المرتب ]]-(Table1[[#This Row],[السلف ]]+Table1[[#This Row],[الخصم ]])","v":0}]
[null,{"$f":"SUM(Sheet2!C709:AF709)","v":0},{"$f":"Table1[[#This Row],[عدد الايام ]]*65","v":0},null,null,{"$f":"Table1[[#This Row],[المرتب ]]-(Table1[[#This Row],[السلف ]]+Table1[[#This Row],[الخصم ]])","v":0}]
[null,{"$f":"SUM(Sheet2!C710:AF710)","v":0},{"$f":"Table1[[#This Row],[عدد الايام ]]*65","v":0},null,null,{"$f":"Table1[[#This Row],[المرتب ]]-(Table1[[#This Row],[السلف ]]+Table1[[#This Row],[الخصم ]])","v":0}]
[null,{"$f":"SUM(Sheet2!C711:AF711)","v":0},{"$f":"Table1[[#This Row],[عدد الايام ]]*65","v":0},null,null,{"$f":"Table1[[#This Row],[المرتب ]]-(Table1[[#This Row],[السلف ]]+Table1[[#This Row],[الخصم ]])","v":0}]
[null,{"$f":"SUM(Sheet2!C712:AF712)","v":0},{"$f":"Table1[[#This Row],[عدد الايام ]]*65","v":0},null,null,{"$f":"Table1[[#This Row],[المرتب ]]-(Table1[[#This Row],[السلف ]]+Table1[[#This Row],[الخصم ]])","v":0}]
[null,{"$f":"SUM(Sheet2!C713:AF713)","v":0},{"$f":"Table1[[#This Row],[عدد الايام ]]*65","v":0},null,null,{"$f":"Table1[[#This Row],[المرتب ]]-(Table1[[#This Row],[السلف ]]+Table1[[#This Row],[الخصم ]])","v":0}]
[null,{"$f":"SUM(Sheet2!C714:AF714)","v":0},{"$f":"Table1[[#This Row],[عدد الايام ]]*65","v":0},null,null,{"$f":"Table1[[#This Row],[المرتب ]]-(Table1[[#This Row],[السلف ]]+Table1[[#This Row],[الخصم ]])","v":0}]
[null,{"$f":"SUM(Sheet2!C715:AF715)","v":0},{"$f":"Table1[[#This Row],[عدد الايام ]]*65","v":0},null,null,{"$f":"Table1[[#This Row],[المرتب ]]-(Table1[[#This Row],[السلف ]]+Table1[[#This Row],[الخصم ]])","v":0}]
[null,{"$f":"SUM(Sheet2!C716:AF716)","v":0},{"$f":"Table1[[#This Row],[عدد الايام ]]*65","v":0},null,null,{"$f":"Table1[[#This Row],[المرتب ]]-(Table1[[#This Row],[السلف ]]+Table1[[#This Row],[الخصم ]])","v":0}]
[null,{"$f":"SUM(Sheet2!C717:AF717)","v":0},{"$f":"Table1[[#This Row],[عدد الايام ]]*65","v":0},null,null,{"$f":"Table1[[#This Row],[المرتب ]]-(Table1[[#This Row],[السلف ]]+Table1[[#This Row],[الخصم ]])","v":0}]
[null,{"$f":"SUM(Sheet2!C718:AF718)","v":0},{"$f":"Table1[[#This Row],[عدد الايام ]]*65","v":0},null,null,{"$f":"Table1[[#This Row],[المرتب ]]-(Table1[[#This Row],[السلف ]]+Table1[[#This Row],[الخصم ]])","v":0}]
[null,{"$f":"SUM(Sheet2!C719:AF719)","v":0},{"$f":"Table1[[#This Row],[عدد الايام ]]*65","v":0},null,null,{"$f":"Table1[[#This Row],[المرتب ]]-(Table1[[#This Row],[السلف ]]+Table1[[#This Row],[الخصم ]])","v":0}]
[null,{"$f":"SUM(Sheet2!C720:AF720)","v":0},{"$f":"Table1[[#This Row],[عدد الايام ]]*65","v":0},null,null,{"$f":"Table1[[#This Row],[المرتب ]]-(Table1[[#This Row],[السلف ]]+Table1[[#This Row],[الخصم ]])","v":0}]
[null,{"$f":"SUM(Sheet2!C721:AF721)","v":0},{"$f":"Table1[[#This Row],[عدد الايام ]]*65","v":0},null,null,{"$f":"Table1[[#This Row],[المرتب ]]-(Table1[[#This Row],[السلف ]]+Table1[[#This Row],[الخصم ]])","v":0}]
[null,{"$f":"SUM(Sheet2!C722:AF722)","v":0},{"$f":"Table1[[#This Row],[عدد الايام ]]*65","v":0},null,null,{"$f":"Table1[[#This Row],[المرتب ]]-(Table1[[#This Row],[السلف ]]+Table1[[#This Row],[الخصم ]])","v":0}]
[null,{"$f":"SUM(Sheet2!C723:AF723)","v":0},{"$f":"Table1[[#This Row],[عدد الايام ]]*65","v":0},null,null,{"$f":"Table1[[#This Row],[المرتب ]]-(Table1[[#This Row],[السلف ]]+Table1[[#This Row],[الخصم ]])","v":0}]
[null,{"$f":"SUM(Sheet2!C724:AF724)","v":0},{"$f":"Table1[[#This Row],[عدد الايام ]]*65","v":0},null,null,{"$f":"Table1[[#This Row],[المرتب ]]-(Table1[[#This Row],[السلف ]]+Table1[[#This Row],[الخصم ]])","v":0}]
[null,{"$f":"SUM(Sheet2!C725:AF725)","v":0},{"$f":"Table1[[#This Row],[عدد الايام ]]*65","v":0},null,null,{"$f":"Table1[[#This Row],[المرتب ]]-(Table1[[#This Row],[السلف ]]+Table1[[#This Row],[الخصم ]])","v":0}]
[null,{"$f":"SUM(Sheet2!C726:AF726)","v":0},{"$f":"Table1[[#This Row],[عدد الايام ]]*65","v":0},null,null,{"$f":"Table1[[#This Row],[المرتب ]]-(Table1[[#This Row],[السلف ]]+Table1[[#This Row],[الخصم ]])","v":0}]
[null,{"$f":"SUM(Sheet2!C727:AF727)","v":0},{"$f":"Table1[[#This Row],[عدد الايام ]]*65","v":0},null,null,{"$f":"Table1[[#This Row],[المرتب ]]-(Table1[[#This Row],[السلف ]]+Table1[[#This Row],[الخصم ]])","v":0}]
[null,{"$f":"SUM(Sheet2!C728:AF728)","v":0},{"$f":"Table1[[#This Row],[عدد الايام ]]*65","v":0},null,null,{"$f":"Table1[[#This Row],[المرتب ]]-(Table1[[#This Row],[السلف ]]+Table1[[#This Row],[الخصم ]])","v":0}]
[null,{"$f":"SUM(Sheet2!C729:AF729)","v":0},{"$f":"Table1[[#This Row],[عدد الايام ]]*65","v":0},null,null,{"$f":"Table1[[#This Row],[المرتب ]]-(Table1[[#This Row],[السلف ]]+Table1[[#This Row],[الخصم ]])","v":0}]
[null,{"$f":"SUM(Sheet2!C730:AF730)","v":0},{"$f":"Table1[[#This Row],[عدد الايام ]]*65","v":0},null,null,{"$f":"Table1[[#This Row],[المرتب ]]-(Table1[[#This Row],[السلف ]]+Table1[[#This Row],[الخصم ]])","v":0}]
[null,{"$f":"SUM(Sheet2!C731:AF731)","v":0},{"$f":"Table1[[#This Row],[عدد الايام ]]*65","v":0},null,null,{"$f":"Table1[[#This Row],[المرتب ]]-(Table1[[#This Row],[السلف ]]+Table1[[#This Row],[الخصم ]])","v":0}]
[null,{"$f":"SUM(Sheet2!C732:AF732)","v":0},{"$f":"Table1[[#This Row],[عدد الايام ]]*65","v":0},null,null,{"$f":"Table1[[#This Row],[المرتب ]]-(Table1[[#This Row],[السلف ]]+Table1[[#This Row],[الخصم ]])","v":0}]
[null,{"$f":"SUM(Sheet2!C733:AF733)","v":0},{"$f":"Table1[[#This Row],[عدد الايام ]]*65","v":0},null,null,{"$f":"Table1[[#This Row],[المرتب ]]-(Table1[[#This Row],[السلف ]]+Table1[[#This Row],[الخصم ]])","v":0}]
[null,{"$f":"SUM(Sheet2!C734:AF734)","v":0},{"$f":"Table1[[#This Row],[عدد الايام ]]*65","v":0},null,null,{"$f":"Table1[[#This Row],[المرتب ]]-(Table1[[#This Row],[السلف ]]+Table1[[#This Row],[الخصم ]])","v":0}]
[null,{"$f":"SUM(Sheet2!C735:AF735)","v":0},{"$f":"Table1[[#This Row],[عدد الايام ]]*65","v":0},null,null,{"$f":"Table1[[#This Row],[المرتب ]]-(Table1[[#This Row],[السلف ]]+Table1[[#This Row],[الخصم ]])","v":0}]
[null,{"$f":"SUM(Sheet2!C736:AF736)","v":0},{"$f":"Table1[[#This Row],[عدد الايام ]]*65","v":0},null,null,{"$f":"Table1[[#This Row],[المرتب ]]-(Table1[[#This Row],[السلف ]]+Table1[[#This Row],[الخصم ]])","v":0}]
[null,{"$f":"SUM(Sheet2!C737:AF737)","v":0},{"$f":"Table1[[#This Row],[عدد الايام ]]*65","v":0},null,null,{"$f":"Table1[[#This Row],[المرتب ]]-(Table1[[#This Row],[السلف ]]+Table1[[#This Row],[الخصم ]])","v":0}]
[null,{"$f":"SUM(Sheet2!C738:AF738)","v":0},{"$f":"Table1[[#This Row],[عدد الايام ]]*65","v":0},null,null,{"$f":"Table1[[#This Row],[المرتب ]]-(Table1[[#This Row],[السلف ]]+Table1[[#This Row],[الخصم ]])","v":0}]
[null,{"$f":"SUM(Sheet2!C739:AF739)","v":0},{"$f":"Table1[[#This Row],[عدد الايام ]]*65","v":0},null,null,{"$f":"Table1[[#This Row],[المرتب ]]-(Table1[[#This Row],[السلف ]]+Table1[[#This Row],[الخصم ]])","v":0}]
[null,{"$f":"SUM(Sheet2!C740:AF740)","v":0},{"$f":"Table1[[#This Row],[عدد الايام ]]*65","v":0},null,null,{"$f":"Table1[[#This Row],[المرتب ]]-(Table1[[#This Row],[السلف ]]+Table1[[#This Row],[الخصم ]])","v":0}]
[null,{"$f":"SUM(Sheet2!C741:AF741)","v":0},{"$f":"Table1[[#This Row],[عدد الايام ]]*65","v":0},null,null,{"$f":"Table1[[#This Row],[المرتب ]]-(Table1[[#This Row],[السلف ]]+Table1[[#This Row],[الخصم ]])","v":0}]
[null,{"$f":"SUM(Sheet2!C742:AF742)","v":0},{"$f":"Table1[[#This Row],[عدد الايام ]]*65","v":0},null,null,{"$f":"Table1[[#This Row],[المرتب ]]-(Table1[[#This Row],[السلف ]]+Table1[[#This Row],[الخصم ]])","v":0}]
[null,{"$f":"SUM(Sheet2!C743:AF743)","v":0},{"$f":"Table1[[#This Row],[عدد الايام ]]*65","v":0},null,null,{"$f":"Table1[[#This Row],[المرتب ]]-(Table1[[#This Row],[السلف ]]+Table1[[#This Row],[الخصم ]])","v":0}]
[null,{"$f":"SUM(Sheet2!C744:AF744)","v":0},{"$f":"Table1[[#This Row],[عدد الايام ]]*65","v":0},null,null,{"$f":"Table1[[#This Row],[المرتب ]]-(Table1[[#This Row],[السلف ]]+Table1[[#This Row],[الخصم ]])","v":0}]
[null,{"$f":"SUM(Sheet2!C745:AF745)","v":0},{"$f":"Table1[[#This Row],[عدد الايام ]]*65","v":0},null,null,{"$f":"Table1[[#This Row],[المرتب ]]-(Table1[[#This Row],[السلف ]]+Table1[[#This Row],[الخصم ]])","v":0}]
[null,{"$f":"SUM(Sheet2!C746:AF746)","v":0},{"$f":"Table1[[#This Row],[عدد الايام ]]*65","v":0},null,null,{"$f":"Table1[[#This Row],[المرتب ]]-(Table1[[#This Row],[السلف ]]+Table1[[#This Row],[الخصم ]])","v":0}]
[null,{"$f":"SUM(Sheet2!C747:AF747)","v":0},{"$f":"Table1[[#This Row],[عدد الايام ]]*65","v":0},null,null,{"$f":"Table1[[#This Row],[المرتب ]]-(Table1[[#This Row],[السلف ]]+Table1[[#This Row],[الخصم ]])","v":0}]
[null,{"$f":"SUM(Sheet2!C748:AF748)","v":0},{"$f":"Table1[[#This Row],[عدد الايام ]]*65","v":0},null,null,{"$f":"Table1[[#This Row],[المرتب ]]-(Table1[[#This Row],[السلف ]]+Table1[[#This Row],[الخصم ]])","v":0}]
[null,{"$f":"SUM(Sheet2!C749:AF749)","v":0},{"$f":"Table1[[#This Row],[عدد الايام ]]*65","v":0},null,null,{"$f":"Table1[[#This Row],[المرتب ]]-(Table1[[#This Row],[السلف ]]+Table1[[#This Row],[الخصم ]])","v":0}]
[null,{"$f":"SUM(Sheet2!C750:AF750)","v":0},{"$f":"Table1[[#This Row],[عدد الايام ]]*65","v":0},null,null,{"$f":"Table1[[#This Row],[المرتب ]]-(Table1[[#This Row],[السلف ]]+Table1[[#This Row],[الخصم ]])","v":0}]
[null,{"$f":"SUM(Sheet2!C751:AF751)","v":0},{"$f":"Table1[[#This Row],[عدد الايام ]]*65","v":0},null,null,{"$f":"Table1[[#This Row],[المرتب ]]-(Table1[[#This Row],[السلف ]]+Table1[[#This Row],[الخصم ]])","v":0}]
[null,{"$f":"SUM(Sheet2!C752:AF752)","v":0},{"$f":"Table1[[#This Row],[عدد الايام ]]*65","v":0},null,null,{"$f":"Table1[[#This Row],[المرتب ]]-(Table1[[#This Row],[السلف ]]+Table1[[#This Row],[الخصم ]])","v":0}]
[null,{"$f":"SUM(Sheet2!C753:AF753)","v":0},{"$f":"Table1[[#This Row],[عدد الايام ]]*65","v":0},null,null,{"$f":"Table1[[#This Row],[المرتب ]]-(Table1[[#This Row],[السلف ]]+Table1[[#This Row],[الخصم ]])","v":0}]
[null,{"$f":"SUM(Sheet2!C754:AF754)","v":0},{"$f":"Table1[[#This Row],[عدد الايام ]]*65","v":0},null,null,{"$f":"Table1[[#This Row],[المرتب ]]-(Table1[[#This Row],[السلف ]]+Table1[[#This Row],[الخصم ]])","v":0}]
[null,{"$f":"SUM(Sheet2!C755:AF755)","v":0},{"$f":"Table1[[#This Row],[عدد الايام ]]*65","v":0},null,null,{"$f":"Table1[[#This Row],[المرتب ]]-(Table1[[#This Row],[السلف ]]+Table1[[#This Row],[الخصم ]])","v":0}]
[null,{"$f":"SUM(Sheet2!C756:AF756)","v":0},{"$f":"Table1[[#This Row],[عدد الايام ]]*65","v":0},null,null,{"$f":"Table1[[#This Row],[المرتب ]]-(Table1[[#This Row],[السلف ]]+Table1[[#This Row],[الخصم ]])","v":0}]
[null,{"$f":"SUM(Sheet2!C757:AF757)","v":0},{"$f":"Table1[[#This Row],[عدد الايام ]]*65","v":0},null,null,{"$f":"Table1[[#This Row],[المرتب ]]-(Table1[[#This Row],[السلف ]]+Table1[[#This Row],[الخصم ]])","v":0}]
[null,{"$f":"SUM(Sheet2!C758:AF758)","v":0},{"$f":"Table1[[#This Row],[عدد الايام ]]*65","v":0},null,null,{"$f":"Table1[[#This Row],[المرتب ]]-(Table1[[#This Row],[السلف ]]+Table1[[#This Row],[الخصم ]])","v":0}]
[null,{"$f":"SUM(Sheet2!C759:AF759)","v":0},{"$f":"Table1[[#This Row],[عدد الايام ]]*65","v":0},null,null,{"$f":"Table1[[#This Row],[المرتب ]]-(Table1[[#This Row],[السلف ]]+Table1[[#This Row],[الخصم ]])","v":0}]
[null,{"$f":"SUM(Sheet2!C760:AF760)","v":0},{"$f":"Table1[[#This Row],[عدد الايام ]]*65","v":0},null,null,{"$f":"Table1[[#This Row],[المرتب ]]-(Table1[[#This Row],[السلف ]]+Table1[[#This Row],[الخصم ]])","v":0}]
[null,{"$f":"SUM(Sheet2!C761:AF761)","v":0},{"$f":"Table1[[#This Row],[عدد الايام ]]*65","v":0},null,null,{"$f":"Table1[[#This Row],[المرتب ]]-(Table1[[#This Row],[السلف ]]+Table1[[#This Row],[الخصم ]])","v":0}]
[null,{"$f":"SUM(Sheet2!C762:AF762)","v":0},{"$f":"Table1[[#This Row],[عدد الايام ]]*65","v":0},null,null,{"$f":"Table1[[#This Row],[المرتب ]]-(Table1[[#This Row],[السلف ]]+Table1[[#This Row],[الخصم ]])","v":0}]
[null,{"$f":"SUM(Sheet2!C763:AF763)","v":0},{"$f":"Table1[[#This Row],[عدد الايام ]]*65","v":0},null,null,{"$f":"Table1[[#This Row],[المرتب ]]-(Table1[[#This Row],[السلف ]]+Table1[[#This Row],[الخصم ]])","v":0}]
[null,{"$f":"SUM(Sheet2!C764:AF764)","v":0},{"$f":"Table1[[#This Row],[عدد الايام ]]*65","v":0},null,null,{"$f":"Table1[[#This Row],[المرتب ]]-(Table1[[#This Row],[السلف ]]+Table1[[#This Row],[الخصم ]])","v":0}]
[null,{"$f":"SUM(Sheet2!C765:AF765)","v":0},{"$f":"Table1[[#This Row],[عدد الايام ]]*65","v":0},null,null,{"$f":"Table1[[#This Row],[المرتب ]]-(Table1[[#This Row],[السلف ]]+Table1[[#This Row],[الخصم ]])","v":0}]
[null,{"$f":"SUM(Sheet2!C766:AF766)","v":0},{"$f":"Table1[[#This Row],[عدد الايام ]]*65","v":0},null,null,{"$f":"Table1[[#This Row],[المرتب ]]-(Table1[[#This Row],[السلف ]]+Table1[[#This Row],[الخصم ]])","v":0}]
[null,{"$f":"SUM(Sheet2!C767:AF767)","v":0},{"$f":"Table1[[#This Row],[عدد الايام ]]*65","v":0},null,null,{"$f":"Table1[[#This Row],[المرتب ]]-(Table1[[#This Row],[السلف ]]+Table1[[#This Row],[الخصم ]])","v":0}]
[null,{"$f":"SUM(Sheet2!C768:AF768)","v":0},{"$f":"Table1[[#This Row],[عدد الايام ]]*65","v":0},null,null,{"$f":"Table1[[#This Row],[المرتب ]]-(Table1[[#This Row],[السلف ]]+Table1[[#This Row],[الخصم ]])","v":0}]
[null,{"$f":"SUM(Sheet2!C769:AF769)","v":0},{"$f":"Table1[[#This Row],[عدد الايام ]]*65","v":0},null,null,{"$f":"Table1[[#This Row],[المرتب ]]-(Table1[[#This Row],[السلف ]]+Table1[[#This Row],[الخصم ]])","v":0}]
[null,{"$f":"SUM(Sheet2!C770:AF770)","v":0},{"$f":"Table1[[#This Row],[عدد الايام ]]*65","v":0},null,null,{"$f":"Table1[[#This Row],[المرتب ]]-(Table1[[#This Row],[السلف ]]+Table1[[#This Row],[الخصم ]])","v":0}]
[null,{"$f":"SUM(Sheet2!C771:AF771)","v":0},{"$f":"Table1[[#This Row],[عدد الايام ]]*65","v":0},null,null,{"$f":"Table1[[#This Row],[المرتب ]]-(Table1[[#This Row],[السلف ]]+Table1[[#This Row],[الخصم ]])","v":0}]
[null,{"$f":"SUM(Sheet2!C772:AF772)","v":0},{"$f":"Table1[[#This Row],[عدد الايام ]]*65","v":0},null,null,{"$f":"Table1[[#This Row],[المرتب ]]-(Table1[[#This Row],[السلف ]]+Table1[[#This Row],[الخصم ]])","v":0}]
[null,{"$f":"SUM(Sheet2!C773:AF773)","v":0},{"$f":"Table1[[#This Row],[عدد الايام ]]*65","v":0},null,null,{"$f":"Table1[[#This Row],[المرتب ]]-(Table1[[#This Row],[السلف ]]+Table1[[#This Row],[الخصم ]])","v":0}]
[null,{"$f":"SUM(Sheet2!C774:AF774)","v":0},{"$f":"Table1[[#This Row],[عدد الايام ]]*65","v":0},null,null,{"$f":"Table1[[#This Row],[المرتب ]]-(Table1[[#This Row],[السلف ]]+Table1[[#This Row],[الخصم ]])","v":0}]
[null,{"$f":"SUM(Sheet2!C775:AF775)","v":0},{"$f":"Table1[[#This Row],[عدد الايام ]]*65","v":0},null,null,{"$f":"Table1[[#This Row],[المرتب ]]-(Table1[[#This Row],[السلف ]]+Table1[[#This Row],[الخصم ]])","v":0}]
[null,{"$f":"SUM(Sheet2!C776:AF776)","v":0},{"$f":"Table1[[#This Row],[عدد الايام ]]*65","v":0},null,null,{"$f":"Table1[[#This Row],[المرتب ]]-(Table1[[#This Row],[السلف ]]+Table1[[#This Row],[الخصم ]])","v":0}]
[null,{"$f":"SUM(Sheet2!C777:AF777)","v":0},{"$f":"Table1[[#This Row],[عدد الايام ]]*65","v":0},null,null,{"$f":"Table1[[#This Row],[المرتب ]]-(Table1[[#This Row],[السلف ]]+Table1[[#This Row],[الخصم ]])","v":0}]
[null,{"$f":"SUM(Sheet2!C778:AF778)","v":0},{"$f":"Table1[[#This Row],[عدد الايام ]]*65","v":0},null,null,{"$f":"Table1[[#This Row],[المرتب ]]-(Table1[[#This Row],[السلف ]]+Table1[[#This Row],[الخصم ]])","v":0}]
[null,{"$f":"SUM(Sheet2!C779:AF779)","v":0},{"$f":"Table1[[#This Row],[عدد الايام ]]*65","v":0},null,null,{"$f":"Table1[[#This Row],[المرتب ]]-(Table1[[#This Row],[السلف ]]+Table1[[#This Row],[الخصم ]])","v":0}]

{"sheet":"Sheet2","index":2,"n_rows":413,"n_cols":34,"rows_kept":413,"cut":false,"hidden":false,"merged":[]}
["كود الموظف  ","اسم الموظف ","2019-03-01","2019-03-02","2019-03-03","2019-03-04","2019-03-05","2019-03-06","2019-03-07","2019-03-08","2019-03-09","2019-03-10","2019-03-11","2019-03-12","2019-03-13","2019-03-14","2019-03-15","2019-03-16","2019-03-17","2019-03-18","2019-03-19","2019-03-20","2019-03-21","2019-03-22","2019-03-23","2019-03-24","2019-03-25","2019-03-26","2019-03-27","2019-03-28","2019-03-29","2019-03-30","2019-03-31","اجمالي"]
[1,"ابانوب بشاره نصر بشاره"]
[null,"ادخل كود الموظف سيجلب لك الاسم","ادخل أيام في هذه الخانات سيرحل لك النتائج المطلوبة واذا اردت التعديل عل اسم معين ادخل كود الموظف وادخل اليوم الذى تريد التعديل ثم اضغط زر ترحيل"]
[]
["كود الموظف  ","اسم الموظف ","2019-03-01","2019-03-02","2019-03-03","2019-03-04","2019-03-05","2019-03-06","2019-03-07","2019-03-08","2019-03-09","2019-03-10","2019-03-11","2019-03-12","2019-03-13","2019-03-14","2019-03-15","2019-03-16","2019-03-17","2019-03-18","2019-03-19","2019-03-20","2019-03-21","2019-03-22","2019-03-23","2019-03-24","2019-03-25","2019-03-26","2019-03-27","2019-03-28","2019-03-29","2019-03-30","2019-03-31","اجمالي"]
[1,"ابانوب بشاره نصر بشاره",5,null,null,null,null,3]
[2,"ابراهيم احمد محمد عيسي",null,null,null,null,null,1,2]
[3,"ابراهيم عادل ابراهيم جباره",null,1,null,1,1,1,null,null,1,1,1,1,1,null,null,1,1,null,1,1,null,null,1,1,null,null,1,null,null,1]
[4,"ابراهيم عبدالحميد اسماعيل",null,null,null,null,null,null,null,null,1]
[5,"ابراهيم عبدالله محمد علي",null,null,null,null,null,null,null,null,null,null,null,null,null,null,null,null,null,null,null,null,null,2,1,null,null,1,null,null,2]
[6,"ابراهيم عقيلي ابراهيم حماد",null,null,null,null,null,null,null,null,null,null,null,1,1,2,2,null,2,null,2,1,2,2,1]
[7,"ابراهيم كامل علي عويان",1,1,1,1,1,1,1,1,1,1,1,1,null,1,1,null,1,1,1,null,null,1,1,1,1,1,null,1,1,1]
[8,"ابراهيم محمد ابراهيم جاد",null,null,null,null,null,null,null,null,null,null,null,null,null,null,null,1,1,null,null,1,null,null,null,1]
[9,"ابراهيم محمد شعيب علي",null,null,null,null,null,null,null,null,null,null,null,null,null,null,null,null,null,null,null,null,null,null,null,null,null,1,1]
[10,"ابراهيم يوسف درويش ابراهيم",null,null,null,null,null,null,null,null,null,1,2,1,1,2]
[11,"ابوالسعود صابر ابوالسعود",null,null,null,null,null,null,null,null,null,null,null,null,null,null,null,null,null,null,null,null,null,null,null,1]
[12,"ابوالعلا محمد ابوالعلا",null,1,null,1,1,1,1,1,1,2,1,1,2,null,1,1,2,1,null,2,null,null,1,1,1,1,1,null,2,2]
[13,"ابوبكر عبدالعزيز عثمان",1,2,2,2,1,2,2,2,2,2,2,2,1,2,2,1,2,2,2,1,2,2,2,2,2,1,2,1,2,2]
[14,"احمد ابو نبوت احمد",null,null,null,null,null,null,null,null,null,null,null,2,1,1,1,2,1,1,1]
[15,"احمد اشرف محمد حسنين",null,null,null,null,null,null,null,null,null,null,null,null,null,2,2,1,2,1,2,1,1,2,2,1,1,1,2,null,1,2]
[16,"احمد انور محمد الهلوبي",null,1,null,1,null,null,null,null,null,null,null,null,1,null,null,1,1,null,null,null,1,null,1,1]
[17,"احمد ايمن نبوي",null,null,null,null,null,null,null,null,null,null,null,null,null,null,1]
[18,"احمد جلال احمد محارم",1,2,1,2,2,1,1,2,2,1,2,2,1,1,2,2,1,1,2,1,2,2,2,2,2,1,2,1,2,1]
[19,"احمد جمال احمد هلال",null,null,1,null,1,1,1,1,null,1]
[20,"احمد جمال عيسي حمزه",1,1,1,1,1,1,2,2,null,1,1,1,1,null,null,1,null,null,null,null,null,1,null,null,null,null,null,null,1]
[21,"احمد حسن حسن حبيب",null,1,1,1,null,null,null,null,1,1,1,null,null,null,null,null,1,1,null,null,null,null,null,1]
[22,"احمد حسن سعد محمد مبروك",null,null,null,null,1,null,null,null,null,null,null,null,null,null,null,null,null,null,1]
[23,"احمد حسن طه محمد",null,null,null,null,null,null,null,null,null,null,null,null,null,null,null,null,null,null,null,null,null,null,null,null,1,1]
[24,"احمد حسنين ابراهيم",2,2,1,1,2,1,1,2,null,null,null,1,null,null,2,null,1,null,1,1,null,1]
[25,"احمد حسين مبروك حسين",null,1,null,1,1,null,1,null,1,1]
[26,"احمد خليل عثمان البربري",1]
[27,"احمد خميس محمود عبدالنبي",2,2,1,1,2,1,1,2,2,2,1,2,1,2,2,1,2,1,2,1,1,2,1,2,1,1,1,1,1,2]
[28,"احمد رجب مرشدي محمد علي",null,1,1,1,1,null,1,null,null,1,null,null,1,null,1,null,1,1,1,null,1,1,null,null,null,1,1,1,1]
[29,"احمد رشاد عيسي محمد",null,null,null,null,null,null,null,null,null,null,null,null,null,null,null,null,null,null,null,null,null,1,1,null,null,null,1,null,2,1]
[30,"احمد رضا حلمي عبدالوهاب",null,null,null,1,1,1,1,null,null,1,null,null,null,null,null,null,null,null,null,null,null,null,null,null,null,1]
[31,"احمد زغلول احمد القماش",null,null,null,null,null,null,null,null,null,null,null,null,null,null,null,null,null,null,null,null,null,null,null,1,1,1,2,null,1,2]
[32,"احمد سامي السيد احمد",null,null,null,null,null,null,null,null,null,null,null,null,null,null,null,null,null,null,null,null,null,null,1,1,1,1]
[33,"احمد سلامه رمضان",1,null,null,null,null,null,null,null,null,null,null,1,null,2,1,1]
[34,"احمد صلاح محمود علي ",null,1,1,1,1,1,1,1,null,1,null,1,1,1,null,1,null,1,1,1,1,null,1,1,1,1,2]
[35,"احمد عادل فتحي محمد",null,null,null,null,null,null,null,null,null,null,null,null,null,null,null,1]
[36,"احمد عبدالباسط محمد الطباخ",null,null,null,1]
[37,"احمد عبدالتواب احمد سالمان",null,null,null,null,null,null,null,null,null,1,1,null,null,null,null,null,null,null,null,null,null,null,null,null,1,1,1]
[38,"احمد عبدالحميد حسن",null,null,null,1,1,1,null,null,null,null,1,null,1,null,null,null,null,1,null,1,null,null,null,null,null,1,1,null,null,1]
[39,"احمد عبدالحميد عبدالمنصف",null,null,null,null,null,null,null,null,1]
[40,"احمد عبدالرحمن حسن"]
[41,"احمد عبدالعزيز عبدالمقصود",2,2,1,2,2,1,2,2,2,2,1,2,null,null,1,2,2,1,1,1,2,2,2,2,1,2,2,null,2,1]
[42,"احمد عبدالله كامل عبدالعزيز",null,null,null,null,null,null,null,null,null,null,null,null,null,null,null,1]
[43,"احمد عبدالمولي محمد عبدالغفار",null,null,null,null,null,null,null,null,null,null,null,null,null,null,null,null,null,"                                                                                                                                                                                                                                                                                                                                                                                                                                                 ",null,null,null,null,null,null,null,1]
[44,"احمد فتحي ابراهيم سلامه",1,1,1,null,1,null,null,1,1,null,1,1,1,null,null,null,1,1,null,null,null,1,null,1,1,1,null,null,1,1]
[45,"احمد فهمي علاء عبدالسلام",null,null,null,null,null,null,null,null,null,null,null,1]
[46,"احمد فهمي علي سلام",null,null,null,null,null,null,null,null,null,null,null,null,1,1]
[47,"احمد مجدي احمد الشرقاوي",null,null,null,null,null,null,null,null,null,null,null,null,null," ",null,null,null,null,null,null,null,null,null,null,null,1,1]
[48,"احمد محسن سعد محمد مبروك",null,null,1,2,null,1,null,null,null,2,1,2,null,null,null,null,1,1,1,null,1,null,null,null,1,1,null,null,2,1]
[49,"احمد محمد احمد حسن",1,null,null,null,null,null,null,null,null,null,null,1,null,1,1,2,1,1,1,1,2,1,1,2,1,null,null,1,1,2]
[50,"احمد محمد جاد الضي",null,null,null,null,null,null,null,null,null,null,null,null,null,null,null,null,null,null,null,null,null,null,null,null,null,null,1]
[51,"احمد محمد جمعه علي موسي",null,null,null,1,null,null,null,null,null,null,1,null,null,null,null,null,1,null,1,null,null,null,null,1,1,1]
[52,"احمد محمد حمد عبدالسيد",2,null,1,1,1,2,null,2,1,1,1,1,null,null,2,1,1,1,1,null,1,2,1,1,null,null,null,null,2,1]
[53,"احمد محمد عبدالعزيز زنون",null,null,null,null,1,1]
[54,"احمد محمد عبدالفتاح اسماعيل",null,null,null,null,1,null,null,null,null,null,null,1,1,null,null,null,null,null,1,1,1,null,null,null,null,2]
[55,"احمد محمد عبدالله سيد احمد",null,1,1,1,1,1,null,1,null,null,null,1,null,null,null,null,1,1,null,null,1,1,1,1]
[56,"احمد محمد عبدالله محمد",null,null,null,null,null,null,null,null,null,null,null,null,null,null,null,null,null,null,null,null,null,null,null,null,1,null,null,1]
[57,"احمد محمد عبدالمقصود",null,null,null,null,null,null,null,null,null,null,null,null,null,null,null,null,null,null,1,1]
[58,"احمد محمد عبدالمنعم عثمان  الجندي",null,null,null,null,null,null,null,null,null,null,null,null,null,null,null,null,null,null,null,null,null,null,1,1,null,null,null,null,null,1]
[59,"احمد محمد علي محمد علي",null,null,null,null,null,null,1,null,null,null,1,null,null,null,null,null,null,null,null,null,null,null,null,null,null,null,null,null,null,1]
[60,"احمد محمد محمد زيدان",null,null,1,1,1,1,null,null,1,1,null,null,1,null,null,null,1,1]
[61,"احمد محمد محمد عبدالسيد",null,null,null,null,null,null,null,null,null,null,null,null,null,null,null,null,null,null,null,null,null,null,null,null,1,null,1]
[62,"احمد محمود احمد حبيب",null,null,null,null,null,null,null,null,null,null,null,null,null,null,null,null,null,null,1,1,2,1,1]
[63,"احمد محمود عبدالغفار",null,1,1,null,1,1,1,1,1]
[64,"احمد محمود محمد حبيش",null,null,null,null,null,null,null,null,null,null,null,null,null,null,null,null,null,null,1,1]
[65,"احمد محمود محمد حسين",null,1,1,1,1,1,null,null,null,1,1,null,1,null,null,null,1,1,null,null,null,null,1,1,1,1,1,null,null,1]
[66,"احمد محمود مصطفي علي",1,1,null,null,1,1,1,2,null,2,2,2,null,null,null,null,1,null,1,1,1,2,null,null,2,2,2,1,2,1]
[67,"احمد مرزوق عبدالحفيظ امين",null,null,null,null,null,null,null,null,null,null,null,null,null,null,null,1]
[68,"احمد منير محتمد سعد",1,1,1,null,1,null,1,1,1,1,1,null,null,null,null,1,null,1,1,null,1,1,1,null,1,1,null,1,null,1]
[69,"ادم رمضان عوض محمد",2,2,2,2,null,null,1,null,null,null,null,null,1]
[70,"ادهم رمضان عوض محمد",null,null,null,null,null,null,null,2,2,1,2,1,null,2,1,null,1,1,1,null,1,2]
[71,"اسامه جمعه عبدالعظيم",null,null,null,null,null,null,null,null,null,null,null,null,1,null,null,1,null,1,1,null,null,null,null,1]
[72,"اسامه عبدالله محمود عبدالله",null,null,null,null,null,null,null,null,null,null,null,null,null,null,2,1,2,1,1,1,1,2,1,null,1,1,1,1,2,1]
[73,"اسامه محمد عبدالمنعم الغريب"]
[74,"اسلام احمد رجب عيد"]
[75,"اسلام طارق عبدالفتاح",null,null,null,null,null,null,null,null,null,null,null,null,null,null,null,null,null,null,1,1]
[76,"اسلام محمد عبدالرحيم",2,1,2,2,1,1,1,2,2,2,2,1,null,2,2,null,2,1,2,1,2,2,2,1,1,2,1,1,2,1]
[77,"اسلام محمود ابراهيم حسن",2,2,2,1,1,null,null,null,null,null,2,2,null,2,2,1,2,2,1,null,null,null,1,1,2,1,2,1,2,1]
[78,"اسلام مسعد عبدالعزيزسليمان",null,null,null,null,null,null,null,null,null,null,null,null,null,null,null,null,null,null,null,null,null,null,null,1,1,1,1,null,null,1]
[79,"اسلام مصطفي علي ابوالحديد",null,null,null,null,null,null,null,null,null,null,null,1,1,null,null,null,null,null,1,null,null,null,1]
[80,"اسلام مصطفي محمد عبدالعزيز",1,1,2,1,2,1,1,2,1,1,1,1,1,1,1,1,2,1,2,1,1,2,1,1,2,1,1,null,1,1]
[81,"اسماعيل احمد محمود احمد",1,2,2,2,2,null,1,2,2,1,2,1,null,2,1,1,1,1,1,null,1]
[82,"اسماعيل محمد اسماعيل الطنطي",null,1,1,2,2,2,null,null,2,2,2,2,1,null,null,2,2,2,2,1,null,null,null,null,2,2,2,1,2,1]
[83,"اسماعيل مشحوت محمد عيد",null,1,1,1,1,1,1,null,1,1,1,1,2,null,null,1,1,1,1,2,1,null,1,1,1,1,1,null,null,2]
[84,"اشرف صادق عطيه",null,1,1,1]
[85,"اكرامي محمد مجاور حموده",null,2,null,1,1,1,1,null,1,1,1,null,1,1,1,null,1,1,null,null,null,null,1]
[86,"اكرامي محمد محمد موسي",null,null,null,null,1,null,null,1,null,null,1,null,null,null,null,null,1,null,null,1,null,null,1]
[87,"السيد عبدالله عمر مصباح",null,null,null,null,null,null,null,null,null,null,null,null,null,null,null,null,null,null,null,null,null,null,null,null,null,null,1,null,2,2]
[88,"السيد مبارك السيد علي الكسبي",null,null,null,null,null,null,null,null,null,null,null,null,null,null,null,null,null,null,null,null,null,null,null,null,1,1,2,null,1,2]
[89,"السيد محمود احمد عبداللطيف",null,1,1,1,null,null,1,null,null,null,1,1,1,null,null,null,1,1,null,null,null,null,1,1,1,1,null,null,null,1]
[90,"السيد مسعود السيد محمد",null,null,null,null,null,null,null,null,null,null,null,null,null,null,null,null,null,null,null,null,null,null,1,2,1,2,2,null,2,1]
[91,"الشحات حميده مبروك اسماعيل",null,null,1,null,1,1]
[92,"انس سعد مصطفي سلامه",null,null,null,null,null,null,null,null,null,null,null,null,null,1,2,null,1,1,1,null,null,1]
[93,"انور عبدالسلام احمد العجوز",null,1,1,1,1,1,1,1,1,1,1,1,null,1,1,1,1,1,1,1,1,1,1,null,1,1,1,null,1,1]
[94,"ايمن السيد محمد ابوزيد",null,2]
[95,"ايمن جمال السيد السيد مشحوت",1,1,1,1,1,1,null,null,null,1,1,1,1,1,null,1,1,1,1,1,1,1,1,1,1,1,1,null,2,2]
[96,"ايمن عبدالعزيز محمد زايد",null,null,null,null,null,null,null,null,null,null,null,null,null,null,null,null,null,null,null,null,null,1]
[97,"ايمن محمود هاشم محمود",null,null,null,null,null,null,null,null,null,null,null,null,null,null,null,1,null,null,null,null,null,null,null,null,1,1]
[98,"ايهاب حسن عبدالنطلب غنيم",null,null,1,1,1,1,1]
[99,"ايهاب فتحي مصطفي"]
[100,"باسم فاروق محمود همام",null,2,2,2,2,null,1,2,1,1,null,1,null,1,2,1,null,1,1,null,1,2,1,1,null,1,null,null,2,1]
[101,"باسم نصر ابراهيم اسماعيل",null,null,null,null,null,null,null,null,null,null,null,null,null,null,null,1,1,1,1,null,1,1,1,1,1,1,null,1,1,1]
[102,"بدري عبدالله بدري عبدالله",2,1,null,1,null,1,1]
[103,"بلال جمعه عمر امين",1,1,null,null,null,null,null,1,1,null,1,1,null,null,1,2,2,1,1,null,null,1,1,null,null,1,1,null,1,1]
[104,"بلال رزق عبدالعزيز",2,2,2,null,1,null,null,null,null,null,null,null,null,1,2,1,1,1,1,null,1,2,1,1]
[105,"بلال عبدالعزيز احمد",null,null,null,null,null,null,null,null,null,null,null,null,null,null,null,null,null,null,null,1]
[106,"بلال عطيه على احمد",2,2,2,2,null,null,null,2,2,1,2,1,1,2,1,1,2,1,2,null,null,2,null,null,null,null,null,null,2]
[107,"بلال محمد عبدالتواب",null,null,null,null,null,1]
[108,"بلال محمد عبدالعزيز محمد علي",null,null,1,2,2,1,2,2,2,2,1,2,1,1,2,2,2,2,2,2,2,2,2,2,1,2,2,null,2,1]
[109,"بيشوي رضا جرجس سعد",null,null,1,1,1,null,1,null,null,null,1,null,null,null,null,1,null,null,null,null,1,1,1,null,1,1,null,1,1]
[110,"جابر صبري محمود اسماعيل",null,null,null,null,null,null,null,null,null,null,null,null,null,null,null,null,null,null,1]
[111,"جاد رزق عبدالعزيز احمد شعيشع",null,null,null,1]
[112,"جرجس موريس وهيب",1]
[113,"جمعه حمدي زكي محمد",null,null,null,null,null,null,null,null,null,null,1,1,1,null,1,1,1,null,1,1,1,1]
[114,"حازم عبدالجليل احمد",null,null,null,null,null,null,null,null,null,null,null,null,null,null,null,null,null,null,null,null,null,null,null,null,1,null,null,null,1]
[115,"حسام عصام فتحي محمد",null,null,null,1,null,null,null,null,null,null,null,null,null,null,null,null,1,null,null,null,null,null,null,1,1]
[116,"حسام فتحي احمد الشامي",null,null,null,null,null,null,null,null,null,null,1,2,1]
[117,"حسام كريم ابراهيم السيد",1,2]
[118,"حسام محمد محمود يوسف",1,1,1,1]
[119,"حسام نبيل محمود ",2,1]
[120,"حسب النبي سعيد فتحي",null,1,1,1,1,1,1,null,1,1,1,1,null,1,1,1,1,1,1,null,1,null,1,1,1]
[121,"حسن الحسيني مسعد",1,2,1,1,1]
[122,"حسن رمضان السيد سليم",null,null,1]
[123,"حسن سامي سعيد",null,null,null,null,null,null,null,null,null,null,null,null,null,null,null,null,null,1,null,null,1,null,null,null,null,null,1,null,null,1]
[124,"حسن سامي سعيد الكر",null,null,null,null,null,null,null,null,null,null,null,null,null,null,null,null,null,1,1]
[125,"حسن عبدالغفار محمد عبدالعليم",2,1,null,1]
[126,"حسني عزالدين عبدالفضيل",null,1,1,1,1,null,null,null,1,1,1,1,null,null,null,1,1,1,1,1,null,null,1,1,1,1,1,null,null,1]
[127,"حسين عبدالغنى السيد محمد",1,1,1,1,null,1,1,1,1,1,1,1,null,1,1,1,1,1,1,null,1,1,1,1,1,1,null,1,1,1]
[128,"حماده رجب عبدالحفيظ",null,null,null,null,null,null,null,null,null,null,null,null,null,null,null,null,null,null,null,null,null,null,null,null,null,null,null,null,null,1]
[129,"حماده مرعي سعد محمد",null,null,null,null,null,null,null,null,null,null,null,null,null,null,null,null,null,null,null,null,null,null,null,null,null,1]
[130,"خالد عوض السيد عبدالرحمن",null,null,null,null,null,null,null,null,null,null,null,null,null,null,null,1,1,1,1,1,1,1,1,1,null,null,2,null,1,1]
[131,"خالد محمود محمد عبداللطيف",1,2,2,2,null,null,1,1,1,1,null,1,null,null,1,1,null,1,null,null,null,1]
[132,"خيري احمد عبدالغني هنداوي",null,null,null,null,null,null,null,null,null,null,null,null,null,null,null,null,null,null,null,null,null,null,1,1,1,1,1,null,1,1]
[133,"درويش الجوهري ابراهيم البري",null,null,null,null,null,null,null,null,null,null,1,1,1,null,null,null,null,null,null,null,null,null,null,null,1,1]
[134,"درويش رافت درويش",2,2,1,1,1,null,null,null,2,2,2,2,1,2,2,1,2,2,2,1,2,2,2,1,1,2,2,1,2,2]
[135,"راجي محمد الصباحي",null,null,null,null,null,null,null,null,null,null,null,1,1,null,null,null,null,null,null,null,null,null,1,1,1,1,1]
[136,"راعي سيد علي بربر ",2,2,2,2,null,null,null,null,null,null,null,null,null,null,null,null,null,null,null,null,null,null,null,1,2,2,1,1,2,2]
[137,"رافت اشرف رفعت امين",null,null,null,null,null,null,null,null,null,1,1,null,null,1,1,null,1,1,1,null,1,null,1,null,1,1,null,null,1,1]
[138,"رافت كامل عبدالله  عبدالعزيز",null,null,null,null,null,null,null,1]
[139,"رزق علاء رجب نصر عيسي",null,null,null,null,null,1,2]
[140,"رزق محمد رزق اسماعيل",null,null,null,null,null,1]
[141,"رضا غريب صقر محمد",null,null,1]
[142,"رضا معوض عباس",null,null,null,null,null,null,null,null,null,null,null,null,null,null,null,null,null,null,null,null,null,null,null,1,null,1]
[143,"رضوان شحاته احمد",null,null,null,null,null,null,null,null,null,null,null,null,null,null,null,null,null,null,null,null,null,null,null,null,null,1]
[144,"رفعت اشرف رفعت امين",1,null,1,1,1,null,1,1,1,null,1,1,null,null,null,1,null,null,null,null,null,null,null,1,null,1]
[145,"زكريا عبدالفتاح عبدالحميد",null,null,1,1,1,1,1,1,1,1,1,1,1,1,null,1,1,1,1,1,1,1,1,1,1,1,1,null,1,1]
[146,"زياد سالم احمد فراج",null,null,1,1,1,1,null,1,1,1,null,1,null,null,null,null,null,null,1,null,1]
[147,"سامح انور طلبه عطاالله",1,1,1,1,1,null,null,null,null,null,null,null,null,null,null,null,null,1,1,null,1,null,null,null,null,null,null,1]
[148,"سامح عابدين محمد علي",null,null,null,null,null,null,null,null,null,null,null,null,null,null,1,1,1,1,1]
[149,"سامي صبري جبر علي",null,1,1,1,null,1,1,null,1,1,1,1,null,null,1,1,1,1,null,null,null,1,null,1,1]
[150,"سامي عبدالله محمد سيد احمد",null,1,null,1,1,null,null,1,1,null,null,null,null,null,null,1,null,1,1,null,null,1,1,null,null,null,null,null,1]
[151,"سامي محمد عبده السيسي",null,null,null,1,1,null,2,2,1,2,1,2,null,null,1,2,1,2,1,1,1,2,1,2,null,1,1,1,1,1]
[152,"سعد محمد سعد خرش",null,null,null,null,null,null,1]
[153,"سعودي محمد طلبه محمد",null,null,null,null,null,null,null,null,null,null,null,null,null,null,null,null,null,null,null,null,1]
[154,"سعودي محمد عطيه",null,null,1,1,2,1,2,1,2,1,1,1,null,1,2,2,1,2,2,1,null,1,2,null,null,2,1,null,2,1]
[155,"سعيد علي عبدالهادي ",null,null,1,1,1,1,1,null,1,null,1,1,1,null,null,1,1,1,1,1,1,null,1,1,null,null,1]
[156,"سليم اسماعيل بيومي سليم ",null,null,1,null,null,1,1,null,null,null,null,null,null,null,null,null,null,null,null,1,null,null,1,null,null,null,null,null,1,1]
[157,"سليم عمار رحصان عيد"]
[158,"سيد فاروق فؤاد سعد",null,null,null,null,null,null,null,null,null,null,null,null,null,null,null,null,null,null,null,null,null,null,null,null,null,null,null,null,1,2]
[159,"شامل مبروك حسن محمد",null,null,null,null,1]
[160,"شريف احمد محمد عبدالله",1,1,null,1,1,1,1,1,2,null,1,1,null,null,1,1,null,null,null,null,1,null,2,null,1,null,1,1]
[161,"شريف عبدالعزيز علي هندي",null,null,null,null,null,null,null,null,null,null,null,null,null,null,null,1,null,1,null,1,null,null,1,1,1,1]
[162,"شريف عمر امين محمد",null,1,1,1,1,1,null,1,1,1,1,1,1,null,1,1,1,1,null,1,null,1,1,1,1,1]
[163,"شعبان الشحات المتولي الشوكي",null,null,null,null,null,null,null,null,null,null,null,null,null,null,null,null,null,null,null,null,null,null,1]
[164,"شعبان بلبل الشحات المتولي",null,null,1,2,2,2,2,2,2,2,1,2,2,1,2,1,1,2,1,1,2,2,1,1,1,1,2,1,2,1]
[165,"شعبان حمدي شعبان الهليس",null,null,null,null,null,null,null,null,null,null,null,null,null,null,null,null,null,null,null,null,null,null,null,null,null,null,1]
[166,"شعبان عبدالكريم علواني عبدالكريم",null,null,null,null,null,null,null,null,null,null,null,null,null,null,null,null,null,null,null,null,null,null,null,null,null,null,1,1,2,2]
[167,"شكر صابر ابراهيم رضوان",1,1,1,1,null,1,null,1,1,1,1,1,1,null,1,1,1,null,1,1,null,1,1,1,1,null,1]
[168,"شهاب ابراهيم فرج عبدالعزيز",null,null,null,null,null,null,null,null,null,null,null,null,null,null,null,1]
[169,"صابر صبري محمود اسماعيل",null,null,null,null,null,null,null,null,null,null,null,null,null,null,null,null,null,1,null,1,1,1,1,1,1,1,1,null,1,1]
[170,"صادق عيد السيد عبدالرحمن",null,null,null,null,null,null,null,null,null,null,null,null,null,null,null,null,null,null,null,null,null,null,1,1]
[171,"صبحي توفيق السيد",1,1,1,1,1,1,2,1,1,1,1,1,null,null,1,null,1,null,null,null,1,1,1]
[172,"ضياء محمد محمد شحاته بحيري",null,null,null,null,null,null,null,null,null,null,null,null,null,null,null,1]
[173,"طارق عبدالفتاح السعيد عبدالباقي",null,1,null,null,1,1,null,1,null,1,1,null,null,null,null,null,null,1,null,null,1,1,1,1,1,1,1,1,null,1]
[174,"طارق عرفه عنتر زراع",null,null,null,null,null,null,null,null,null,null,null,1,null,1,1,2,1,1,1,1,2,1,1,2,1,null,null,1,null,2]
[175,"طارق محمود محمود عبدالمعطي",2,1,1,1,1,null,null,1,null,1,2,1,1,null,2,1,1,2,2,null,2,2,null,1,1,null,1,null,null,1]
[176,"طه حسن حسن الهندي",2,2,1,1,1,1,1,2,1,1,1,1,1,1,1,1,2,1,2,1,1,2,1,2,1,1,1,1,1,2]
[177,"طه عيد عبدالله شحاته",null,null,null,null,null,null,null,null,null,null,null,null,null,null,null,null,null,1,2,1,1,1,1,1,1,null,1,null,1,1]
[178,"عاصم السيد عبدالرحمن الدسوقي",null,null,null,null,null,null,null,null,null,null,null,null,null,null,null,null,null,null,null,null,null,null,1,1]
[179,"عاطف ابراهيم حليم مشحوت",null,null,null,1,null,1,null,null,null,null,null,null,null,null,null,null,1,1,1,null,null,1]
[180,"عاطف محمد محمد دراز",null,1,1,1,1,1,1,null,1,null,1,1,1,null,null,null,null,1,1,1,1,null,1,1,1,1,1,null,null,1]
[181,"عامر ابراهيم عامر بدوي",null,1,1,null,1,1,null,null,null,null,1,null,null,null,null,1,null,1]
[182,"عامر حبشي محمد حبشي",null,null,1,2,2,2,2,2,2,2,1,2,2,null,2,1,1,2,1,1,2,2,2,null,1,1,2,null,1,1]
[183,"عبدالحميد غريب عبدالحميد",null,1,1,1,1,1,1,null,1,1,1,1,null,1,1,1,1,1,1,null,1,1,1,1,1,1,1,1]
[184,"عبدالرحمن ابراهيم عبدالغني الطوخي",null,null,null,null,null,null,null,null,null,1,null,null,1,null,1]
[185,"عبدالرحمن ابراهيم عيد الفقي",null,null,1,1,null,null,1]
[186,"عبدالرحمن سالم عبدالرحمن",1,null,1,1,null,null,null,null,null,null,1,null,1,1,null,null,1,1,1,null,1,1,1,1]
[187,"عبدالرحمن عبداللاه عبدالعزيز طه",null,null,null,null,null,null,null,null,null,null,null,1,null,1,1,1,null,1,null,null,1,null,null,1,null,null,1,1]
[188,"عبدالرحمن محمد زياد محمد ",1,1]
[189,"عبدالستارعيدعبدالستارعيسي ",null,null,null,null,null,null,null,null,null,null,1,1,1,null,1,null,1,1,null,1,1,null,1,1,1]
[190,"عبدالسلام فتحي شلبي",null,null,null,null,null,null,2,2,2,2]
[191,"عبدالسلام فتحي محمد",null,null,null,null,null,null,null,null,null,null,null,1,null,null,null,null,null,1]
[192,"عبدالسلام مصطفي علي",null,null,null,null,null,null,null,null,null,null,null,null,null,null,null,null,null,null,null,1]
[193,"عبدالعزيز حمدي عبدالعزيز محمد",null,null,null,null,null,null,null,null,null,null,null,null,null,null,null,null,null,null,null,null,null,null,null,null,null,null,1]
[194,"عبدالغفار محمد منير",1,1,1,1,null,1,null,1,null,1,null,1,null,null,1,null,null,null,null,null,null,1]
[195,"عبدالغفور محمد عبالغفور دره",1,1,1,null,null,1,null,null,null,null,null,null,null,null,null,null,null,null,null,null,null,null,null,1]
[196,"عبدالغني جمال عاشور محمد",null,null,null,null,null,null,null,null,null,null,null,null,null,null,null,null,null,null,1,1,1,null,1,1,1,1,1]
[197,"عبدالفتاح جمعه عبدالحكيم جمعه",null,null,null,null,1,1,null,null,1]
[198,"عبدالفتاح عبدالقوي عبدالفتاح",null,1,1,1,1,1,null,null,1,null,null,1,null,1,null,2,null,1,2,null,null,2,null,1,2,1,2,null,1]
[199,"عبدالكريم محمد محمود",null,null,null,null,null,null,null,null,null,null,null,null,null,null,null,null,null,null,null,null,null,null,null,null,null,1]
[200,"عبدالله ابوالسعود عبدالمجيد",null,null,2,2,2,2,2,1,1,2,2,2,1,2,null,1,2,1]
[201,"عبدالله ابوبكر سلامه",null,null,null,null,null,null,null,1]
[202,"عبدالله احمد كامل علي عويان",null,1,1,1,null,1,1,null,1,1,null,1,null,1,1,1,1,1,1,null,1,1,1,null,1,1,null,1,1,1]
[203,"عبدالله حسين احمد جاد الرب",1,null,1,1,null,1,null,2,null,null,1]
[204,"عبدالله سالم عبدالرحمن",null,null,null,null,null,null,null,null,null,null,null,1]
[205,"عبدالله سامي مصطفي الجمال",1,null,1,null,null,null,1,null,null,null,null,null,null,1,null,null,null,null,null,null,null,null,null,null,null,null,1]
[206,"عبدالله سامي مصطفي كامل القط",null,1,null,null,null,null,1,null,null,null,1,null,1,null,null,1,null,null,null,null,null,null,null,1]
[207,"عبدالله شعبان عبدالله",null,null,null,null,null,null,null,1,1,1,1,1,null,null,1,1,1,1,1,null,null,1,1,1,1,1,1,null,1]
[208,"عبدالله عبدالحميد عبدالله",null,null,null,null,null,null,null,null,null,null,null,null,null,null,null,null,null,null,null,null,null,null,null,null,null,null,null,null,null,1]
[209,"عبدالله عبدالصادق محمد ",null,null,null,null,null,null,null,1,1]
[210,"عبدالله علي عبدالله علي",null,1,1,1,1,1,1]
[211,"عبدالله فوزي عبدالله مرجان",null,null,1,1,1,1,2,2,null,2,2,1,1]
[212,"عبدالله محمد الصافي عبدالفتاح",null,null,1]
[213,"عبدالله محمد صبحي متولي",null,null,null,null,null,null,null,null,null,null,1]
[214,"عبدالله محمد عبدالله خليفه محمد",null,null,null,null,null,null,null,null,null,null,null,null,null,null,null,null,null,null,null,null,1,1,1,null,1,1]
[215,"عبدالناصر احمد عبدالوهاب",1,1,1,null,null,null,null,null,1,1,1,1,1,null,null,1,1,1,null,null,null,1,1,1,1,1,1]
[216,"عبدالنبي حسين عبداللطيف",null,null,null,null,null,null,null,2,1,null,null,1,1,null,2,null,1,null,1,1,null,1]
[217,"عبدالواحد كمال عبدالواحد",null,null,null,null,null,null,null,null,null,null,null,null,null,null,1,1]
[218,"عز الدين فتحي قرني بكر",1,1,1,1,1]
[219,"عزت محمد ابوالعز",1,2,null,null,null,null,null,null,null,null,null,null,null,null,null,null,null,null,null,null,null,null,null,null,null,null,null,null,1]
[220,"عطيه مصطفي السيد الجنزوري",null,null,null,null,null,null,null,null,null,null,null,null,null,null,null,null,null,null,null,null,null,null,1]
[221,"علاء جمعه التايب جمعه",null,null,null,null,null,null,null,null,null,1,1,1,1,null,null,1,1,1,1,1,1,1,1,1,1,1,1,null,1,1]
[222,"علي احمد علي قنديل",2,2,1,2,1,2,2,null,2,2,1,null,1,2,2,1,2,2,2,1,1,2,1,2,2,2,2,1,2,2]
[223,"علي احمدعلي عوض العزب",null,null,1,null,null,null,null,1,1,null,2,2,2,null,null,null,null,null,2,1,2,1,1,1,1,1,1,1,1,1]
[224,"علي السيد رياض ",null,null,null,1,2,null,2]
[225,"علي صلاح علي سليمان",null,2,1,1,1,null,null,null,1,null,null,null,null,null,null,1,1,1,1,2,2,null,null,null,null,null,1,null,null,1]
[226,"علي عبدالباسط علي الجندي",null,null,null,null,null,null,null,null,null,null,null,1,1,null,null,null,null,null,null,null,null,1,1]
[227,"علي عبدالهادي علي",null,1,null,null,null,null,2,null,null,null,null,null,1,2]
[228,"علي عيسي امين عيسي",1,2,1,1]
[229,"علي غزالي ابراهيم",null,null,null,null,null,null,null,null,null,null,null,null,null,null,null,null,null,null,null,null,null,null,1]
[230,"علي محمد علي توفيق",1,1,null,1,null,1,1,null,null,null,1,1]
[231,"علي محمود محمد محمود الدجاج",2,2,1,1,1,1,1,2,1,null,null,1,null,null,2,null,1,null,1,1,1,2,null,null,1,1,2,1,1,2]
[232,"عماد عبدالله مصطفي عبدالله",null,1,1,1,null,1,null,null,null,1,2,null,null,null,null,null,1,2,null,null,null,1,2,null,1]
[233,"عماد محمد عبداللاه معوض",null,2,2,null,2,null,null,null,1,2,2,2,null,null,null,1]
[234,"عمارمحمد مصطفي شحاته",null,null,null,null,null,null,null,1]
[235,"عمر عبدالعال سليمان عثمان"]
[236,"عمر فتحي عبدالفتاح احمد",1]
[237,"عمر ممدوح ابراهيم جويده",null,null,null,null,null,null,null,null,null,1]
[238,"عمرو ثابت عبدالفتاح علي",null,1,1,1,1,1,null,null,1,1,1,1,1,null,null,1,1,1,1,1,1,null,1,1,1,1,1,null,null,1]
[239,"عمرو حامد عبدالله قناوي",null,null,null,null,null,null,null,null,null,null,null,null,null,null,null,null,null,1,null,null,1,null,null,null,1,null,null,null,null,1]
[240,"عمرو حامد عطا الله قناوي",null,null,null,null,null,null,null,null,null,null,null,2,1,1,1,2,1,null,1,1,1,1,1,2,null,null,1,1,2,1]
[241,"عمرو عبدالصمد محمد",null,null,null,null,null,null,null,null,null,null,null,null,null,null,null,null,null,null,null,null,null,null,1,null,null,null,1]
[242,"عمرو محمد حسن عبدالغني",2,1,2,1,1,1,null,2,1]
[243,"عمرو محمد عبدالصمد",2,1,2,1,2,1,1,1,2,1,2,1,1,1,2,2,1,1,2,1,2,1,1,1,1,1,1,1,1,2]
[244,"عمرو محمد عبدالفتاح",null,null,null,null,null,null,2,null,null,null,null,null,null,null,null,null,null,null,null,null,1]
[245,"عمرو محمد فهمي خليفه",null,null,null,null,null,null,null,null,null,null,null,null,null,null,null,null,null,null,null,null,null,null,null,null,null,null,null,null,1,1]
[246,"عيد عبدالمنعم عيد عجيبه",null,null,null,null,null,null,null,null,1,1,1,null,null,null,null,1,2,1,null,null,null,null,2,1,1,null,null,null,null,1]
[247,"فارس رشاد حماد عبدالهادي",null,null,1,null,null,1,null,null,null,null,null,null,null,null,null,1,1,1,1,1,1,null,1,1,null,1,1,1,1,1]
[248,"فارس صبري رزق",null,null,null,null,null,null,null,null,null,null,null,null,null,null,null,null,null,null,null,null,null,null,null,null,null,null,null,null,null,1]
[249,"فارس ياسر احمد عبدالعليم علي",1]
[250,"فايز عبدالله احمد ابراهيم",null,null,null,null,null,null,null,null,null,null,null,null,null,null,null,null,null,null,null,1,1,2,2,2,1,2,2,1,2,2]
[251,"فتحي احمد محمد عبده الحريري",null,null,1,null,null,null,null,null,1]
[252,"فهمي عباس عبدالدايم حلفايه",null,null,null,null,null,null,null,null,null,null,null,1,1,1,null,null,1]
[253,"فوقي جلال عبده النحري",null,null,1]
[254,"كامل عبدالله كامل الشيخ",null,null,null,null,null,null,null,1,1,1]
[255,"كريم سليمان عيد عبدالمحسن",2,1]
[256,"كريم عبدالحارس عبدالراضي",null,null,null,null,null,null,null,null,null,null,null,null,null,null,null,null,null,null,1,1,1,null,null,1,1]
[257,"كريم عبدالقوي عبدالفتاح",null,1,1,1,1,1,1,null,1,1,1,null,1,null,null,1,1,1,1,1,1,null,1,1,1,1,1,null,null,1]
[258,"كمال شريف عبدالمجيد بشر",null,null,null,null,null,null,null,null,null,null,null,null,null,null,2,1,1,1,1]
[259,"كيرلس صلاح رزق الله",null,null,null,null,null,null,null,null,null,null,null,null,null,null,null,null,null,null,null,null,null,null,null,null,null,null,null,null,1,2]
[260,"كيرلس غندي رزق مللك",1]
[261,"كيرلس فادي ناجي",null,null,null,null,null,null,null,null,null,1,1,1,null,null,null,1,1,1,null,null,null,null,null,null,1,1,1,null,null,1]
[262,"ماهر احمد علي حماد",1,1,1,1,1,1,1,null,null,1,1,1,1,1,1,1,null,1,1,1,1,1,1,null,1,1,1,null,1,1]
[263,"مبروك عبدالسلام عمار ابراهيم",1,2,2,1,2,1,2,2,2,2,null,null,null,null,null,null,1,1,2,2,2,1,2,2,2,1,2,1,1,2]
[264,"مبروك محمود مبروك مطر",null,1,1,1,1,1,1,1,1,1,1,1,1,1,1,1,1,1,1,1,1,1,1,1,1,1,1,null,1,1]
[265,"مجدي زكريا عباس",null,null,null,null,null,null,null,null,null,null,1,1,1,1,1,1,1,null,null,null,null,1,1,1,1,1,null,null,1,1]
[266,"محمد ابراهيم السيد ابراهيم",null,null,null,null,null,null,null,null,null,null,1,1,1,null,null,1,1,1,1,1,1,null,1,1,1,1,1,null,null,1]
[267,"محمد ابراهيم عاشور عبدالوهاب",null,null,null,null,null,null,null,1,1,null,null,null,null,null,null,null,null,null,null,null,1,1,1,null,null,null,null,null,1]
[268,"محمد ابراهيم عبدالمنعم مغربي"]
[269,"محمد ابراهيم محمود سليمان",null,1,1,1,1,1,1,null,1,1,1,1,1,null,null,1,1,null,1,1,1,null,1,1,1,1,1,null,null,1]
[270,"محمد احمد رفاعي محمد البياع",null,null,null,null,null,null,null,null,null,null,null,null,null,null,null,null,null,null,null,null,null,null,null,null,null,null,null,null,1,2]
[271,"محمد احمد زكريا شهبو",null,null,1,1,1,1,2,2,null,null,2,1,null,2,2,1,1,1,2,null,2,1,2,1,1,1,1,1,2,2]
[272,"محمد احمد سيد احمد محفوظ",null,null,1,null,null,null,null,null,1]
[273,"محمد احمد عبدالحكم عبدالمطلب",null,null,null,null,null,null,null,null,null,null,null,null,null,null,1,1]
[274,"محمد احمد عبدالرحيم",null,null,null,null,null,null,null,null,null,null,null,null,null,null,null,null,null,null,null,null,null,null,null,null,null,1]
[275,"محمد احمد عبدالمجيد عسل",null,1,1,null,1,1,2,null,1,1,null,1,1,1,null,1,1,1,null,1,1,null,1,1,null,null,1,null,1,1]
[276,"محمد احمد عبدالمقصود شتله ",1,1,1,1,1,1,null,null,2,null,1,null,1,null,1,1,2,null,null,1,null,null,2,null,1,null,null,null,null,1]
[277,"محمد احمد علي قنديل"]
[278,"محمد احمد عيداحمد",null,null,null,null,null,null,null,null,null,null,null,null,1,null,1]
[279,"محمد احمد محمد عبدالله",null,null,null,null,null,null,null,null,null,null,null,null,null,null,null,null,null,null,null,null,null,null,1]
[280,"محمد احمد مرضي",null,null,null,null,null,null,null,null,null,null,null,null,null,null,1,2,null,1,1,null,1]
[281,"محمد اسماعيل محمد احمد الديب",null,null,null,null,null,1,2]
[282,"محمد اشرف محمد محمود",1,null,null,null,null,null,null,null,null,null,1]
[283,"محمد السطوحي محمد عبدالعال",null,null,null,null,null,null,null,null,null,null,null,null,null,null,null,null,null,null,null,null,null,null,null,null,null,1,1,1,1]
[284,"محمد السعيد عبدالجواد",null,null,null,1,1,1]
[285,"محمد الشحات عبدالحميد",null,null,null,null,null,null,null,null,null,null,null,null,null,null,null,null,null,null,1,1,null,null,null,null,null,1,1,1]
[286,"محمد امين عبدالحميد شلبي",null,null,null,null,1,1,1,null,2,2,2,null,1,null,null,null,1,1,1,null,1,null,1,null,1,null,1,null,null,1]
[287,"محمد انور خميس السيد",null,null,null,null,1,null,null,null,null,null,null,null,null,null,null,null,null,null,1]
[288,"محمد جمال عبدالفضيل ابراهيم ",1]
[289,"محمد جمعه عبدالحكيم",null,null,null,null,null,null,null,null,null,1,null,null,null,null,null,null,null,1]
[290,"محمد جمعه عبدالعظيم محمد",null,1,1,1,null,1,null,null,1,null,1,null,1,null,null,1,1,null,1,1,null,null,null,1,1]
[291,"محمد حسام الدين محمد عباس",null,null,null,null,null,null,null,1]
[292,"محمد حسن صابر احمد",null,null,null,null,null,2,2,1]
[293,"محمد حسني خيرت عبدالعزيز",null,null,null,null,null,null,null,null,null,null,null,null,null,null,null,1]
[294,"محمد حمدي محمد علي ",null,null,null,null,null,1]
[295,"محمد خالد حلمي الشمالي",null,null,null,1,null,null,null,null,null,null,null,null,null,null,null,null,null,null,null,null,null,null,null,null,1,1,1]
[296,"محمد رجب عبدالظاهر عيد",null,null,null,null,null,null,null,null,null,null,1]
[297,"محمد رضا ابراهيم مبروك",null,null,null,null,null,null,null,null,null,null,null,null,null,null,null,null,null,null,null,null,null,null,1,1,null,1,null,null,null,1]
[298,"محمد رضا محمد علي اسماعيل",1,1,1,1,1,1,null,1,1,1,1,1,null,null,null,1,null,1,1,null,1,1,1,1,1,1]
[299,"محمد زكريا عبده البربري",1,2,1,2,1,1,2,null,null,null,1,1,1]
[300,"محمد سامي عبدالعزيز محمد",null,null,null,null,null,null,null,null,null,1]
[301,"محمد سعيد قطب محمود",null,null,null,null,null,null,null,null,null,null,null,null,null,null,null,null,null,null,null,null,null,null,null,null,null,null,null,null,1,1]
[302,"محمد سمير حسن عامر",1,null,1,1,null,1,null,null,null,1,1,1,null,1,1,1,1,1,1,2,1,1,1,1,1,null,2,null,1,2]
[303,"محمد شديد حسن  مراجعه علي الاسم",null,null,null,null,null,null,null,null,null,null,null,null,null,null,null,null,null,null,null,null,null,null,null,null,null,1]
[304,"محمد صبحي محمد الوكيل"]
[305,"محمد صبري محمد حميده",null,1,null,null,null,1,1,null,1,1,1,1,1,1,2,null,1,null,1,1,null,null,1,1,1,1,1]
[306,"محمد صبري محمود الشرقاوي",null,null,null,null,null,1]
[307,"محمد طارق سعيد محمد",1,1,1,null,null,1,2,null,null,null,1,null,1,1,null,1,null,null,null,null,null,null,null,1,null,null,1]
[308,"محمد طلعت سيد عبدالرحيم",null,null,null,null,null,null,null,null,null,null,null,null,null,null,1]
[309,"محمد عبدالباسط محمد الطباخ",null,null,1,null,null,1,1,null,null,1,1,null,1,null,null,1,1,1,null,null,null,null,null,1,null,null,1,null,null,1]
[310,"محمد عبدالجليل حلاجي عبدالجليل",1]
[311,"محمد عبدالحميد امين هندي",null,null,null,null,null,null,null,null,null,null,null,null,null,null,null,1,null,null,null,null,null,null,null,null,1,1]
[312,"محمد عبدالرحيم عبدالمنعم",1,1,1,2,2,null,1,2,2,2,2,1,null,2,1,2,1,2,2,1,1,2,2,1,1,2,1,1,2]
[313,"محمد عبدالعزيز محمد زايد",1,null,null,null,1,1,null,null,1,null,1,1,null,null,null,1,null,1,1,1,null,null,null,null,null,null,1,null,1,1]
[314,"محمد عبدالغني جبر غنيم",null,1,1,1,null,null,1,1]
[315,"محمد عبداللطيف احمد البسيوني",null,null,null,2,2,2,2,2,2,2,1,2,2,1,2,1,1,2,1,1,2,2,2,1,1,1,2,1,2,1]
[316,"محمد عبداللطيف محمد عثمان",null,null,1]
[317,"محمد عبده الهولي علي",null,null,null,null,null,null,1,2,2,1,2,1,1,2,1,1,1,1,1,1,1,2]
[318,"محمد علي احمد علي مقبول",null,null,null,null,null,null,null,null,null,1,2,1,1,2]
[319,"محمد علي محمود علي نبيده علي",null,null,null,null,null,null,null,1,1,1]
[320,"محمد عمران حسن محمد",null,null,null,null,null,null,null,null,null,null,null,null,null,null,null,null,null,null,null,null,null,null,1,null,1,1,1,1,null,1]
[321,"محمد غريب رفاعي البياع",null,null,null,null,null,null,null,null,null,null,null,null,null,null,null,null,null,null,null,null,null,null,null,null,null,null,null,null,1,2]
[322,"محمد فتحي عبدالجليل",null,null,1,1]
[323,"محمد فتحي عبدالمجيد النجار",2,1,null,1,1,1,1,1,null,null,null,null,null,null,2,1,1,2,1,1,1,2,2]
[324,"محمد فتحي عطية عبدالجليل ",null,1,null,null,1,1,1,null,2,1,2,1,1,2,null,1,1,1,1,1,1,null,1,1,1,1,1,1,1]
[325,"محمد فتحي فكري احمد",null,null,null,null,null,null,null,null,null,null,null,null,null,null,2,1]
[326,"محمد فتحي فوزي خالد",null,null,null,null,null,null,null,null,1]
[327,"محمد فرج عبدالعزيز عبدالسلام",null,null,null,null,null,null,null,1]
[328,"محمد فوزي صديق موسي",null,null,null,null,null,null,null,null,null,1]
[329,"محمد كمال احمد محمد",null,null,null,null,null,null,null,null,1,1,1,1,null,null,1]
[330,"محمد لطفي عطا",1,null,null,null,null,null,null,null,null,null,null,null,null,null,null,1]
[331,"محمد محروس علي عبدالعزيز",null,null,null,null,null,null,null,null,null,null,1]
[332,"محمد محمود ابراهيم الخولي",null,null,null,null,null,null,null,null,null,null,null,null,null,null,null,null,null,null,null,null,null,null,null,null,null,1]
[333,"محمد محمود حماده اسماعيل",null,null,null,null,null,null,null,null,1,1,1,1,null,2,1]
[334,"محمد محمود عبدالغفار عبدالهادي",1]
[335,"محمد محمود علي محمود",null,1,1,1,1,null,null,null,1,1,1,null,null,null,null,1,1,null,1,null,null,null,null,null,1,1,1,null,null,1]
[336,"محمد محمود محمد احمد",null,null,null,null,null,null,null,1,null,null,null,null,null,null,1]
[337,"محمد محمود محمد السقا",1,1,null,1,1,null,1,1,null,1,1,null,null,null,null,1,1,null,1,1,null,null,null,null,1,null,null,null,1]
[338,"محمد مخلص محمد محمد عوض",null,null,null,null,null,null,null,null,null,null,null,null,null,null,null,null,null,null,null,null,null,null,null,null,null,1]
[339,"محمد ممدوح محمد عبدالجواد",null,null,null,null,null,2,2,1,null,null,null,null,null,null,null,null,null,null,null,null,null,null,1,1,1,2,2,null,2]
[340,"محمد منصور عبدالمجيد",null,1,1,null,1,1,1,null,1,1,1,1,null,null,null,null,null,1,1,null,1,1,1,1,1,1,1,1,null,1]
[341,"محمد مهدي سالم",2,null,null,1,2,1,null,null,null,null,null,null,null,null,null,null,null,null,null,null,null,2,null,null,null,null,null,null,2]
[342,"محمد ناصر محمد سليم",null,null,null,null,null,null,null,null,null,null,null,null,null,null,null,null,null,null,null,null,1,null,null,null,null,null,null,null,1,1]
[343,"محمد ناصرعبداللطيف محمود حسب النبي",null,null,null,null,null,null,null,null,null,null,null,null,null,null,null,1]
[344,"محمد نور خميس السيد",null,null,null,null,null,null,null,null,1,null,null,null,null,null,null,null,null,null,null,null,1]
[345,"محمد وليد محمود الشحات",null,null,null,null,null,null,null,null,null,null,null,null,null,null,1,null,null,null,null,null,1]
[346,"محمد ياسر محمدعبدالحميد",null,null,null,null,null,null,null,null,null,null,null,null,null,null,null,null,null,null,null,null,null,null,1,2,1,null,2,null,2,1]
[347,"محمد يحيي محمد مبروك",2,null,2]
[348,"محمد يسري محمد رجب",null,null,null,null,null,null,null,null,null,null,null,null,null,null,null,null,null,null,null,null,null,null,null,1,1,1,null,null,null,1]
[349,"محمود ابراهيم عاشور عبدالوهاب",null,null,null,null,null,null,null,null,null,null,null,null,null,null,null,null,null,null,null,null,null,1,null,null,null,null,null,null,1]
[350,"محمود احمد عبدالمقصود عبدالعاطي",null,null,null,null,null,null,null,null,null,null,null,null,null,null,null,null,null,null,null,null,1]
[351,"محمود احمد محمد حمزة",null,null,null,null,null,null,null,null,1]
[352,"محمود اشرف محمد محمود",null,1,1,1,1,1,1,null,2,1,1,1,1,2,null,1,1,1,1,1,1,null,1,1,1,1,1,1,1]
[353,"محمود بغدادي توفيق",1,null,1,1,1,null,null,null,null,null,1,1,1,null,1,1,1,1,1,1,null,1,1,1,1,1,1,null,1]
[354,"محمود تحسين جاد الرب",null,null,null,null,null,1,2,2,null,null,2,1,null,2,2,1,1,1,1,null,2,1,2,1,1,1,1,1,1,2]
[355,"محمود جلال عثمان",null,null,null,null,null,null,null,1]
[356,"محمود جوده احمد علي"]
[357,"محمود حسن السيد احمد",null,null,null,null,null,null,null,null,null,null,null,null,null,null,null,null,null,null,null,null,null,null,null,1,1,1,2,null,1,1]
[358,"محمود خليل عثمان البربري",1,1,1,2,2,null,1,1,2,1,2,1,1,null,1,1]
[359,"محمود رجب عبدالظاهر ",null,null,1,2,2,2,2,2,2,2,null,2,2,1,2,1,2,1,1]
[360,"محمود رفعت محمدالجزار",null,null,null,null,null,null,null,null,null,null,null,null,null,null,null,null,null,null,null,null,null,null,null,null,null,1,1,null,1,1]
[361,"محمود سامي عبدالعزيز",2,1,1,1,2,1,2,2,1,1,1,1,null,1,2,1,2]
[362,"محمود سعيد نجم ",null,null,1,1,1,null,null,null,1,1]
[363,"محمود صبري محمود الشرقاوي",null,null,1]
[364,"محمود عامر محمد متولي",null,null,null,null,null,null,null,null,null,null,null,null,null,null,null,null,null,null,null,null,null,null,null,null,null,1,2]
[365,"محمود عبدالسميع السعيد عبدالجواد",1,2,1,1,1,2,2,2,2,2,1,1,1,1,2,1,2,2,2,2,1,2,1,2,1,1,2,null,2,1]
[366,"محمود عيد محمد عبدالغني",null,null,null,null,null,null,null,null,null,null,null,null,null,null,null,null,null,null,null,null,null,null,null,null,null,null,null,null,null,1]
[367,"محمود فتحي فوزي خالد",null,null,null,null,null,null,2,1,1,2,null,2,1]
[368,"محمود فوزي صديق",null,null,null,null,null,null,null,null,1,null,1,1,1,1,1,1,1,null,1,1,1,1,1,1,null,1,1,null,1,1]
[369,"محمود محمد احمدعبدالمقصود",2,2,1,2,2,1,2,2,2,null,null,null,null,null,2,null,1,2,1,1,1,2,1,1,null,1,1,null,1,1]
[370,"محمود محمد محمد الشرباصي",null,null,null,null,null,null,null,null,null,null,null,null,null,null,null,null,null,null,null,null,null,null,null,1,1,2,1,null,1]
[371,"محمود نمر وهيب ادم",1,null,null,null,1,null,2,1,2,2,1,2,2,2,1,2,null,1,1,null,1,2,1,null,null,1,1,1,1]
[372,"محمود يوسف جامع احمد",null,null,null,null,null,null,null,null,null,null,null,null,null,null,null,null,null,null,1,1,1,null,null,1,1]
[373,"محمود يوسف محمود مهدي",null,null,null,null,null,null,null,null,null,1,1,null,null,null,1,null,1]
[374,"مختار علي محمد عبدالخالق",null,null,null,null,null,null,1,1,1,1]
[375,"مختار محمد محمود محمد حسن",null,null,null,null,null,null,null,null,null,null,null,null,null,null,null,null,null,1,1,null,null,2,1]
[376,"مصطفي احمد عبدالحميد عبدالمنصف",null,1,1,1,null,null,null,1,null,1,null,null,null,null,null,1,1,1,1,null,null,1,null,null,1,1,1,null,1,1]
[377,"مصطفي احمد عيد عبدالحميد",null,null,null,null,1,1,null,null,null,null,1,1,1]
[378,"مصطفي اسماعيل اسماعيل  ",null,null,null,1,1,1,null,null,1,1,1,1,1,null,null,null,1,1,1,1,null,null,1,1,1,1,1,null,null,1]
[379,"مصطفي ايهاب محمد عبدالعليم",null,null,null,null,null,null,null,null,null,null,null,1]
[380,"مصطفي سمير ابراهيم رزق",null,null,null,null,null,null,null,null,null,null,null,null,null,null,null,null,null,null,null,null,1]
[381,"مصطفي صلاح عباس",null,null,null,null,null,null,null,null,null,null,null,null,null,null,null,null,null,null,null,null,null,null,null,1,1,1,1,null,null,1]
[382,"مصطفي عبدالحميد عبدالمنصف",null,null,null,null,null,null,null,null,null,null,null,null,null,null,null,null,null,null,null,null,null,null,null,1]
[383,"مصطفي عبدالقادر مبروك",null,null,null,null,1,1,1]
[384,"مصطفي محمد محمد دراز",null,null,null,null,null,null,null,null,null,1]
[385,"مصطفي محمود حافظ عاشور",null,null,null,null,null,null,null,null,null,null,null,null,null,null,null,null,null,null,null,null,null,null,null,null,1]
[386,"مصطفي ناصر ثابت علي",null,null,null,null,null,null,null,null,null,null,null,null,null,null,1,1,1,1,1,1,1,2]
[387,"معاز ممدوح ابراهيم جويده",null,null,null,null,null,null,null,null,null,1,null,null,null,null,null,1,1,null,null,null,null,null,null,null,null,null,null,null,null,1]
[388,"معتز سمير عبدربه محمد",1,1,1,null,1,null,null,1,1,null,1,1,null,null,null,1,1,1,null,null,1,null,null,1,1,1,null,1,1]
[389,"مؤمن نور فتحي بدر",1]
[390,"مينا ميلاد بباوي جبرايل",1]
[391,"نادر الشحات بدير الشحات",null,null,1,null,null,null,null,null,1]
[392,"نورالدين سيد معروف علي",null,null,null,null,null,null,null,null,null,null,null,null,null,null,null,1]
[393,"هاني سعد ابراهيم محارب",1,1,null,1,1,1,1,2,null,2,1,1,1,1,1,1,1,2,2,1,2,2,1,1,null,null,null,null,2,2]
[394,"هاني عبدالحي عيد حسن",null,null,null,null,null,null,null,null,null,null,null,null,null,null,null,null,1]
[395,"هديره طه عبدالهادي قنديل",null,null,null,null,null,null,null,1,1,1,1,1,1,1,1,1,1,1,1,1,1,1,1,1,1,null,1,null,1,1]
[396,"هشام سعيد صبحي عبدالعزيز",1,1,1,1,1,1,null,1,1,1,1,1,null,1,null,1,1,1,1,null,null,1,1,1,2,2,1,null,1,1]
[397,"هشام صابر سليم ادم",null,null,null,null,null,null,null,null,null,null,null,null,null,null,null,1]
[398,"هشام فتحي خليل المنوفي"]
[399,"واءل رجب فنح الله حماده",null,null,1]
[400,"ياسر محمد ابراهيم سيد",null,null,null,null,null,null,null,null,null,null,null,null,null,null,null,null,null,null,null,null,null,null,null,1,1]
[401,"ياسر محمد محمد عباده",2,2,2,2,2,2,2,2,2,2,1,2,1,2,2,2,2,2,2,1,1,2,2,1]
[402,"يحي محمد عبدالكريم الاعرج",1,1,1,1,1,1,1,1,1,1,1,1,2,1,null,1,1,1,1,1,null,1,1,1,1,1,1,null,1,1]
[403,"يحيي فتحي محمد عبدالله راشد",null,null,null,null,null,null,null,null,null,null,null,null,null,null,null,null,null,null,null,1]
[404,"يوسف احمد السيد",null,null,null,null,null,null,null,null,null,null,null,null,null,null,null,null,null,null,null,null,null,null,null,1,1,1,1,null,null,1]
[405,"يوسف الجمل علي كمال الدين",null,null,2,1,null,1,1,2,2,1,2,1,1,2,1,1,2,1,1,null,null,2,null,2,null,1,2,null,2]
[406,"يوسف حسين فرحات",null,null,null,1]
[407,"يوسف شعبان عبدالمنعم",null,null,null,null,null,null,null,null,null,null,null,null,null,null,null,null,null,null,null,null,null,null,null,null,null,2,1,null,1]
[408,"يونس الجمل علي كمال",2,2,2,2,null,1,null,2,null,1,null,1,null,1,1]